Department,Entity,Transaction Date,Supplier Name,Amount,Expense Type,Expense Area
DFID,DFID,28/08/2012,TRUSTMARQUE SOLUTIONS LTD ,"2,396.70",Computer Software Licenses ,Business Solutions Division Level 
DFID,DFID,29/08/2012,B & T International Consultants Lda ,"7,554.81",Technical and Advisory Services ,West and Southern Africa 
DFID,DFID,23/08/2012,FOOD AND AGRICULTURE ORGANISATION ,"3,000,000.00",Aid Programme - Voluntary contributions ,West and Southern Africa 
DFID,DFID,31/08/2012,UNFPA ,"2,459,924.00",Aid Programme - Voluntary contributions ,West and Southern Africa 
DFID,DFID,17/08/2012,DMS Africa(Local) ,"25,722.43",Other Admin Costs ,East and Central Africa 
DFID,DFID,01/08/2012,S MacNeillie & Son Limited ,"26,724.00",Vehicle Repairs & Maintenance ,West and Southern Africa 
DFID,DFID,15/08/2012,INDICIA TRAINING ,895.00,Training - Course Fees ,Business Solutions Division Level 
DFID,DFID,22/08/2012,ALLEGIS GROUP LIMITED ,"4,956.00",Contract & Agency Staff ,Business Solutions Division Level 
DFID,DFID,08/08/2012,ALLEGIS GROUP LIMITED ,"4,212.00",Contract & Agency Staff ,Business Solutions Division Level 
DFID,DFID,09/08/2012,ALLEGIS GROUP LIMITED ,"1,770.00",Contract & Agency Staff ,Business Solutions Division Level 
DFID,DFID,09/08/2012,ALLEGIS GROUP LIMITED ,"5,304.00",Technical and Advisory Services ,Business Solutions Division Level 
DFID,DFID,09/08/2012,ALLEGIS GROUP LIMITED ,"3,978.00",Contract & Agency Staff ,Business Solutions Division Level 
DFID,DFID,14/08/2012,OPIN SYSTEMS LIMITED ,"6,607.42",Contract & Agency Staff ,Business Solutions Division Level 
DFID,DFID,16/08/2012,INDICIA TRAINING ,895.00,Training - Course Fees ,Business Solutions Division Level 
DFID,DFID,31/08/2012,RIVER PATH ASSOCIATES ,"28,239.98",Technical and Advisory Services ,Western Asia and Stabilisation Division 
DFID,DFID,29/08/2012,LOGICACMG UK LTD. ,"30,166.67",Computer software maintenance ,Business Solutions Division Level 
DFID,DFID,30/08/2012,CABLE & WIRELESS COMMUN ,"30,324.91",Hardware - networking equipment ,Business Solutions Division Level 
DFID,DFID,30/08/2012,CABLE & WIRELESS COMMUN ,"15,776.10",Telephone Sys -hardware ,Business Solutions Division Level 
DFID,DFID,13/08/2012,VODAFONE CORPORATE ,"3,100.00",Technical and Advisory Services ,Business Solutions Division Level 
DFID,DFID,08/08/2012,ALLEGIS GROUP LIMITED ,"7,020.00",Technical and Advisory Services ,Business Solutions Division Level 
DFID,DFID,09/08/2012,Pilgrims Group ,752.11,Hostile Environment Training ,Human Resources Security & Facilities Division 
DFID,DFID,10/08/2012,SHL Group LTD ,"3,120.00",Recruitment costs ,Human Resources Security & Facilities Division 
DFID,DFID,02/08/2012,Recipient Name Withheld ,793.00,Air fares ,Human Resources Security & Facilities Division 
DFID,DFID,08/08/2012,Recipient Name Withheld ,953.75,Air fares ,Human Resources Security & Facilities Division 
DFID,DFID,07/08/2012,Recipient Name Withheld ,837.63,Air fares ,Human Resources Security & Facilities Division 
DFID,DFID,23/08/2012,Recipient Name Withheld ,"1,445.28",Air fares ,Human Resources Security & Facilities Division 
DFID,DFID,06/08/2012,MTB CONSULTING ,"1,129.60",Recruitment costs ,Human Resources Security & Facilities Division 
DFID,DFID,06/08/2012,MTB CONSULTING ,"1,704.00",Recruitment costs ,Human Resources Security & Facilities Division 
DFID,DFID,28/08/2012,MARGARET HODGE RECRUITMENT LTD ,527.99,Contract & Agency Staff ,Human Resources Security & Facilities Division 
DFID,DFID,31/08/2012,MARGARET HODGE RECRUITMENT LTD ,527.99,Contract & Agency Staff ,Human Resources Security & Facilities Division 
DFID,DFID,07/08/2012,MICHAEL PAGE INTERNATIONAL RECRUITMENT LIMITED ,686.05,Contract & Agency Staff ,Human Resources Security & Facilities Division 
DFID,DFID,23/08/2012,MICHAEL PAGE INTERNATIONAL RECRUITMENT LIMITED ,636.85,Contract & Agency Staff ,Human Resources Security & Facilities Division 
DFID,DFID,24/08/2012,MICHAEL PAGE INTERNATIONAL RECRUITMENT LIMITED ,571.71,Contract & Agency Staff ,Human Resources Security & Facilities Division 
DFID,DFID,06/08/2012,MTB CONSULTING ,"3,120.00",Recruitment costs ,Human Resources Security & Facilities Division 
DFID,DFID,06/08/2012,MTB CONSULTING ,"1,560.00",Recruitment costs ,Human Resources Security & Facilities Division 
DFID,DFID,08/08/2012,MARGARET HODGE RECRUITMENT LTD ,633.59,Contract & Agency Staff ,Human Resources Security & Facilities Division 
DFID,DFID,10/08/2012,MARGARET HODGE RECRUITMENT LTD ,633.59,Contract & Agency Staff ,Human Resources Security & Facilities Division 
DFID,DFID,15/08/2012,MARGARET HODGE RECRUITMENT LTD ,633.59,Contract & Agency Staff ,Human Resources Security & Facilities Division 
DFID,DFID,06/08/2012,MAF UK ,"60,000.00",Aid Programme - Accountable Grant Payments ,Asia  Caribbean and Overseas Territories 
DFID,DFID,01/08/2012,Triple Line Consulting Limited ,"3,246.00",Technical and Advisory Services ,Policy Division 
DFID,DFID,27/08/2012,Triple Line Consulting Limited ,"19,748.64",Technical and Advisory Services ,Policy Division 
DFID,DFID,09/08/2012,Triple Line Consulting Limited ,"1,445,561.15",Aid Programme - Challenge Fund payments ,Policy Division 
DFID,DFID,27/08/2012,Triple Line Consulting Limited ,"48,350.14",Technical and Advisory Services ,Policy Division 
DFID,DFID,07/08/2012,WORLD VISION UNITED KINGDOM ,"984,441.25",Aid Programme - Partnership Programme Arrangements ,Policy Division 
DFID,DFID,13/08/2012,CHRISTIAN AID ,"1,813,981.75",Aid Programme - Partnership Programme Arrangements ,Policy Division 
DFID,DFID,28/08/2012,MCell ,745.97,Mobile telephones & accessories ,West and Southern Africa 
DFID,DFID,28/08/2012,Supplier Name withheld ,"10,120.18",Secure Staff Accomodation ,West and Southern Africa 
DFID,DFID,07/08/2012, International Development UEA ,"9,424.24",Technical and Advisory Services ,Asia  Caribbean and Overseas Territories 
DFID,DFID,17/08/2012,Cordia Ming Yeuk Chu ,"3,210.15",Technical and Advisory Services ,Asia  Caribbean and Overseas Territories 
DFID,DFID,20/08/2012,Cordia Ming Yeuk Chu ,"4,979.45",Technical and Advisory Services ,Asia  Caribbean and Overseas Territories 
DFID,DFID,01/08/2012,UNFPA ,"12,500,000.00",Aid Programme - Voluntary contributions ,International Relations Division 
DFID,DFID,01/08/2012,Michelle Taguinod ,821.00,Conferences  Seminars & Meeting/Event Resource ,Asia  Caribbean and Overseas Territories 
DFID,DFID,31/08/2012,WFP CONTRIBUTIONS UNIT ,"2,000,000.00",Aid Programme - Voluntary contributions ,East and Central Africa 
DFID,DFID,29/08/2012,Supplier Name withheld ,"48,483.58",Technical and Advisory Services ,Western Asia and Stabilisation Division 
DFID,DFID,06/08/2012,Supplier Name withheld ,"16,830.80",Technical and Advisory Services ,Western Asia and Stabilisation Division 
DFID,DFID,27/08/2012,World Food  Programme ,"739,319.00",Aid Programme - Humanitarian Material Relief Assistance and Services ,East and Central Africa 
DFID,DFID,17/08/2012,AUC ,"280,000.00",Aid Programme - Voluntary contributions ,East and Central Africa 
DFID,DFID,16/08/2012,EISA ,"453,734.38",Aid Programme - Accountable Grant Payments ,East and Central Africa 
DFID,DFID,16/08/2012,HAREWELLE INTERNATIONAL LIMITED ,"1,625.00",Technical and Advisory Services ,Policy Division 
DFID,DFID,30/08/2012,HLSP LIMITED ,"7,934.70",Technical and Advisory Services ,Policy Division 
DFID,DFID,24/08/2012,BBC Media Action ,"4,700,000.00",Aid Programme - Accountable Grant Payments ,Policy Division 
DFID,DFID,15/08/2012,Pilgrims Group ,673.13,Training Providers/Facilitation Services ,Security & Humanitarian and Middle East Division 
DFID,DFID,14/08/2012,Pilgrims Group ,673.13,Training Providers/Facilitation Services ,Security & Humanitarian and Middle East Division 
DFID,DFID,20/08/2012,HANDS  ,"1,108,388.00",Aid Programme - Humanitarian Material Relief Assistance and Services ,Western Asia and Stabilisation Division 
DFID,DFID,23/08/2012,FAO (USD) ,"2,250,000.00",Aid Programme - Humanitarian Material Relief Assistance and Services ,Western Asia and Stabilisation Division 
DFID,DFID,30/08/2012,ADAM SMITH INTERNATIONAL  LTD ,"1,600.00",Technical and Advisory Services ,Western Asia and Stabilisation Division 
DFID,DFID,31/08/2012,MAXWELL STAMP PLC ,"4,718.50",Technical and Advisory Services ,International Finance Division 
DFID,DFID,31/08/2012,MAXWELL STAMP PLC ,"95,181.89",Technical and Advisory Services ,International Finance Division 
DFID,DFID,17/08/2012,CARE INTERNATIONAL ,"48,099.26",Aid Programme - Accountable Grant Payments ,West and Southern Africa 
DFID,DFID,07/08/2012,ProQuest LLC ,"1,345.05",Subscriptions ,Research and Evidence Division 
DFID,DFID,07/08/2012,DODS ,"3,057.11",Subscriptions ,Research and Evidence Division 
DFID,DFID,15/08/2012,PITNEY BOWES (RECREDIT FRANKING M/C) ,"1,000.00",Postage Costs ,Human Resources Security & Facilities Division 
DFID,DFID,01/08/2012,AZCOM BUSINESS SOLUTIONS LIMITED ,720.00,Repairs  Maint  Alter - Removal & waste disposal services ,Human Resources Security & Facilities Division 
DFID,DFID,02/08/2012,THE GLOBAL FORUM ON MSM AND HIV ,"83,802.00",Aid Programme - Accountable Grant Payments ,Policy Division 
DFID,DFID,14/08/2012,Pilgrims Group ,807.76,Hostile Environment Training ,Policy Division 
DFID,DFID,20/08/2012,Hays Specialist Recruitment Ltd ,642.20,Contract & Agency Staff ,Asia  Caribbean and Overseas Territories 
DFID,DFID,20/08/2012,Hays Specialist Recruitment Ltd ,600.90,Contract & Agency Staff ,Asia  Caribbean and Overseas Territories 
DFID,DFID,02/08/2012,ECGD ACCOUNT ,"21,907.45",Aid Programme - Aid and Trade Provision ,Asia  Caribbean and Overseas Territories 
DFID,DFID,02/08/2012,ECGD ACCOUNT ,"25,247.68",Aid Programme - Aid and Trade Provision ,Asia  Caribbean and Overseas Territories 
DFID,DFID,08/08/2012,NATURAL RESOURCES INSTITUTE ,"133,928.71",Aid Programme - Accountable Grant Payments ,Policy Division 
DFID,DFID,02/08/2012,FAO ,"75,157.00",Aid Programme - Core contributions ,Policy Division 
DFID,DFID,28/08/2012,International Monetary Fund (GBP) ,"500,000.00",Aid Programme - Voluntary contributions ,Asia  Caribbean and Overseas Territories 
DFID,DFID,06/08/2012,BANNER BUSINESS SUPPLIES LTD ,"28,687.87",Office Equipment - Purchases ,Human Resources Security & Facilities Division 
DFID,DFID,27/08/2012,MITIE Technical Facilities Management Ltd ,"18,903.50",Facilities Management payments ,Human Resources Security & Facilities Division 
DFID,DFID,27/08/2012,MITIE Technical Facilities Management Ltd ,"23,834.80",Cleaning Costs ,Human Resources Security & Facilities Division 
DFID,DFID,27/08/2012,MITIE Technical Facilities Management Ltd ,750.64,Technical and Advisory Services ,Human Resources Security & Facilities Division 
DFID,DFID,27/08/2012,MITIE Technical Facilities Management Ltd ,"9,579.74",Repairs  Maint  Alter - Property & Constrct. Services ,Human Resources Security & Facilities Division 
DFID,DFID,10/08/2012,EDF ENERGY ,"15,600.00",Electricity ,Human Resources Security & Facilities Division 
DFID,DFID,29/08/2012,TURNER & TOWNSEND ,"93,543.25",Technical and Advisory Services ,Human Resources Security & Facilities Division 
DFID,DFID,27/08/2012,MITIE Technical Facilities Management Ltd ,"16,311.44",Repairs  Maint  Alter - Property & Constrct. Services ,Human Resources Security & Facilities Division 
DFID,DFID,10/08/2012,EDF ENERGY ,"32,063.46",Electricity ,Human Resources Security & Facilities Division 
DFID,DFID,10/08/2012,TURNER & TOWNSEND ,"8,760.00",Technical and Advisory Services ,Human Resources Security & Facilities Division 
DFID,DFID,10/08/2012,TURNER & TOWNSEND ,"70,742.32",Technical and Advisory Services ,Human Resources Security & Facilities Division 
DFID,DFID,10/08/2012,TURNER & TOWNSEND ,"21,528.00",Technical and Advisory Services ,Human Resources Security & Facilities Division 
DFID,DFID,14/08/2012,TURNER & TOWNSEND ,"7,094.87",Technical and Advisory Services ,Human Resources Security & Facilities Division 
DFID,DFID,27/08/2012,MITIE Technical Facilities Management Ltd ,"32,187.00",Facilities Management payments ,Human Resources Security & Facilities Division 
DFID,DFID,01/08/2012,Supplier Name withheld ,"34,285.71",Secure Staff Accomodation ,East and Central Africa 
DFID,DFID,13/08/2012,BYWATERS ,"3,143.95",Repairs  Maint  Alter - Removal & waste disposal services ,Human Resources Security & Facilities Division 
DFID,DFID,17/08/2012,CORONA ENERGY ,"1,794.83",Gas ,Human Resources Security & Facilities Division 
DFID,DFID,02/08/2012,Softcat Ltd ,"34,656.00",Computer software maintenance ,Business Solutions Division Level 
DFID,DFID,27/08/2012,MITIE Technical Facilities Management Ltd ,"1,278.10",Technical and Advisory Services ,Human Resources Security & Facilities Division 
DFID,DFID,14/08/2012,THE CAYMAN ISLANDS RED CROSS ,"12,821.00",Aid Programme - Humanitarian Material Relief Assistance and Services ,Security & Humanitarian and Middle East Division 
DFID,DFID,30/08/2012,UK-Med ,"40,594.50",Aid Programme - Accountable Grant Payments ,Security & Humanitarian and Middle East Division 
DFID,DFID,20/08/2012,Chatham House Enterprises ,"70,238.00",Aid Programme - Accountable Grant Payments ,Policy Division 
DFID,DFID,20/08/2012,Chatham House Enterprises ,"21,655.00",Aid Programme - Accountable Grant Payments ,Policy Division 
DFID,DFID,28/08/2012,THE WHITEHALL & INDUSTRY GROUP ,650.00,Training Providers/Facilitation Services ,Joint Trade Policy Division 
DFID,DFID,24/08/2012,The Express Travel Group ,868.73,Air fares ,Internal Audit 
DFID,DFID,02/08/2012,PRICEWATERHOUSECOOPERS ,"15,585.60",Technical and Advisory Services ,Policy Division 
DFID,DFID,30/08/2012,PRICEWATERHOUSECOOPERS ,"25,520.53",Technical and Advisory Services ,Policy Division 
DFID,DFID,28/08/2012,NCC SERVICES LIMITED ,"1,290.00",Computer Software Licenses ,Business Solutions Division Level 
DFID,DFID,31/08/2012,ALC Training Group Ltd ,"1,125.04",Training - Course Fees ,Business Solutions Division Level 
DFID,DFID,16/08/2012,IRW Systems ,"24,001.20",Technical and Advisory Services ,Business Solutions Division Level 
DFID,DFID,16/08/2012,IRW Systems ,"5,041.20",Technical and Advisory Services ,Business Solutions Division Level 
DFID,DFID,14/08/2012,Recipient name withheld ,893.37,Electricity ,East and Central Africa 
DFID,DFID,20/08/2012,APSP ,"5,573.85",Aid Programme - Accountable Grant Payments ,East and Central Africa 
DFID,DFID,10/08/2012,TEARFUND ,"219,557.11",Aid Programme - Accountable Grant Payments ,Security & Humanitarian and Middle East Division 
DFID,DFID,31/08/2012,CARE INTERNATIONAL ,"22,788.00",Aid Programme - Accountable Grant Payments ,Security & Humanitarian and Middle East Division 
DFID,DFID,02/08/2012,Warwickshire Police ,600.00,Technical and Advisory Services ,Western Asia and Stabilisation Division 
DFID,DFID,07/08/2012,TREASURY SOLICITORS CASH ACC ,808.80,Legal costs ,Western Asia and Stabilisation Division 
DFID,DFID,23/08/2012,Hays Specialist Recruitment Ltd ,"1,063.20",Contract & Agency Staff ,Policy Division 
DFID,DFID,13/08/2012,Center for Global Development ,"297,805.00",Aid Programme - Accountable Grant Payments ,Policy Division 
DFID,DFID,01/08/2012,Recipient Name Withheld ,640.64,Facilities Management payments ,West and Southern Africa 
DFID,DFID,08/08/2012,HEALTH PARTNERS INTERNATIONAL ,"21,227.69",Technical and Advisory Services ,International Finance Division 
DFID,DFID,15/08/2012,Department of Energy and Climate Change (DECC) ,"1,252.21",Other travel costs ,Policy Division 
DFID,DFID,27/08/2012, OECD ,"50,000.00",Aid Programme - Voluntary contributions ,Policy Division 
DFID,DFID,08/08/2012,WELL GROUNDED LTD ,"93,780.00",Aid Programme - Accountable Grant Payments ,Policy Division 
DFID,DFID,15/08/2012,Department of Energy and Climate Change (DECC) ,910.70,Other travel costs ,Policy Division 
DFID,DFID,27/08/2012,MICHAEL FLINT & PARTNERS ,"30,783.16",Technical and Advisory Services ,Policy Division 
DFID,DFID,14/08/2012,ENVIRONMENTAL INVESTIGATION AGENCY (EIA) ,"102,565.00",Aid Programme - Accountable Grant Payments ,Policy Division 
DFID,DFID,16/08/2012,PRICEWATERHOUSECOOPERS ,"24,195.00",Technical and Advisory Services ,Policy Division 
DFID,DFID,27/08/2012,United Nations General Trust Fund Account ,"200,000.00",Aid Programme - Voluntary contributions ,Policy Division 
DFID,DFID,07/08/2012,HAREWELLE INTERNATIONAL LIMITED ,"4,600.00",Contract & Agency Staff ,Policy Division 
DFID,DFID,22/08/2012,HAREWELLE INTERNATIONAL LIMITED ,"3,600.00",Contract & Agency Staff ,Policy Division 
DFID,DFID,13/08/2012,Clean Development Mechanism (CDM) Watch ,"17,388.74",Aid Programme - Accountable Grant Payments ,Policy Division 
DFID,DFID,13/08/2012,WHO (GENEVA) ,"108,500.00",Aid Programme - Pooled/Basket funding ,Research and Evidence Division 
DFID,DFID,24/08/2012,The Rights & Resources Group ,"1,173,078.70",Aid Programme - Accountable Grant Payments ,Policy Division 
DFID,DFID,07/08/2012,Recipient name withheld ,556.55,Hotels - Accommodation only ,International Relations Division 
DFID,DFID,23/08/2012,Inspirations ,568.86,Other Building Costs ,International Relations Division 
DFID,DFID,31/08/2012,Avocats Sans Frontieres (ASF),"104,080.00",Aid Programme - Accountable Grant Payments ,East and Central Africa 
DFID,DFID,31/08/2012,PRICEWATERHOUSECOOPERS ,"30,896.17",Technical and Advisory Services ,West and Southern Africa 
DFID,DFID,20/08/2012,British Embassy ,"5,350.32",Oil - Other Utilities ,West and Southern Africa 
DFID,DFID,29/08/2012,Textile Gallery ,"1,690.06",Repairs  Maint  Alter - Property & Constrct. Services ,West and Southern Africa 
DFID,DFID,30/08/2012,INTRAC ,"1,295.00",Training - Course Fees ,West and Southern Africa 
DFID,DFID,20/08/2012,Ellie Buss ,"2,141.77",Repairs  Maint  Alter - Property & Constrct. Services ,West and Southern Africa 
DFID,DFID,23/08/2012,Avari Lahore ,"3,433.87",Hotels - Accommodation only ,Western Asia and Stabilisation Division 
DFID,DFID,23/08/2012,African Development Fund ,"15,501,975.00",Encashment of Promissory Notes ,International Finance Division 
DFID,DFID,22/08/2012,African Development Fund ,"2,059,221.49",Encashment of Promissory Notes ,International Finance Division 
DFID,DFID,23/08/2012,African Development Fund ,"5,020,753.24",Encashment of Promissory Notes ,International Finance Division 
DFID,DFID,23/08/2012,African Development Fund ,"14,656,801.08",Encashment of Promissory Notes ,International Finance Division 
DFID,DFID,08/08/2012,IBRD HSBC T ,"1,000,000.00",Aid Programme - Trust Funds contributions ,Research and Evidence Division 
DFID,DFID,03/08/2012,Global Canopy Programme ,"42,598.51",Aid Programme - Accountable Grant Payments ,Policy Division 
DFID,DFID,03/08/2012,IBRD HSBC T ,"1,000,000.00",Aid Programme - Trust Funds contributions ,Policy Division 
DFID,DFID,09/08/2012,IUCN Mesoamerican and the Caribbean ,"239,167.00",Aid Programme - Accountable Grant Payments ,Policy Division 
DFID,DFID,10/08/2012,Supplier Name withheld ,"581,746.63",Technical and Advisory Services ,Western Asia and Stabilisation Division 
DFID,DFID,09/08/2012,Crown Agents Bank - DFID Sierra Leone and Liberia ,"1,046,035.34",Technical and Advisory Services ,West and Southern Africa 
DFID,DFID,15/08/2012,Office of National Security Sierra Leone ,"90,634.00",Aid Programme - Other Financial Aid to Government ,West and Southern Africa 
DFID,DFID,09/08/2012,PKF (UK) LLP ,"70,812.50",Technical and Advisory Services ,West and Southern Africa 
DFID,DFID,24/08/2012,Recipient name withheld ,758.66,Hotels - Accommodation only ,Security & Humanitarian and Middle East Division 
DFID,DFID,21/08/2012,Tewodros Makonnen ,"1,183.29",Technical and Advisory Services ,East and Central Africa 
DFID,DFID,23/08/2012,Pilgrims Group ,555.16,Training Providers/Facilitation Services ,East and Central Africa 
DFID,DFID,02/08/2012,Crown Agents Bank ,"103,363.89",Research & Development costs ,Research and Evidence Division 
DFID,DFID,08/08/2012,CENTRE FOR ECONOMIC POLICY RESEARCH ,"173,824.00",Research & Development costs ,Research and Evidence Division 
DFID,DFID,08/08/2012,CENTRE FOR ECONOMIC POLICY RESEARCH ,"111,883.00",Research & Development costs ,Research and Evidence Division 
DFID,DFID,16/08/2012,Hays Specialist Recruitment Ltd ,"1,480.12",Contract & Agency Staff ,Asia  Caribbean and Overseas Territories 
DFID,DFID,16/08/2012,Hays Specialist Recruitment Ltd ,"1,480.12",Contract & Agency Staff ,Asia  Caribbean and Overseas Territories 
DFID,DFID,17/08/2012,Hays Specialist Recruitment Ltd ,"1,421.68",Contract & Agency Staff ,Asia  Caribbean and Overseas Territories 
DFID,DFID,17/08/2012,Hays Specialist Recruitment Ltd ,"1,129.56",Contract & Agency Staff ,Asia  Caribbean and Overseas Territories 
DFID,DFID,23/08/2012,Vicdor Resolute Limited ,"1,414.54",Repairs  Maint  Alter - Property & Constrct. Services ,West and Southern Africa 
DFID,DFID,10/08/2012,PRICEWATERHOUSECOOPERS ,"303,805.14",Technical and Advisory Services ,Policy Division 
DFID,DFID,01/08/2012,PRICEWATERHOUSECOOPERS ,"51,200.00",Technical and Advisory Services ,Policy Division 
DFID,DFID,10/08/2012,PRICEWATERHOUSECOOPERS ,"143,316.41",Technical and Advisory Services ,Policy Division 
DFID,DFID,01/08/2012,PRICEWATERHOUSECOOPERS ,"17,000.01",Technical and Advisory Services ,Policy Division 
DFID,DFID,17/08/2012,TREASURY SOLICITORS CASH ACC ,997.50,Legal costs ,Corporate Hub 
DFID,DFID,16/08/2012,Central Highway Contractors Ltd ,704.03,Facilities Management payments ,East and Central Africa 
DFID,DFID,10/08/2012,Tropical Decoration & General Traders ,"2,111.90",Facilities Management payments ,East and Central Africa 
DFID,DFID,28/08/2012,HM TREASURY VOTES CASH ACCOUNT ,"35,392.51",Professional member subscriptions ,Human Resources Security & Facilities Division 
DFID,DFID,21/08/2012,Hays Specialist Recruitment Ltd ,806.75,Contract & Agency Staff ,Finance and Corporate Performance Division 
DFID,DFID,22/08/2012,Hays Specialist Recruitment Ltd ,"2,000.00",Contract & Agency Staff ,Finance and Corporate Performance Division 
DFID,DFID,17/08/2012,THE INTERNATIONAL COMMITTEE OF THE RED CROSS (ICRC) ,"1,800,000.00",Aid Programme - Voluntary contributions ,East and Central Africa 
DFID,DFID,07/08/2012,Healix International Limited (Fees) ,"16,706.28",Technical and Advisory Services ,Human Resources Security & Facilities Division 
DFID,DFID,31/08/2012,MOTT MACDONALD INTERNATIONAL ,"29,974.20",Technical and Advisory Services ,Policy Division 
DFID,DFID,21/08/2012,DANA Agency ,"1,033.68",Air fares ,Policy Division 
DFID,DFID,02/08/2012,Institute of Development Studies. ,"31,002.00",Aid Programme - Accountable Grant Payments ,Policy Division 
DFID,DFID,23/08/2012,ATOS CONSULTING LIMITED ,"333,323.20",Technical and Advisory Services ,West and Southern Africa 
DFID,DFID,23/08/2012,Cambridge  Education Limited ,"1,684,549.18",Technical and Advisory Services ,West and Southern Africa 
DFID,DFID,01/08/2012,MALARIA CONSORTIUM ,"525,144.00",Technical and Advisory Services ,West and Southern Africa 
DFID,DFID,08/08/2012,ADAM SMITH INTERNATIONAL  LTD ,"1,535,938.68",Technical and Advisory Services ,West and Southern Africa 
DFID,DFID,10/08/2012,SAFECON Electro Mechanical Works PLC ,"4,193.46",Repairs  Maint  Alter - Property & Constrct. Services ,East and Central Africa 
DFID,DFID,22/08/2012,SAFECON Electro Mechanical Works PLC ,"5,083.28",Repairs  Maint  Alter - Property & Constrct. Services ,East and Central Africa 
DFID,DFID,30/08/2012,SAFECON Electro Mechanical Works PLC ,"5,094.66",Repairs  Maint  Alter - Property & Constrct. Services ,East and Central Africa 
DFID,DFID,30/08/2012,SAFECON Electro Mechanical Works PLC ,721.91,Repairs  Maint  Alter - Property & Constrct. Services ,East and Central Africa 
DFID,DFID,13/08/2012,Supplier Name withheld ,"1,922.10",Secure Staff Accomodation ,East and Central Africa 
DFID,DFID,30/08/2012,ATOS CONSULTING LIMITED ,"30,693.98",Technical and Advisory Services ,East and Central Africa 
DFID,DFID,01/08/2012,   THE WORLD BANK ,"192,000.00",Aid Programme - Trust Funds contributions ,East and Central Africa 
DFID,DFID,30/08/2012,SAFECON Electro Mechanical Works PLC ,536.11,Repairs  Maint  Alter - Property & Constrct. Services ,East and Central Africa 
DFID,DFID,13/08/2012,Supplier Name withheld ,"11,543.27",Secure Staff Accomodation ,East and Central Africa 
DFID,DFID,22/08/2012,SAFECON Electro Mechanical Works PLC ,"1,347.99",Repairs  Maint  Alter - Property & Constrct. Services ,East and Central Africa 
DFID,DFID,24/08/2012,The Express Travel Group ,"3,434.61",Training - Travel & Subsistence ,East and Central Africa 
DFID,DFID,27/08/2012,SAFECON Electro Mechanical Works PLC ,"19,289.99",Repairs  Maint  Alter - Property & Constrct. Services ,East and Central Africa 
DFID,DFID,06/08/2012,ATOS CONSULTING LIMITED ,"26,047.37",Technical and Advisory Services ,East and Central Africa 
DFID,DFID,27/08/2012,WHO (GENEVA) ,"60,000.00",Aid Programme - Joint programme contribution ,Research and Evidence Division 
DFID,DFID,09/08/2012,IBRD HSBC T ,"1,584,387.00",Aid Programme - Trust Funds contributions ,Asia  Caribbean and Overseas Territories 
DFID,DFID,09/08/2012,IBRD HSBC T ,"4,415,613.00",Aid Programme - Trust Funds contributions ,Asia  Caribbean and Overseas Territories 
DFID,DFID,14/08/2012,NATIONAL DEMOCRATIC INSTITUTE (NDI) ,"50,456.00",Aid Programme - Accountable Grant Payments ,Asia  Caribbean and Overseas Territories 
DFID,DFID,13/08/2012,OPIN SYSTEMS LIMITED ,"7,098.00",Technical and Advisory Services ,Business Solutions Division Level 
DFID,DFID,30/08/2012,CABLE & WIRELESS COMMUN ,"4,776.64",Technical and Advisory Services ,Business Solutions Division Level 
DFID,DFID,30/08/2012,CABLE & WIRELESS COMMUN ,"3,955.71",Telephone Usage & services ,Business Solutions Division Level 
DFID,DFID,30/08/2012,CABLE & WIRELESS COMMUN ,"1,734.93",Data Network - land lines ,Business Solutions Division Level 
DFID,DFID,30/08/2012,CABLE & WIRELESS COMMUN ,"9,272.31",Technical and Advisory Services ,Business Solutions Division Level 
DFID,DFID,30/08/2012,CABLE & WIRELESS COMMUN ,"24,723.49",Data Network - land lines ,Business Solutions Division Level 
DFID,DFID,30/08/2012,CABLE & WIRELESS COMMUN ,"2,037.79",Telephone Usage & services ,Business Solutions Division Level 
DFID,DFID,30/08/2012,CABLE & WIRELESS COMMUN ,893.76,Data Network - land lines ,Business Solutions Division Level 
DFID,DFID,09/08/2012,LIVERPOOL SCHOOL OF TROPICAL MEDICINE ,"166,328.66",Research & Development costs ,Research and Evidence Division 
DFID,DFID,31/08/2012,University of Cape Town (UCT) ,"195,857.66",Research & Development costs ,Research and Evidence Division 
DFID,DFID,14/08/2012,LIVERPOOL SCHOOL OF TROPICAL MEDICINE ,"147,643.64",Research & Development costs ,Research and Evidence Division 
DFID,DFID,31/08/2012,International Food PolicyResearch Institute (IFRI ,"385,855.00",Research & Development costs ,Research and Evidence Division 
DFID,DFID,06/08/2012,JHU Bloomberg School of Public Health ,"402,883.00",Research & Development costs ,Research and Evidence Division 
DFID,DFID,15/08/2012,PricewaterhouseCoopers (Ghana) Limited ,"6,366.49",Recruitment costs ,Internal Audit 
DFID,DFID,27/08/2012,LONDON SCHOOL OF ECONOMICS AND POLITICAL SCIENCE ,"43,349.24",Technical and Advisory Services ,Policy Division 
DFID,DFID,27/08/2012,LONDON SCHOOL OF ECONOMICS AND POLITICAL SCIENCE ,"1,485,384.76",Technical and Advisory Services ,Policy Division 
DFID,DFID,21/08/2012,critical faculty ,"7,750.00",Technical and Advisory Services ,Research and Evidence Division 
DFID,DFID,06/08/2012,Institute for Social and Environmental Transition ,"30,831.88",Aid Programme - Accountable Grant Payments ,Research and Evidence Division 
DFID,DFID,08/08/2012,International Union Against Tuberculosis and Lung Disease ,"358,985.20",Aid Programme - Accountable Grant Payments ,Research and Evidence Division 
DFID,DFID,08/08/2012,International Union Against Tuberculosis and Lung Disease ,"70,133.50",Aid Programme - Accountable Grant Payments ,Research and Evidence Division 
DFID,DFID,08/08/2012,International Union Against Tuberculosis and Lung Disease ,"23,802.68",Aid Programme - Accountable Grant Payments ,Research and Evidence Division 
DFID,DFID,20/08/2012,Mid Century Design Ltd ,"12,325.00",Technical and Advisory Services ,Asia  Caribbean and Overseas Territories 
DFID,DFID,22/08/2012,Intelligence Capital Limited ,"6,600.00",Technical and Advisory Services ,Asia  Caribbean and Overseas Territories 
DFID,DFID,31/08/2012,CABINET OFFICE ,"5,700.00",Recruitment costs ,Business Solutions Division Level 
DFID,DFID,01/08/2012,S MacNeillie & Son Limited ,"35,424.34",Vehicle Repairs & Maintenance ,West and Southern Africa 
DFID,DFID,17/08/2012,Nisbets Plc ,"1,036.00",Furniture & Fittings ,Human Resources Security & Facilities Division 
DFID,DFID,08/08/2012,MITIE Technical Facilities Management Ltd ,699.88,Other Building Costs ,Human Resources Security & Facilities Division 
DFID,DFID,01/08/2012,MITIE Technical Facilities Management Ltd ,"1,100.00",Other Building Costs ,Human Resources Security & Facilities Division 
DFID,DFID,02/08/2012,MITIE Technical Facilities Management Ltd ,518.40,Other Building Costs ,Human Resources Security & Facilities Division 
DFID,DFID,10/08/2012,SHANKS WASTE MANAGMENT LIMITED ,"1,132.32",Repairs  Maint  Alter - Removal & waste disposal services ,Human Resources Security & Facilities Division 
DFID,DFID,15/08/2012,KPMG DEVELOPMENT SERVICE ,"1,004,025.40",Aid Programme - Accountable Grant Payments ,Policy Division 
DFID,DFID,15/08/2012,KPMG DEVELOPMENT SERVICE ,"169,730.43",Aid Programme - Accountable Grant Payments ,Policy Division 
DFID,DFID,08/08/2012,COLLABORATIVE LEARNING PROJECTS ,"114,038.25",Aid Programme - Partnership Programme Arrangements ,Policy Division 
DFID,DFID,01/08/2012,INTERNATIONAL ALERT ,"434,790.00",Aid Programme - Partnership Programme Arrangements ,Policy Division 
DFID,DFID,16/08/2012,Pilgrims Group ,555.16,Training Providers/Facilitation Services ,Research and Evidence Division 
DFID,DFID,17/08/2012,Ian C Davies Conseil Inc ,"1,579.00",Technical and Advisory Services ,Research and Evidence Division 
DFID,DFID,16/08/2012,Clinton Health Access Initiative ,"288,239.16",Aid Programme - Accountable Grant Payments ,Research and Evidence Division 
DFID,DFID,31/08/2012,HM REVENUE AND CUSTOMS ,540.00,Recruitment costs ,Human Resources Security & Facilities Division 
DFID,DFID,10/08/2012,Juba Grand Hotel ,"5,068.46",Hotels - Accommodation only ,East and Central Africa 
DFID,DFID,15/08/2012,DMS AFRICA ,"7,072.16",Repairs  Maint  Alter - Property & Constrct. Services ,East and Central Africa 
DFID,DFID,16/08/2012,TAAM Petroleum Ltd(US$) ,"6,250.00",Oil - Other Utilities ,East and Central Africa 
DFID,DFID,16/08/2012,TAAM Petroleum(SSP) ,"2,445.87",Oil - Other Utilities ,East and Central Africa 
DFID,DFID,30/08/2012,TAAM Petroleum Ltd(US$) ,"17,643.71",Oil - Other Utilities ,East and Central Africa 
DFID,DFID,31/08/2012,European Union Juba ,"17,702.22",Operating Lease rental of buildings ,East and Central Africa 
DFID,DFID,21/08/2012,WFP Sudan Juba Sub Imprest(US$) ,"1,019.11",Air fares ,East and Central Africa 
DFID,DFID,30/08/2012,Mustafa Auto Garage ,927.88,Vehicle Repairs & Maintenance ,East and Central Africa 
DFID,DFID,10/08/2012,RCS Radio & Satellite Communication Ltd(Local) ,725.06,Data Network -Satellite ,East and Central Africa 
DFID,DFID,07/08/2012,TAAM Petroleum Ltd(US$) ,"6,654.71",Oil - Other Utilities ,East and Central Africa 
DFID,DFID,31/08/2012,Sudanese Mobile Telephone (Zain) Co Ltd ,688.57,Telephone Usage & services ,East and Central Africa 
DFID,DFID,31/08/2012,Sudanese Mobile Telephone (Zain) Co Ltd ,637.91,Telephone Usage & services ,East and Central Africa 
DFID,DFID,31/08/2012,Sudanese Mobile Telephone (Zain) Co Ltd ,666.22,Telephone Usage & services ,East and Central Africa 
DFID,DFID,31/08/2012,Sudanese Mobile Telephone (Zain) Co Ltd ,972.65,Telephone Usage & services ,East and Central Africa 
DFID,DFID,16/08/2012,DMS Africa(Local) ,"9,866.16",Other Building Costs ,East and Central Africa 
DFID,DFID,16/08/2012,DMS Africa(Local) ,"20,917.78",Other Admin Costs ,East and Central Africa 
DFID,DFID,16/08/2012,DMS Africa(Local) ,"5,417.46",Vehicle Hire Charges ,East and Central Africa 
DFID,DFID,20/08/2012,Logali House Ltd(SSP) ,733.86,Other Admin Costs ,East and Central Africa 
DFID,DFID,31/08/2012,DHL Worldwide Express South Sudan ,"1,171.31",Other Admin Costs ,East and Central Africa 
DFID,DFID,17/08/2012,DMS Africa(Local) ,"4,047.16",Other Admin Costs ,East and Central Africa 
DFID,DFID,16/08/2012,TAAM Petroleum Ltd(US$) ,"2,678.57",Oil - Other Utilities ,East and Central Africa 
DFID,DFID,16/08/2012,TAAM Petroleum(SSP) ,"1,048.23",Oil - Other Utilities ,East and Central Africa 
DFID,DFID,15/08/2012,DMS AFRICA ,"1,768.04",Repairs  Maint  Alter - Property & Constrct. Services ,East and Central Africa 
DFID,DFID,30/08/2012,TAAM Petroleum Ltd(US$) ,"7,561.59",Oil - Other Utilities ,East and Central Africa 
DFID,DFID,31/08/2012,European Union Juba ,"7,586.67",Operating Lease rental of buildings ,East and Central Africa 
DFID,DFID,16/08/2012,DMS Africa(Local) ,"16,118.55",Other Admin Costs ,East and Central Africa 
DFID,DFID,27/08/2012,MITIE Technical Facilities Management Ltd ,"40,583.56",Cleaning Costs ,Human Resources Security & Facilities Division 
DFID,DFID,20/08/2012,Logali House Ltd(SSP) ,"1,201.97",Other Admin Costs ,East and Central Africa 
DFID,DFID,16/08/2012,DMS Africa(Local) ,"13,473.55",Generators & spares ,East and Central Africa 
DFID,DFID,07/08/2012,TAAM Petroleum Ltd(US$) ,"2,852.02",Oil - Other Utilities ,East and Central Africa 
DFID,DFID,10/08/2012,RCS Radio & Satellite Communication Ltd(Local) ,549.87,Other Admin Costs ,East and Central Africa 
DFID,DFID,10/08/2012,Juba Grand Hotel ,"3,570.06",Other Admin Costs ,East and Central Africa 
DFID,DFID,14/08/2012,DMS Africa(Local) ,"9,910.37",Other Admin Costs ,East and Central Africa 
DFID,DFID,02/08/2012,IOE University of London ,"11,999.00",Research & Development costs ,Research and Evidence Division 
DFID,DFID,03/08/2012,IOE University of London ,"1,907.33",Research & Development costs ,Research and Evidence Division 
DFID,DFID,23/08/2012,Pratham Education Foundation ,"17,678.62",Research & Development costs ,Research and Evidence Division 
DFID,DFID,08/08/2012,Global Governance Institute ,"7,206.37",Research & Development costs ,Research and Evidence Division 
DFID,DFID,22/08/2012,INSTITUTE OF DEVELOPMENT STUDIES ,"24,166.00",Research & Development costs ,Research and Evidence Division 
DFID,DFID,22/08/2012,INSTITUTE OF DEVELOPMENT STUDIES ,"24,167.00",Research & Development costs ,Research and Evidence Division 
DFID,DFID,23/08/2012,Pitcairn Islands Budgetary Aid 2012-13 ,"773,550.00",Aid Programme - Other Financial Aid to Government ,Asia  Caribbean and Overseas Territories 
DFID,DFID,28/08/2012,Tristan da Cunha Finance Department ,"171,750.61",Aid Programme - Other Financial Aid to Government ,Asia  Caribbean and Overseas Territories 
DFID,DFID,15/08/2012,NAYATEL (PVT) LTD ,"2,286.74",other information and communication technologies ,Business Solutions Division Level 
DFID,DFID,30/08/2012,COLT TELECOMMUNICATIONS ,"1,125.00",Data Network -Satellite ,Business Solutions Division Level 
DFID,DFID,01/08/2012,COLT TELECOMMUNICATIONS ,"1,125.00",Data Network -Satellite ,Business Solutions Division Level 
DFID,DFID,02/08/2012,SITEIMPROVE LTD ,"8,245.50",Computer Software Licenses ,Business Solutions Division Level 
DFID,DFID,01/08/2012,LEARNING TREE INTERNATIONAL ,"1,002.50",Training - Course Fees ,Business Solutions Division Level 
DFID,DFID,07/08/2012,d&m taxis ,550.00,Taxi costs ,Business Solutions Division Level 
DFID,DFID,09/08/2012,BT BACS PAYMENTS ,"3,048.18",Data Network - land lines ,Business Solutions Division Level 
DFID,DFID,29/08/2012,BT BACS PAYMENTS ,"1,425.46",Telephone Usage & services ,Business Solutions Division Level 
DFID,DFID,03/08/2012,Michaeil Page Int. Recruitment Ltd ,"1,110.00",Contract & Agency Staff ,Human Resources Security & Facilities Division 
DFID,DFID,08/08/2012,PEOPLE IN AID LTD ,900.00,Professional member subscriptions ,Human Resources Security & Facilities Division 
DFID,DFID,27/08/2012,Morgan Law Partners LLP ,"17,998.80",Recruitment costs ,Human Resources Security & Facilities Division 
DFID,DFID,02/08/2012,Supplier Name withheld ,"4,366.41",Technical and Advisory Services ,Western Asia and Stabilisation Division 
DFID,DFID,09/08/2012,Supplier Name withheld ,"25,616.85",Technical and Advisory Services ,Western Asia and Stabilisation Division 
DFID,DFID,15/08/2012,Supplier Name withheld ,"22,739.04",Technical and Advisory Services ,Western Asia and Stabilisation Division 
DFID,DFID,02/08/2012,Supplier Name withheld ,"4,366.41",Technical and Advisory Services ,Western Asia and Stabilisation Division 
DFID,DFID,16/08/2012,Supplier Name withheld ,"120,378.00",Aid Programme - Trust Funds contributions ,Western Asia and Stabilisation Division 
DFID,DFID,15/08/2012,Supplier Name withheld ,"27,526.98",Technical and Advisory Services ,Western Asia and Stabilisation Division 
DFID,DFID,31/08/2012,Supplier Name withheld ,"10,061.70",Hotels - Accommodation only ,West and Southern Africa 
DFID,DFID,31/08/2012,Supplier Name withheld ,"13,337.60",Hotels - Accommodation only ,West and Southern Africa 
DFID,DFID,30/08/2012,VODAFONE CORPORATE ,579.46,Mobile telephones & accessories ,Policy Division 
DFID,DFID,27/08/2012,KUONI BUSINESS TRAVEL INDIA PVT LTD ,823.88,Air fares ,Asia  Caribbean and Overseas Territories 
DFID,DFID,02/08/2012,FCO SERVICES ,"5,594.40",Postage Costs ,Human Resources Security & Facilities Division 
DFID,DFID,29/08/2012,HivosGBP ,"82,154.00",Aid Programme - Accountable Grant Payments ,West and Southern Africa 
DFID,DFID,10/08/2012,TechnoServe  Incorporated ,"76,614.00",Aid Programme - Accountable Grant Payments ,West and Southern Africa 
DFID,DFID,29/08/2012,EGPAF ,"2,467.59",Aid Programme - Accountable Grant Payments ,West and Southern Africa 
DFID,DFID,21/08/2012,ASSOCIATION OF COMMONWEALTH UNIVER ,"237,838.00",Aid Programme - Accountable Grant Payments ,Research and Evidence Division 
DFID,DFID,22/08/2012,UNIVERSITY OF CAMBRIDGE ,"3,109.22",Technical and Advisory Services ,Research and Evidence Division 
DFID,DFID,31/08/2012,WORLD RESOURCES INSTITUTE ,"40,236.00",Aid Programme - Accountable Grant Payments ,Research and Evidence Division 
DFID,DFID,09/08/2012,Reliance Technology Limited ,"8,319.36",Technical and Advisory Services ,West and Southern Africa 
DFID,DFID,09/08/2012,Crossroads Lodges Limited ,"2,134.97",Training Providers/Facilitation Services ,West and Southern Africa 
DFID,DFID,10/08/2012,Cresta Golfview Hotel Lusaka ,"6,746.29",Conferences  Seminars & Meeting/Event Resource ,West and Southern Africa 
DFID,DFID,13/08/2012,CIPFA ,"47,748.99",Aid Programme - Accountable Grant Payments ,Asia  Caribbean and Overseas Territories 
DFID,DFID,14/08/2012,CIPFA BUSINESS LIMITED ,"37,499.09",Technical and Advisory Services ,Asia  Caribbean and Overseas Territories 
DFID,DFID,02/08/2012,Andrew Rogers (Self Employed) ,"19,239.63",Technical and Advisory Services ,Asia  Caribbean and Overseas Territories 
DFID,DFID,14/08/2012,DEREK TAYLOR ,"20,090.74",Technical and Advisory Services ,Asia  Caribbean and Overseas Territories 
DFID,DFID,22/08/2012,UNIVERSITY OF  OXFORD ,"491,968.31",Research & Development costs ,Research and Evidence Division 
DFID,DFID,15/08/2012,Pilgrims Group ,"1,071.35",Hostile Environment Training ,Research and Evidence Division 
DFID,DFID,07/08/2012,Paul Spivey ,"7,500.16",Technical and Advisory Services ,West and Southern Africa 
DFID,DFID,31/08/2012,HAREWELLE INTERNATIONAL LIMITED ,"21,264.10",Technical and Advisory Services ,West and Southern Africa 
DFID,DFID,30/08/2012,UNICEF ,"750,000.00",Aid Programme - Core contributions ,West and Southern Africa 
DFID,DFID,01/08/2012,TURNER & TOWNSEND ,"2,995.71",Technical and Advisory Services ,West and Southern Africa 
DFID,DFID,03/08/2012,Broll Property Management ,"6,882.70",Operating Lease rental of buildings ,West and Southern Africa 
DFID,DFID,08/08/2012,The Express Travel Group ,627.22,Air fares ,West and Southern Africa 
DFID,DFID,01/08/2012,Harvey World Travel Centurion ,609.13,Air fares ,West and Southern Africa 
DFID,DFID,01/08/2012,Harvey World Travel Centurion ,"1,203.81",Hotels - Accommodation only ,West and Southern Africa 
DFID,DFID,27/08/2012,Damelin ,753.94,Further Education costs ,West and Southern Africa 
DFID,DFID,20/08/2012,Harvey World Travel Centurion ,715.51,Air fares ,West and Southern Africa 
DFID,DFID,22/08/2012,Telkom SA Ltd ,917.44,Telephone Usage & services ,West and Southern Africa 
DFID,DFID,24/08/2012,Harvey World Travel Centurion ,979.16,Air fares ,West and Southern Africa 
DFID,DFID,03/08/2012,Broll Property Management ,"10,324.05",Operating Lease rental of buildings ,West and Southern Africa 
DFID,DFID,03/08/2012,Harvey World Travel Centurion ,"1,066.47",Hotels - Accommodation only ,West and Southern Africa 
DFID,DFID,22/08/2012,Futures Group Europe ,"140,039.84",Technical and Advisory Services ,West and Southern Africa 
DFID,DFID,03/08/2012,Abuja Environmental Protection Board ,547.66,Oil - Other Utilities ,West and Southern Africa 
DFID,DFID,01/08/2012,Tahir Guest Palace ,"4,463.28",Other travel costs ,West and Southern Africa 
DFID,DFID,06/08/2012,Horizon Interlinks Global Resources Ltd ,"1,116.91",Oil - Other Utilities ,West and Southern Africa 
DFID,DFID,28/08/2012,PETROSCOPE INSPECTORATE LIMITED ,"8,263.13",Facilities Management payments ,West and Southern Africa 
DFID,DFID,01/08/2012,Supplier Name withheld ,635.30,Hotels - Accommodation only ,West and Southern Africa 
DFID,DFID,06/08/2012,Horizon Interlinks Global Resources Ltd ,"1,480.55",Oil - Other Utilities ,West and Southern Africa 
DFID,DFID,31/08/2012,Supplier Name withheld ,602.12,Hotels - Accommodation only ,West and Southern Africa 
DFID,DFID,03/08/2012,Supplier Name withheld ,"2,003.39",Secure Staff Accomodation ,West and Southern Africa 
DFID,DFID,03/08/2012,Abuja Environmental Protection Board ,725.97,Oil - Other Utilities ,West and Southern Africa 
DFID,DFID,31/08/2012,Supplier Name withheld ,749.23,Hotels - Accommodation only ,West and Southern Africa 
DFID,DFID,01/08/2012,Supplier Name withheld ,640.66,Hotels - Accommodation only ,West and Southern Africa 
DFID,DFID,31/08/2012,LAUREATE ONLINE EDUCATION B.V. ,"1,333.05",Further Education costs ,West and Southern Africa 
DFID,DFID,31/08/2012,Life Support Medics Ltd ,645.00,Training - Travel & Subsistence ,West and Southern Africa 
DFID,DFID,31/08/2012,Life Support Medics Ltd ,855.00,Training - Travel & Subsistence ,West and Southern Africa 
DFID,DFID,22/08/2012,British Airways PLC ,"4,287.90",Training - Travel & Subsistence ,West and Southern Africa 
DFID,DFID,27/08/2012,Supplier Name Withheld ,"15,792.27",Facilities Management payments ,West and Southern Africa 
DFID,DFID,14/08/2012,Supplier Name withheld ,566.53,Hotels - Accommodation only ,West and Southern Africa 
DFID,DFID,16/08/2012,Supplier Name withheld ,548.34,Hotels - Accommodation only ,West and Southern Africa 
DFID,DFID,15/08/2012,Fracham Company ,640.17,Facilities Management payments ,West and Southern Africa 
DFID,DFID,22/08/2012,Supplier Name withheld ,956.80,Hotels - Accommodation only ,West and Southern Africa 
DFID,DFID,14/08/2012,Power Holding co of Nigeria ,605.24,Oil - Other Utilities ,West and Southern Africa 
DFID,DFID,14/08/2012,Power Holding co of Nigeria ,952.14,Oil - Other Utilities ,West and Southern Africa 
DFID,DFID,14/08/2012,Recipient name withheld ,716.92,Training - Travel & Subsistence ,West and Southern Africa 
DFID,DFID,23/08/2012,Recipient name withheld ,764.30,Facilities Management payments ,West and Southern Africa 
DFID,DFID,08/08/2012,Supplier Name withheld ,"1,123.49",Facilities Management payments ,West and Southern Africa 
DFID,DFID,15/08/2012,Power Holding co of Nigeria ,698.70,Oil - Other Utilities ,West and Southern Africa 
DFID,DFID,16/08/2012,Supplier Name withheld ,807.10,Hotels - Accommodation only ,West and Southern Africa 
DFID,DFID,16/08/2012,Supplier Name withheld ,726.87,Hotels - Accommodation only ,West and Southern Africa 
DFID,DFID,17/08/2012,Supplier Name withheld ,"17,482.71",Hotels - Accommodation only ,West and Southern Africa 
DFID,DFID,16/08/2012,Supplier Name withheld ,"16,217.26",Hotels - Accommodation only ,West and Southern Africa 
DFID,DFID,09/08/2012,Laurmann and Company Ltd ,609.17,Facilities Management payments ,West and Southern Africa 
DFID,DFID,27/08/2012,Supplier Name Withheld ,"15,792.27",Facilities Management payments ,West and Southern Africa 
DFID,DFID,16/08/2012,Supplier Name withheld ,"9,846.19",Hotels - Accommodation only ,West and Southern Africa 
DFID,DFID,17/08/2012,Supplier Name withheld ,"1,131.15",Hotels - Accommodation only ,West and Southern Africa 
DFID,DFID,22/08/2012,British  High Commission Abuja ,"1,598.38",Oil - Other Utilities ,West and Southern Africa 
DFID,DFID,22/08/2012,British Airways PLC ,"1,500.98",Training - Travel & Subsistence ,West and Southern Africa 
DFID,DFID,14/08/2012,Kraf Nigeria Limited ,"11,732.06",Office Supplies ,West and Southern Africa 
DFID,DFID,30/08/2012,Cork Communications ,"29,746.68",Technical and Advisory Services ,West and Southern Africa 
DFID,DFID,21/08/2012,VOLUNTARY SERVICE OVERSEAS (VSO) ,"26,955.00",Aid Programme - Accountable Grant Payments ,West and Southern Africa 
DFID,DFID,01/08/2012,MALARIA CONSORTIUM ,"272,101.00",Technical and Advisory Services ,West and Southern Africa 
DFID,DFID,29/08/2012,Neptune Properties ,"1,952.52",Electricity ,Asia  Caribbean and Overseas Territories 
DFID,DFID,16/08/2012,Dhaka Electric Supply Company Ltd ,"1,578.25",Electricity ,Asia  Caribbean and Overseas Territories 
DFID,DFID,17/08/2012,INSTITUTE OF DEVELOPMENT STUDIES ,"4,376.52",Technical and Advisory Services ,Asia  Caribbean and Overseas Territories 
DFID,DFID,09/08/2012,META-DEVELOPMENT LLP ,"39,406.41",Technical and Advisory Services ,West and Southern Africa 
DFID,DFID,23/08/2012,PricewaterhouseCoopers (Ghana) Limited ,"8,845.22",Auditors Remuneration & Expenses - Cash ,West and Southern Africa 
DFID,DFID,07/08/2012,WiLDAF ,"30,327.84",Aid Programme - Accountable Grant Payments ,West and Southern Africa 
DFID,DFID,31/08/2012,NATIONAL DEMOCRATIC INSTITUTE (NDI) ,"51,270.00",Aid Programme - Accountable Grant Payments ,West and Southern Africa 
DFID,DFID,13/08/2012,Banja La Mtsogolo ,"703,790.61",Aid Programme - Accountable Grant Payments ,West and Southern Africa 
DFID,DFID,27/08/2012,CHRISTIAN AID ,"387,234.55",Aid Programme - Accountable Grant Payments ,West and Southern Africa 
DFID,DFID,17/08/2012,Crown Agents Bank - DFID Malawi ,"17,000.38",Technical and Advisory Services ,West and Southern Africa 
DFID,DFID,15/08/2012,Supplier Name withheld ,"249,678.78",Technical and Advisory Services ,Western Asia and Stabilisation Division 
DFID,DFID,15/08/2012,Supplier Name withheld ,"106,182.13",Technical and Advisory Services ,Western Asia and Stabilisation Division 
DFID,DFID,15/08/2012,Supplier Name withheld ,"147,385.32",Technical and Advisory Services ,Western Asia and Stabilisation Division 
DFID,DFID,13/08/2012,Supplier Name withheld ,"116,646.32",Technical and Advisory Services ,Western Asia and Stabilisation Division 
DFID,DFID,01/08/2012,Supplier Name withheld ,"1,259,800.20",Aid Programme - Challenge Fund payments ,Western Asia and Stabilisation Division 
DFID,DFID,16/08/2012,MAXWELL STAMP PLC ,"1,364,780.00",Technical and Advisory Services ,Asia  Caribbean and Overseas Territories 
DFID,DFID,16/08/2012,MAXWELL STAMP PLC ,"154,111.33",Technical and Advisory Services ,Asia  Caribbean and Overseas Territories 
DFID,DFID,23/08/2012,Harewelle International Limited. ,"92,717.44",Technical and Advisory Services ,Asia  Caribbean and Overseas Territories 
DFID,DFID,23/08/2012,Harewelle International Limited. ,"905,807.08",Aid Programme - Challenge Fund payments ,Asia  Caribbean and Overseas Territories 
DFID,DFID,16/08/2012,MAXWELL STAMP PLC ,"200,000.00",Technical and Advisory Services ,Asia  Caribbean and Overseas Territories 
DFID,DFID,23/08/2012,Harewelle International Limited. ,"4,032.00",Technical and Advisory Services ,Asia  Caribbean and Overseas Territories 
DFID,DFID,10/08/2012,Duos Brain Managment Support Services ,815.13,Repairs  Maint  Alter - Property & Constrct. Services ,Asia  Caribbean and Overseas Territories 
DFID,DFID,27/08/2012,NARINDER PAL SINGH ,589.04,Contract Catering Services ,Asia  Caribbean and Overseas Territories 
DFID,DFID,27/08/2012,Partha De ,592.07,Facilities Management payments ,Asia  Caribbean and Overseas Territories 
DFID,DFID,16/08/2012,OPTIONS CONSULTANCY SERVICES LIMITED ,"40,610.83",Technical and Advisory Services ,Asia  Caribbean and Overseas Territories 
DFID,DFID,02/08/2012,THE WORLD BANK (IBRD ACCOUNT) ,"273,785.00",Aid Programme - Trust Funds contributions ,Asia  Caribbean and Overseas Territories 
DFID,DFID,20/08/2012,Education Support Organization ,"107,808.50",Aid Programme - Accountable Grant Payments ,Asia  Caribbean and Overseas Territories 
DFID,DFID,27/08/2012,KUONI BUSINESS TRAVEL INDIA PVT LTD ,"1,864.23",Air fares ,Asia  Caribbean and Overseas Territories 
DFID,DFID,27/08/2012,KUONI BUSINESS TRAVEL INDIA PVT LTD ,"3,874.93",Air fares ,Asia  Caribbean and Overseas Territories 
DFID,DFID,28/08/2012,KUONI BUSINESS TRAVEL INDIA PVT LTD ,684.43,Air fares ,Asia  Caribbean and Overseas Territories 
DFID,DFID,28/08/2012,KUONI BUSINESS TRAVEL INDIA PVT LTD ,"4,687.78",Air fares ,Asia  Caribbean and Overseas Territories 
DFID,DFID,10/08/2012,Hotel Samrat ,"4,443.71",Conferences  Seminars & Meeting/Event Resource ,Asia  Caribbean and Overseas Territories 
DFID,DFID,28/08/2012,INFRASTRUCTURE PROFESSIONALS ENTERPRISE ,"140,405.06",Technical and Advisory Services ,Asia  Caribbean and Overseas Territories 
DFID,DFID,28/08/2012,ERNST &  YOUNG PRIVATE LTD ,"45,630.19",Technical and Advisory Services ,Asia  Caribbean and Overseas Territories 
DFID,DFID,28/08/2012,ERNST &  YOUNG PRIVATE LTD ,"45,630.19",Technical and Advisory Services ,Asia  Caribbean and Overseas Territories 
DFID,DFID,03/08/2012,OPTIONS CONSULTANCY SERVICES LIMITED ,"91,104.54",Technical and Advisory Services ,Asia  Caribbean and Overseas Territories 
DFID,DFID,03/08/2012,OPTIONS CONSULTANCY SERVICES LIMITED ,"91,104.54",Technical and Advisory Services ,Asia  Caribbean and Overseas Territories 
DFID,DFID,09/08/2012,CARE INTERNATIONAL ,"68,040.03",Technical and Advisory Services ,Asia  Caribbean and Overseas Territories 
DFID,DFID,09/08/2012,CARE INTERNATIONAL ,"55,059.66",Technical and Advisory Services ,Asia  Caribbean and Overseas Territories 
DFID,DFID,28/08/2012,CARE INTERNATIONAL ,"68,040.03",Technical and Advisory Services ,Asia  Caribbean and Overseas Territories 
DFID,DFID,28/08/2012,CARE INTERNATIONAL ,"45,360.02",Technical and Advisory Services ,Asia  Caribbean and Overseas Territories 
DFID,DFID,29/08/2012,CARE INTERNATIONAL ,"68,040.03",Technical and Advisory Services ,Asia  Caribbean and Overseas Territories 
DFID,DFID,29/08/2012,CARE INTERNATIONAL ,"45,360.02",Technical and Advisory Services ,Asia  Caribbean and Overseas Territories 
DFID,DFID,30/08/2012,SKILLSHARE INTERNATIONAL ,"37,236.00",Aid Programme - Accountable Grant Payments ,Asia  Caribbean and Overseas Territories 
DFID,DFID,29/08/2012,SIDBI Venture Capital Limited ,"10,209.21",Technical and Advisory Services ,Asia  Caribbean and Overseas Territories 
DFID,DFID,07/08/2012,QUTAB SERVICE STATION ,867.73,Vehicle Petrol & Oil ,Asia  Caribbean and Overseas Territories 
DFID,DFID,07/08/2012,QUTAB SERVICE STATION ,776.64,Facilities Management payments ,Asia  Caribbean and Overseas Territories 
DFID,DFID,29/08/2012,Firesec India Systems (P) Ltd. ,"1,391.11",Facilities Management payments ,Asia  Caribbean and Overseas Territories 
DFID,DFID,14/08/2012,BSES RAJDHANI POWER LIMITED ,"8,885.06",Electricity ,Asia  Caribbean and Overseas Territories 
DFID,DFID,20/08/2012,BHARTI AIRTEL LIMITED ,517.74,Telephone Usage & services ,Asia  Caribbean and Overseas Territories 
DFID,DFID,27/08/2012,CHRISTIAN AID ,"105,177.90",Aid Programme - Accountable Grant Payments ,Asia  Caribbean and Overseas Territories 
DFID,DFID,31/08/2012,ActionAid India ,"224,331.46",Aid Programme - Accountable Grant Payments ,Asia  Caribbean and Overseas Territories 
DFID,DFID,27/08/2012,Oxfam (India) Trust ,"51,884.00",Aid Programme - Accountable Grant Payments ,Asia  Caribbean and Overseas Territories 
DFID,DFID,27/08/2012,WaterAid  (INDIA) ,"44,607.00",Aid Programme - Accountable Grant Payments ,Asia  Caribbean and Overseas Territories 
DFID,DFID,14/08/2012,CARE INTERNATIONAL ,"13,190.00",Technical and Advisory Services ,Asia  Caribbean and Overseas Territories 
DFID,DFID,29/08/2012,DELOITTE TOUCHE TOHMATSU INDIA PRIVA ,"26,286.25",Technical and Advisory Services ,Asia  Caribbean and Overseas Territories 
DFID,DFID,31/08/2012,DELOITTE TOUCHE TOHMATSU INDIA PRIVA ,"18,490.07",Technical and Advisory Services ,Asia  Caribbean and Overseas Territories 
DFID,DFID,06/08/2012,CHRISTIAN AID ,"76,058.81",Technical and Advisory Services ,Asia  Caribbean and Overseas Territories 
DFID,DFID,09/08/2012,CATALYST MANAGEMENT SERVICES PVT LTD ,"51,548.40",Technical and Advisory Services ,Asia  Caribbean and Overseas Territories 
DFID,DFID,31/08/2012,CHRISTIAN AID ,"631,769.03",Technical and Advisory Services ,Asia  Caribbean and Overseas Territories 
DFID,DFID,14/08/2012,SPC MANAGEMENT SERVICES PRIVATE LIMI ,"2,509.04",Technical and Advisory Services ,Asia  Caribbean and Overseas Territories 
DFID,DFID,14/08/2012,SPC MANAGEMENT SERVICES PRIVATE LIMI ,628.86,Technical and Advisory Services ,Asia  Caribbean and Overseas Territories 
DFID,DFID,09/08/2012,DELOITTE TOUCHE TOHMATSU INDIA PRIVA ,"58,605.12",Technical and Advisory Services ,Asia  Caribbean and Overseas Territories 
DFID,DFID,15/08/2012,UNOPS ,"650,000.00",Aid Programme - Trust Funds contributions ,Asia  Caribbean and Overseas Territories 
DFID,DFID,22/08/2012,IBRD (HSBC)  C/O THE WORLD BANK ,"1,200,000.00",Aid Programme - Trust Funds contributions ,Asia  Caribbean and Overseas Territories 
DFID,DFID,20/08/2012,The World  Bank IBRD ,"285,313.50",Aid Programme - Joint programme contribution ,West and Southern Africa 
DFID,DFID,10/08/2012,Herman Miller Asia (Pte) Ltd ,"187,903.99",Furniture & Fittings ,Asia  Caribbean and Overseas Territories 
DFID,DFID,10/08/2012,Herman Miller Asia (Pte) Ltd ,"335,185.99",Furniture & Fittings ,Asia  Caribbean and Overseas Territories 
DFID,DFID,06/08/2012,G4S FACILITY SERVICES (INDIA) PVT. L ,"3,095.77",Other non-passenger transportation ,Asia  Caribbean and Overseas Territories 
DFID,DFID,06/08/2012,ZEUS POWER SOLUTIONS (P) LTD ,650.13,Generators & spares ,Asia  Caribbean and Overseas Territories 
DFID,DFID,09/08/2012,CB RICHARD ELLIS SOUTH ASIA PVT LTD ,"14,336.82",Facilities Management payments ,Asia  Caribbean and Overseas Territories 
DFID,DFID,21/08/2012,Recipient name withheld ,612.80,Vehicle Repairs & Maintenance ,Asia  Caribbean and Overseas Territories 
DFID,DFID,22/08/2012,THE GOURMET FACTORY ,"1,983.48",Contract Catering Services ,Asia  Caribbean and Overseas Territories 
DFID,DFID,22/08/2012,G4S FACILITY SERVICES (INDIA) PVT. L ,"3,136.61",Other non-passenger transportation ,Asia  Caribbean and Overseas Territories 
DFID,DFID,27/08/2012,AGS Four Winds India Private Limited ,915.88,Furniture & Fittings ,Asia  Caribbean and Overseas Territories 
DFID,DFID,06/08/2012,LIVERPOOL HOPE UNIVERSITY ,530.00,Training Providers/Facilitation Services ,International Finance Division 
DFID,DFID,09/08/2012,Chapa Classic Lodge and Tours ,"1,358.52",Conferences  Seminars & Meeting/Event Resource ,West and Southern Africa 
DFID,DFID,10/08/2012,Crossroads Lodges Limited ,504.72,Conferences  Seminars & Meeting/Event Resource ,West and Southern Africa 
DFID,DFID,09/08/2012,PRICEWATERHOUSECOOPERS ,"49,470.64",Technical and Advisory Services ,Human Resources Security & Facilities Division 
DFID,DFID,09/08/2012,Supplier Name withheld ,"9,554.14",Secure Staff Accomodation ,East and Central Africa 
DFID,DFID,27/08/2012,Supplier Name Withheld ,"7,095.16",Technical and Advisory Services ,East and Central Africa 
DFID,DFID,29/08/2012,Die Tuin Consulting ,"4,870.80",Technical and Advisory Services ,East and Central Africa 
DFID,DFID,01/08/2012,HAREWELLE INTERNATIONAL LIMITED ,"3,031.64",Technical and Advisory Services ,East and Central Africa 
DFID,DFID,08/08/2012,HAREWELLE INTERNATIONAL LIMITED ,"9,622.89",Technical and Advisory Services ,East and Central Africa 
DFID,DFID,27/08/2012,HAREWELLE INTERNATIONAL LIMITED ,"34,883.80",Technical and Advisory Services ,East and Central Africa 
DFID,DFID,22/08/2012,HAREWELLE INTERNATIONAL LIMITED ,"3,187.62",Technical and Advisory Services ,East and Central Africa 
DFID,DFID,09/08/2012,JMC Umoja House ,"2,146.10",FCO shared service charges ,East and Central Africa 
DFID,DFID,10/08/2012,Tanzania Electric supply company Ltd ,799.58,Electricity ,East and Central Africa 
DFID,DFID,22/08/2012,Modern Generation Company (MGC) ,563.71,Facilities Management payments ,East and Central Africa 
DFID,DFID,28/08/2012,Golden Sands Services Apartments Ltd ,743.29,Hotels - Accommodation only ,East and Central Africa 
DFID,DFID,28/08/2012,British High Commission(Tsh) ,525.56,Facilities Management payments ,East and Central Africa 
DFID,DFID,09/08/2012,JMC Umoja House ,"6,438.30",FCO shared service charges ,East and Central Africa 
DFID,DFID,02/08/2012,British High Commission(Tsh) ,"2,629.42",Facilities Management payments ,East and Central Africa 
DFID,DFID,10/08/2012,VODACOM TANZANIA ,"1,473.74",Telephone Usage & services ,East and Central Africa 
DFID,DFID,02/08/2012,British High Commission(Tsh) ,"3,935.93",Facilities Management payments ,East and Central Africa 
DFID,DFID,02/08/2012,Supplier Name withheld ,"15,414.26",Secure Staff Accomodation ,East and Central Africa 
DFID,DFID,06/08/2012,DHL (Tanzania) Ltd ,621.39,Office Equipment - Maintenance ,East and Central Africa 
DFID,DFID,01/08/2012,Bon Voyage Travel Centre Ltd(USD) ,796.82,Air fares ,East and Central Africa 
DFID,DFID,02/08/2012,British High Commission(Tsh) ,584.30,Facilities Management payments ,East and Central Africa 
DFID,DFID,09/08/2012,Southern Sun Ridgeway ,695.05,Training - Travel & Subsistence ,East and Central Africa 
DFID,DFID,10/08/2012,Recipient name withheld ,"1,152.12",UK Staff overseas - Flexi Travel Allowance ,East and Central Africa 
DFID,DFID,06/08/2012,Supplier Name withheld ,"15,900.00",Secure Staff Accomodation ,East and Central Africa 
DFID,DFID,01/08/2012,Bon Voyage Travel Centre Ltd(USD) ,770.70,Training - Travel & Subsistence ,East and Central Africa 
DFID,DFID,24/08/2012,Abt Associates ,"125,758.82",Technical and Advisory Services ,West and Southern Africa 
DFID,DFID,23/08/2012,S R Nicolaou ,"3,517.52",Other Building Costs ,West and Southern Africa 
DFID,DFID,23/08/2012,Kay Two Zambia Limited ,"2,119.15",Other Building Costs ,West and Southern Africa 
DFID,DFID,09/08/2012,S R Nicolaou ,"3,546.59",Other Building Costs ,West and Southern Africa 
DFID,DFID,09/08/2012,Kay Two Zambia Limited ,797.17,Other Building Costs ,West and Southern Africa 
DFID,DFID,09/08/2012,Kay Two Zambia Limited ,745.37,Other Building Costs ,West and Southern Africa 
DFID,DFID,02/08/2012,Clinton Health Access Initiative  Inc ,"1,139,956.84",Aid Programme - Accountable Grant Payments ,Asia  Caribbean and Overseas Territories 
DFID,DFID,07/08/2012,FAO ,"291,936.00",Aid Programme - Core contributions ,Asia  Caribbean and Overseas Territories 
DFID,DFID,31/08/2012,Clinton Health Access Initiative  Inc ,"1,243,426.86",Aid Programme - Accountable Grant Payments ,Asia  Caribbean and Overseas Territories 
DFID,DFID,10/08/2012,Pilgrims Group ,555.16,Training Providers/Facilitation Services ,East and Central Africa 
DFID,DFID,17/08/2012,University Of Leicester ,"3,675.00",Further Education costs ,West and Southern Africa 
DFID,DFID,03/08/2012,FCO SERVICES ,"10,112.92",Computer Consumables ,East and Central Africa 
DFID,DFID,06/08/2012,Kitchen World P.L.C. ,"3,762.86",Repairs  Maint  Alter - Property & Constrct. Services ,East and Central Africa 
DFID,DFID,08/08/2012,Vodacom ,540.73,Telephone Usage & services ,West and Southern Africa 
DFID,DFID,22/08/2012,FCO ,"2,407.67",Vehicle Petrol & Oil ,West and Southern Africa 
DFID,DFID,23/08/2012,Vodacom ,721.31,Telephone Usage & services ,West and Southern Africa 
DFID,DFID,08/08/2012,Vodacom ,"1,080.70",Telephone Usage & services ,West and Southern Africa 
DFID,DFID,23/08/2012,Vodacom ,"1,516.63",Telephone Usage & services ,West and Southern Africa 
DFID,DFID,08/08/2012,Supplier Name withheld ,"8,510.24",Secure Staff Accomodation ,West and Southern Africa 
DFID,DFID,08/08/2012,Supplier Name withheld ,"8,515.70",Secure Staff Accomodation ,West and Southern Africa 
DFID,DFID,01/08/2012,Supplier Name withheld ,"9,869.67",Secure Staff Accomodation ,West and Southern Africa 
DFID,DFID,16/08/2012,Supplier Name withheld ,"9,808.43",Secure Staff Accomodation ,West and Southern Africa 
DFID,DFID,22/08/2012,Ets JIN-HUA ,"7,219.68",Cleaning Costs ,West and Southern Africa 
DFID,DFID,14/08/2012,Crown Agents Bank - DFID Kenya ,"100,000.00",Aid Programme - Accountable Grant Payments ,East and Central Africa 
DFID,DFID,08/08/2012,The Express Travel Group ,794.22,Air fares ,East and Central Africa 
DFID,DFID,17/08/2012,Yoseph Endeshaw ,"4,152.35",Technical and Advisory Services ,East and Central Africa 
DFID,DFID,17/08/2012,Mango Production PLC ,"15,647.72",Technical and Advisory Services ,East and Central Africa 
DFID,DFID,17/08/2012,Ethio Enter Educate Promotion  ,"29,514.52",Technical and Advisory Services ,East and Central Africa 
DFID,DFID,31/08/2012,SAFECON Electro Mechanical Works PLC ,"18,263.91",Repairs  Maint  Alter - Property & Constrct. Services ,East and Central Africa 
DFID,DFID,24/08/2012,The Express Travel Group ,795.85,Training - Travel & Subsistence ,East and Central Africa 
DFID,DFID,08/08/2012,Harmony  Hotel ,"1,311.99",Hotels - Accommodation only ,East and Central Africa 
DFID,DFID,08/08/2012,Harmony  Hotel ,731.35,Hotels - Accommodation only ,East and Central Africa 
DFID,DFID,17/08/2012,Pilgrims Group ,630.16,Training - Course Fees ,East and Central Africa 
DFID,DFID,02/08/2012,Birgit Weyss ,"1,886.19",Technical and Advisory Services ,West and Southern Africa 
DFID,DFID,03/08/2012,Birgit Weyss ,"1,898.33",Technical and Advisory Services ,West and Southern Africa 
DFID,DFID,27/08/2012,IBRD HSBC T ,"1,023,000.00",Aid Programme - Trust Funds contributions ,East and Central Africa 
DFID,DFID,31/08/2012,HEALTH PARTNERS INTERNATIONAL ,"95,407.00",Technical and Advisory Services ,East and Central Africa 
DFID,DFID,26/08/2012,Supplier Name withheld ,858.32,Generators & spares ,Western Asia and Stabilisation Division 
DFID,DFID,27/08/2012,Supplier Name withheld ,"1,259.06",other information and communication technologies ,Western Asia and Stabilisation Division 
DFID,DFID,09/08/2012,Supplier Name withheld ,739.97,Training - Course Fees ,Western Asia and Stabilisation Division 
DFID,DFID,27/08/2012,Supplier Name withheld ,"13,190.87",Oil - Other Utilities ,Western Asia and Stabilisation Division 
DFID,DFID,27/08/2012,Supplier Name withheld ,"1,903.67",Telephone Usage & services ,Western Asia and Stabilisation Division 
DFID,DFID,17/08/2012,Supplier Name withheld ,"1,077.76",Hostile Environment Training ,Western Asia and Stabilisation Division 
DFID,DFID,27/08/2012,Supplier Name withheld ,"1,522.02",Oil - Other Utilities ,Western Asia and Stabilisation Division 
DFID,DFID,27/08/2012,Supplier Name withheld ,517.40,Training - Travel & Subsistence ,Western Asia and Stabilisation Division 
DFID,DFID,27/08/2012,Supplier Name withheld ,662.15,Telephone Usage & services ,Western Asia and Stabilisation Division 
DFID,DFID,07/08/2012,WIHBACO (GH) LIMITED ,599.58,Office Supplies ,West and Southern Africa 
DFID,DFID,22/08/2012,Eyaqueen ,"1,638.51",Facilities Management payments ,West and Southern Africa 
DFID,DFID,30/08/2012,EuroTours Ghana Ltd ,"1,677.90",Training - Travel & Subsistence ,West and Southern Africa 
DFID,DFID,06/08/2012,B & D Consultancy Company Limited ,531.15,Facilities Management payments ,West and Southern Africa 
DFID,DFID,08/08/2012,PLANNED PARENTHOOD ASSOCIATION OF GHANA ,"19,467.09",Aid Programme - Accountable Grant Payments ,West and Southern Africa 
DFID,DFID,08/08/2012,School for Life ,"398,957.53",Aid Programme - Accountable Grant Payments ,West and Southern Africa 
DFID,DFID,08/08/2012,ADAM SMITH INTERNATIONAL  LTD ,"161,277.92",Technical and Advisory Services ,West and Southern Africa 
DFID,DFID,15/08/2012,ADAM SMITH INTERNATIONAL  LTD ,"161,406.25",Technical and Advisory Services ,West and Southern Africa 
DFID,DFID,06/08/2012,Ministry of Finance and National Planning ,"12,500,000.00",Aid Programme - Poverty Reduction Budget Support ,West and Southern Africa 
DFID,DFID,28/08/2012,ASSOCIATES FOR INTERNATIONAL DEVELOPMENT (AID INC) ,"38,883.80",Technical and Advisory Services ,Asia  Caribbean and Overseas Territories 
DFID,DFID,14/08/2012,Gozde Avci ,"3,514.50",Technical and Advisory Services ,Asia  Caribbean and Overseas Territories 
DFID,DFID,14/08/2012,Gozde Avci ,763.49,Technical and Advisory Services ,Asia  Caribbean and Overseas Territories 
DFID,DFID,02/08/2012,Maria von Wogau -Consultoria ,"2,557.54",Technical and Advisory Services ,West and Southern Africa 
DFID,DFID,13/08/2012,Ximungo Consultores  Lda ,"4,022.96",Technical and Advisory Services ,West and Southern Africa 
DFID,DFID,31/08/2012,FinMark  TRUST ,"1,151,591.94",Aid Programme - Accountable Grant Payments ,West and Southern Africa 
DFID,DFID,20/08/2012,Ministry of Health  Government of Ethiopia Health Sector Development Programme ,"68,000,000.00",Aid Programme - Poverty Reduction Budget Support ,East and Central Africa 
DFID,DFID,15/08/2012,NP (SL) Ltd ,545.88,Generators & spares ,West and Southern Africa 
DFID,DFID,24/08/2012,Bassel & Alaa Enterprise ,"23,897.98",Generators & spares ,West and Southern Africa 
DFID,DFID,16/08/2012,Recipient name withheld ,"1,908.30",Air fares ,West and Southern Africa 
DFID,DFID,15/08/2012,NP (SL) Ltd ,"4,912.92",Generators & spares ,West and Southern Africa 
DFID,DFID,16/08/2012,Recipient name withheld ,570.00,Hotels - Accommodation only ,West and Southern Africa 
DFID,DFID,23/08/2012,ADAM SMITH INTERNATIONAL  LTD ,"16,366.41",Technical and Advisory Services ,West and Southern Africa 
DFID,DFID,14/08/2012,Toyota de Mocambique  SARL ,522.03,Vehicle Repairs & Maintenance ,West and Southern Africa 
DFID,DFID,31/08/2012,PRICEWATERHOUSECOOPERS ,"26,477.90",Technical and Advisory Services ,East and Central Africa 
DFID,DFID,16/08/2012,HLSP LIMITED ,"15,054.86",Technical and Advisory Services ,East and Central Africa 
DFID,DFID,29/08/2012,Grace Achieng Okonji ,"2,750.96",Technical and Advisory Services ,East and Central Africa 
DFID,DFID,24/08/2012,UNOPS ,"150,000.00",Aid Programme - Voluntary contributions ,East and Central Africa 
DFID,DFID,16/08/2012,dan whitaker ,"5,500.00",Technical and Advisory Services ,East and Central Africa 
DFID,DFID,29/08/2012,PriceWaterhouseCoopers ,683.27,Technical and Advisory Services ,East and Central Africa 
DFID,DFID,29/08/2012,PriceWaterhouseCoopers ,683.27,Technical and Advisory Services ,East and Central Africa 
DFID,DFID,02/08/2012,Supplier Name Withheld ,"9,469.74",Air fares ,East and Central Africa 
DFID,DFID,08/08/2012,BCD Travel (USD) ,"1,023.05",UK Staff overseas - Flexi Travel Allowance ,East and Central Africa 
DFID,DFID,08/08/2012,BCD Travel (USD) ,"1,026.89",Training - Travel & Subsistence ,East and Central Africa 
DFID,DFID,08/08/2012,BCD Travel (USD) ,857.23,Air fares ,East and Central Africa 
DFID,DFID,08/08/2012,BCD Travel (USD) ,857.23,Air fares ,East and Central Africa 
DFID,DFID,22/08/2012,BCD Travel (KSH) ,875.25,Air fares ,East and Central Africa 
DFID,DFID,08/08/2012,BCD Travel (USD) ,700.38,Training - Travel & Subsistence ,East and Central Africa 
DFID,DFID,07/08/2012,Supplier Name withheld ,"5,802.04",Air fares ,East and Central Africa 
DFID,DFID,08/08/2012,BCD Travel (USD) ,"1,523.69",Air fares ,East and Central Africa 
DFID,DFID,07/08/2012,Supplier Name withheld ,"3,379.75",Secure Staff Accomodation ,East and Central Africa 
DFID,DFID,07/08/2012,Fairview Hotel ,"1,316.81",Hotels - Accommodation only ,East and Central Africa 
DFID,DFID,07/08/2012,Fairview Hotel ,557.80,Hotels - Accommodation only ,East and Central Africa 
DFID,DFID,03/08/2012,Peninnah Nguli ,770.63,Training - Course Fees ,East and Central Africa 
DFID,DFID,23/08/2012,BCD Travel (USD) ,694.27,Air fares ,East and Central Africa 
DFID,DFID,21/08/2012,WHO (GENEVA) ,"53,000,000.00",Aid Programme - Core contributions ,International Finance Division 
DFID,DFID,13/08/2012,Pilgrims Group ,800.00,Hostile Environment Training ,Research and Evidence Division 
DFID,DFID,22/08/2012,R M B Engineers and Builders Pvt Ltd ,644.71,Facilities Management payments ,Asia  Caribbean and Overseas Territories 
DFID,DFID,29/08/2012,John Sanday Associates Pvt. Ltd ,527.24,Facilities Management payments ,Asia  Caribbean and Overseas Territories 
DFID,DFID,20/08/2012,Summit Hotel Pvt Ltd ,905.68,Hotels - Accommodation only ,Asia  Caribbean and Overseas Territories 
DFID,DFID,30/08/2012,TURNER & TOWNSEND ,"2,260.93",Technical and Advisory Services ,Asia  Caribbean and Overseas Territories 
DFID,DFID,22/08/2012,R M B Engineers and Builders Pvt Ltd ,"1,731.88",Facilities Management payments ,Asia  Caribbean and Overseas Territories 
DFID,DFID,29/08/2012,John Sanday Associates Pvt. Ltd ,"2,445.95",Facilities Management payments ,Asia  Caribbean and Overseas Territories 
DFID,DFID,13/08/2012,Paul Rogers PhD Consulting ,"8,789.26",Technical and Advisory Services ,Asia  Caribbean and Overseas Territories 
DFID,DFID,20/08/2012,Summit Hotel Pvt Ltd ,"1,250.30",Hotels - Accommodation only ,Asia  Caribbean and Overseas Territories 
DFID,DFID,20/08/2012,Jaya Travels & Tours Pvt Ltd. (US$) ,754.78,Air fares ,Asia  Caribbean and Overseas Territories 
DFID,DFID,08/08/2012,ADAM SMITH INTERNATIONAL  LTD ,"241,158.30",Technical and Advisory Services ,West and Southern Africa 
DFID,DFID,08/08/2012,ADAM SMITH INTERNATIONAL  LTD ,"385,370.03",Technical and Advisory Services ,West and Southern Africa 
DFID,DFID,31/08/2012,PRICEWATERHOUSECOOPERS ,"50,747.42",Technical and Advisory Services ,West and Southern Africa 
DFID,DFID,09/08/2012,Laico Umubano Hotel ,884.75,Hotels - Accommodation only ,East and Central Africa 
DFID,DFID,14/08/2012,EWSA ,764.06,Electricity ,East and Central Africa 
DFID,DFID,21/08/2012,AZ IMPEX ,688.23,Generators & spares ,East and Central Africa 
DFID,DFID,22/08/2012,THE NEW TIMES ,"1,061.97",Office Supplies ,East and Central Africa 
DFID,DFID,22/08/2012,THE NEW TIMES ,"1,327.46",Office Supplies ,East and Central Africa 
DFID,DFID,09/08/2012,AMEKI-MEUBLES ,"1,127.11",Furniture & Fittings ,East and Central Africa 
DFID,DFID,02/08/2012,Kobil Petroleum Rwanda SARL ,"4,829.61",Vehicle Petrol & Oil ,East and Central Africa 
DFID,DFID,02/08/2012,Kobil Petroleum Rwanda SARL ,"3,062.54",Vehicle Petrol & Oil ,East and Central Africa 
DFID,DFID,02/08/2012,Beau Sejour Hotel ,647.48,Hotels - Accommodation only ,East and Central Africa 
DFID,DFID,02/08/2012,Lemigo Hotel ,690.54,Hotels - Accommodation only ,East and Central Africa 
DFID,DFID,23/08/2012,Hays Specialist Recruitment Ltd ,"1,045.48",Contract & Agency Staff ,Policy Division 
DFID,DFID,20/08/2012,IIED  ,"633,155.00",Aid Programme - Accountable Grant Payments ,Policy Division 
DFID,DFID,06/08/2012,MOTT MACDONALD INTERNATIONAL ,"12,303.44",Technical and Advisory Services ,West and Southern Africa 
DFID,DFID,01/08/2012,HAREWELLE INTERNATIONAL LIMITED ,"18,695.40",Technical and Advisory Services ,West and Southern Africa 
DFID,DFID,15/08/2012,Karl Travel Agency ,649.46,Training - Travel & Subsistence ,West and Southern Africa 
DFID,DFID,29/08/2012, INTERNATIONAL ALERT ,"125,149.00",Aid Programme - Accountable Grant Payments ,East and Central Africa 
DFID,DFID,31/08/2012,BRITISH HIGH COMMISSION KLA ,601.75,Electricity ,East and Central Africa 
DFID,DFID,07/08/2012,ANISUMA TRADERS LTD ,"1,441.87",Furniture & Fittings ,East and Central Africa 
DFID,DFID,07/08/2012,ANISUMA TRADERS LTD ,648.46,Furniture & Fittings ,East and Central Africa 
DFID,DFID,29/08/2012,Elgon Terrace Hotel Limited ,541.04,Hotels - Accommodation only ,East and Central Africa 
DFID,DFID,31/08/2012,BRITISH HIGH COMMISSION KLA ,"1,221.74",Electricity ,East and Central Africa 
DFID,DFID,09/08/2012,Economic Policy Research Centre. ,"79,333.84",Aid Programme - Accountable Grant Payments ,East and Central Africa 
DFID,DFID,29/08/2012,ADAM SMITH INTERNATIONAL  LTD ,"55,469.35",Technical and Advisory Services ,East and Central Africa 
DFID,DFID,08/08/2012,pfeg ,"16,956.00",Technical and Advisory Services ,East and Central Africa 
DFID,DFID,24/08/2012,pfeg ,"25,434.00",Technical and Advisory Services ,East and Central Africa 
DFID,DFID,09/08/2012,Komawara ,630.20,Water charges ,West and Southern Africa 
DFID,DFID,02/08/2012,IDILMAT ,"1,470.59",Conferences  Seminars & Meeting/Event Resource ,West and Southern Africa 
DFID,DFID,07/08/2012,Supplier Name Withheld ,"5,765.53",Operating Lease rental of buildings ,West and Southern Africa 
DFID,DFID,07/08/2012,GreyStone Park Electrical ,"4,994.88",Repairs  Maint  Alter - Property & Constrct. Services ,West and Southern Africa 
DFID,DFID,07/08/2012,ZESA ,"3,409.54",Electricity ,West and Southern Africa 
DFID,DFID,17/08/2012,ECONET ,"1,515.30",Mobile telephones & accessories ,West and Southern Africa 
DFID,DFID,17/08/2012,ECONET ,527.15,Mobile telephones & accessories ,West and Southern Africa 
DFID,DFID,07/08/2012,Contrast Roofing Company ,567.26,Repairs  Maint  Alter - Property & Constrct. Services ,West and Southern Africa 
DFID,DFID,29/08/2012,FLIMAS ,"1,472.91",Medical/Health Services ,West and Southern Africa 
DFID,DFID,20/08/2012,Europcar Hire ,"1,639.57",Other passenger transport ,West and Southern Africa 
DFID,DFID,29/08/2012,FLIMAS ,"2,209.37",Medical/Health Services ,West and Southern Africa 
DFID,DFID,29/08/2012,ZESA ,"1,122.93",Electricity ,West and Southern Africa 
DFID,DFID,23/08/2012,ADAM SMITH INTERNATIONAL  LTD ,"73,919.65",Technical and Advisory Services ,East and Central Africa 
DFID,DFID,23/08/2012,ADAM SMITH INTERNATIONAL  LTD ,"166,526.27",Technical and Advisory Services ,East and Central Africa 
DFID,DFID,29/08/2012,GTZ GmBH Eschborn ,"198,500.00",Aid Programme - Joint programme contribution ,West and Southern Africa 
DFID,DFID,23/08/2012,Southern Sun Ridgeway ,560.43,Hotels - Accommodation only ,West and Southern Africa 
DFID,DFID,02/08/2012,Anti-Corruption Commission Republic of Zambia ,"399,216.95",Aid Programme - Other Financial Aid to Government ,West and Southern Africa 
DFID,DFID,02/08/2012,OPTIONS CONSULTANCY SERVICES LIMITED ,"70,462.08",Technical and Advisory Services ,West and Southern Africa 
DFID,DFID,22/08/2012,OPTIONS CONSULTANCY SERVICES LIMITED ,"63,157.24",Technical and Advisory Services ,West and Southern Africa 
DFID,DFID,22/08/2012,PUBLIC ADMINISTRATION INTERN ,"14,714.56",Technical and Advisory Services ,International Relations Division 
DFID,DFID,30/08/2012,PUBLIC ADMINISTRATION INTERN ,"30,513.46",Technical and Advisory Services ,International Relations Division 
DFID,DFID,16/08/2012,REPIM ,"20,944.57",Technical and Advisory Services ,International Relations Division 
DFID,DFID,16/08/2012,TURNER & TOWNSEND ,"2,789.11",Repairs  Maint  Alter - Property & Constrct. Services ,Security & Humanitarian and Middle East Division 
DFID,DFID,31/08/2012,TURNER & TOWNSEND ,"2,768.00",Repairs  Maint  Alter - Property & Constrct. Services ,Security & Humanitarian and Middle East Division 
DFID,DFID,10/08/2012,WFP CONTRIBUTIONS UNIT ,"1,200,000.00",Aid Programme - Voluntary contributions ,Security & Humanitarian and Middle East Division 
DFID,DFID,13/08/2012,International Organization for Migration ,"2,500,000.00",Aid Programme - Humanitarian Material Relief Assistance and Services ,Western Asia and Stabilisation Division 
DFID,DFID,16/08/2012,REPIM ,"7,866.50",Technical and Advisory Services ,International Relations Division 
DFID,DFID,14/08/2012,NGO Kosovo Relief Committee ,"19,693.04",Aid Programme - Accountable Grant Payments ,International Relations Division 
DFID,DFID,17/08/2012,Jeffery Travels ,"1,226.75",Air fares ,West and Southern Africa 
DFID,DFID,29/08/2012,Faden House ,569.62,Hotels - Accommodation only ,West and Southern Africa 
DFID,DFID,07/08/2012,POPULATION  SERVICES INTERNATIONAL ,"1,440,153.00",Aid Programme - Accountable Grant Payments ,East and Central Africa 
DFID,DFID,09/08/2012,DANISH REFUGEE COUNCIL ,"410,314.00",Aid Programme - Accountable Grant Payments ,East and Central Africa 
DFID,DFID,10/08/2012,Public Health Solutions Limited ,"1,824.00",Facilities Management payments ,East and Central Africa 
DFID,DFID,07/08/2012,A & M Executive Cleaning services Co. Ltd ,722.22,Facilities Management payments ,East and Central Africa 
DFID,DFID,07/08/2012,A & M Executive Cleaning services Co. Ltd ,693.08,Facilities Management payments ,East and Central Africa 
DFID,DFID,17/08/2012,TOTAL Uganda Ltd ,512.74,Vehicle Petrol & Oil ,East and Central Africa 
DFID,DFID,17/08/2012,UMEME Ltd ,"1,177.17",Electricity ,East and Central Africa 
DFID,DFID,29/08/2012,FIRE MASTERS LTD ,652.66,Facilities Management payments ,East and Central Africa 
DFID,DFID,07/08/2012,HEALTH PARTNERS INTERNATIONAL ,"324,810.15",Technical and Advisory Services ,West and Southern Africa 
DFID,DFID,01/08/2012,Supplier Name withheld ,"69,178.00",Aid Programme - Accountable Grant Payments ,Western Asia and Stabilisation Division 
DFID,DFID,23/08/2012,University of Plymouth Enterprise Ltd ,"62,432.25",Research & Development costs ,Research and Evidence Division 
DFID,DFID,30/08/2012,PRICEWATERHOUSECOOPERS ,"616,762.67",Technical and Advisory Services ,West and Southern Africa 
DFID,DFID,16/08/2012,INTERNATIONAL RESCUE COMMITTEE UK ,"2,349,185.00",Aid Programme - Accountable Grant Payments ,West and Southern Africa 
DFID,DFID,21/08/2012,MERLIN ,"2,149,609.00",Aid Programme - Accountable Grant Payments ,West and Southern Africa 
DFID,DFID,16/08/2012,INTERNATIONAL RESCUE COMMITTEE UK ,"4,054,763.00",Aid Programme - Accountable Grant Payments ,West and Southern Africa 
DFID,DFID,21/08/2012,DAI EUROPE LIMITED ,"296,703.46",Technical and Advisory Services ,West and Southern Africa 
DFID,DFID,30/08/2012,POPULATION  SERVICES INTERNATIONAL ,"1,001,255.57",Aid Programme - Accountable Grant Payments ,West and Southern Africa 
DFID,DFID,22/08/2012,KPMG EAST AFRICA LTD ,"166,090.00",Technical and Advisory Services ,East and Central Africa 
DFID,DFID,30/08/2012,ALLIANCE FOR A GREEN REVOLUTION IN AFRICA ,"1,239,712.48",Aid Programme - Accountable Grant Payments ,East and Central Africa 
DFID,DFID,13/08/2012,Aga Khan Foundation (Tanzania) ,"382,730.00",Aid Programme - Accountable Grant Payments ,East and Central Africa 
DFID,DFID,02/08/2012,Total LandCare ,"113,475.19",Aid Programme - Accountable Grant Payments ,West and Southern Africa 
DFID,DFID,06/08/2012,SHMPA ,"107,354.49",Aid Programme - Accountable Grant Payments ,West and Southern Africa 
DFID,DFID,20/08/2012,WFP CONTRIBUTIONS UNIT ,"3,000,000.00",Aid Programme - Emergency Food Aid ,West and Southern Africa 
DFID,DFID,06/08/2012,CONCERN UNIVERSAL ,"415,659.44",Aid Programme - Accountable Grant Payments ,West and Southern Africa 
DFID,DFID,31/08/2012,Institute of Social and Policy Sciences ,"20,114.47",Technical and Advisory Services ,Western Asia and Stabilisation Division 
DFID,DFID,15/08/2012,Apex Consulting Pakistan ,"1,616.85",Technical and Advisory Services ,Western Asia and Stabilisation Division 
DFID,DFID,15/08/2012,Apex Consulting Pakistan ,"3,233.70",Technical and Advisory Services ,Western Asia and Stabilisation Division 
DFID,DFID,30/08/2012,Apex Consulting Pakistan ,"3,160.22",Technical and Advisory Services ,Western Asia and Stabilisation Division 
DFID,DFID,24/08/2012,SHAHID HAFIZ KARDAR ,"4,275.97",Technical and Advisory Services ,Western Asia and Stabilisation Division 
DFID,DFID,09/08/2012,PEARL CONTINENTAL HOTEL LAHORE ,"1,481.68",Hotels - Accommodation only ,Western Asia and Stabilisation Division 
DFID,DFID,15/08/2012,Semiotics Consultants (Pvt) Limited ,"18,605.85",Technical and Advisory Services ,Western Asia and Stabilisation Division 
DFID,DFID,30/08/2012,Ali Salman ,"2,316.52",Technical and Advisory Services ,Western Asia and Stabilisation Division 
DFID,DFID,15/08/2012,PACT INC ,"143,196.64",Aid Programme - Accountable Grant Payments ,East and Central Africa 
DFID,DFID,23/08/2012, University Of Oxford ,"104,509.75",Research & Development costs ,Research and Evidence Division 
DFID,DFID,28/08/2012,SAVE THE CHILDREN UK ,"467,409.00",Aid Programme - Accountable Grant Payments ,East and Central Africa 
DFID,DFID,22/08/2012,United Nations General Trust Fund Account ,"1,000,000.00",Aid Programme - Core contributions ,Security & Humanitarian and Middle East Division 
DFID,DFID,09/08/2012,Foreign & Commonwealth Office ,"45,143.82",Secure Staff Accomodation ,Security & Humanitarian and Middle East Division 
DFID,DFID,29/08/2012,LOGICACMG UK LTD. ,"45,250.00",Computer software maintenance ,Business Solutions Division Level 
DFID,DFID,30/08/2012,CABLE & WIRELESS COMMUN ,"47,992.67",Data Network - land lines ,Business Solutions Division Level 
DFID,DFID,22/08/2012,Heraklion Nig. Ltd ,"12,039.78",Facilities Management payments ,West and Southern Africa 
DFID,DFID,21/08/2012,Pilgrims Group ,"1,828.29",Training - Course Fees ,West and Southern Africa 
DFID,DFID,21/08/2012,Pilgrims Group ,709.14,Training - Course Fees ,West and Southern Africa 
DFID,DFID,02/08/2012,Supplier Name Withheld ,"16,173.37",Facilities Management payments ,West and Southern Africa 
DFID,DFID,28/08/2012,Supplier Name withheld ,"52,644.16",Secure Staff Accomodation ,West and Southern Africa 
DFID,DFID,21/08/2012,Supplier Name withheld ,"54,518.18",Secure Staff Accomodation ,East and Central Africa 
DFID,DFID,17/08/2012,Crown Agents Bank - DFID Malawi ,"61,560.89",Technical and Advisory Services ,West and Southern Africa 
DFID,DFID,15/08/2012,INTERNATIONAL CENTRE FOR DIARRO ,"14,635.00",Training Providers/Facilitation Services ,Research and Evidence Division 
DFID,DFID,23/08/2012,Pilgrims Group ,555.16,Hostile Environment Training ,Security & Humanitarian and Middle East Division 
DFID,DFID,09/08/2012,Safeguard ,555.16,Hostile Environment Training ,Security & Humanitarian and Middle East Division 
DFID,DFID,15/08/2012,FOCUS HUMANITARIAN ASSISTANCE ,"50,522.64",Aid Programme - Accountable Grant Payments ,Western Asia and Stabilisation Division 
DFID,DFID,10/08/2012,PRICEWATERHOUSECOOPERS ,"21,491.46",Technical and Advisory Services ,Policy Division 
DFID,DFID,30/08/2012,PRICEWATERHOUSECOOPERS ,"18,586.80",Technical and Advisory Services ,Policy Division 
DFID,DFID,31/08/2012,PRICEWATERHOUSECOOPERS ,"33,260.38",Technical and Advisory Services ,Asia  Caribbean and Overseas Territories 
DFID,DFID,23/08/2012,WHYDAH CONSULTING LYD ,"2,830.78",Technical and Advisory Services ,West and Southern Africa 
DFID,DFID,20/08/2012,EPOS Health Consultants GmbH ,"32,369.69",Technical and Advisory Services ,West and Southern Africa 
DFID,DFID,01/08/2012,HAREWELLE INTERNATIONAL LIMITED ,"17,081.96",Technical and Advisory Services ,West and Southern Africa 
DFID,DFID,03/08/2012,HLSP LIMITED ,"10,150.00",Technical and Advisory Services ,West and Southern Africa 
DFID,DFID,06/08/2012,Origin8 Saatchi & Saatchi ,"1,022.07",Technical and Advisory Services ,West and Southern Africa 
DFID,DFID,15/08/2012,Hasaan Khawar ,"3,250.27",Technical and Advisory Services ,Western Asia and Stabilisation Division 
DFID,DFID,23/08/2012,Asad Abbas Maken ,"3,260.46",Technical and Advisory Services ,Western Asia and Stabilisation Division 
DFID,DFID,08/08/2012,Ernst & Young Ford Rhodes Sidat  Hyder ,"8,406.19",Technical and Advisory Services ,Western Asia and Stabilisation Division 
DFID,DFID,29/08/2012,IBRD (HSBC)  C/O THE WORLD BANK ,"500,000.00",Aid Programme - Trust Funds contributions ,Asia  Caribbean and Overseas Territories 
DFID,DFID,29/08/2012,KUONI BUSINESS TRAVEL INDIA PVT LTD ,600.00,Air fares ,Communications Division 
DFID,DFID,17/08/2012,Global Development Network ,"205,000.00",Aid Programme - Accountable Grant Payments ,Research and Evidence Division 
DFID,DFID,03/08/2012,PRACTICAL ACTION ,"276,369.76",Research & Development costs ,Research and Evidence Division 
DFID,DFID,02/08/2012,Unit 4 ,"2,386.18",Consultancy Services ,Finance and Corporate Performance Division 
DFID,DFID,16/08/2012,Unit 4 ,"3,579.27",Consultancy Services ,Finance and Corporate Performance Division 
DFID,DFID,15/08/2012,Faden House ,"1,054.17",Training - Travel & Subsistence ,West and Southern Africa 
DFID,DFID,14/08/2012,Pilgrims Group ,"1,212.38",Training - Travel & Subsistence ,West and Southern Africa 
DFID,DFID,07/08/2012,Grand Hotel ,785.97,Travel - Subsistence ,West and Southern Africa 
DFID,DFID,07/08/2012,Jeffery Travels ,591.93,Training - Travel & Subsistence ,West and Southern Africa 
DFID,DFID,07/08/2012,Jeffery Travels ,929.53,Air fares ,West and Southern Africa 
DFID,DFID,07/08/2012,Jeffery Travels ,"1,468.29",Air fares ,West and Southern Africa 
DFID,DFID,07/08/2012,Jeffery Travels ,591.93,Training - Travel & Subsistence ,West and Southern Africa 
DFID,DFID,08/08/2012, WORLD RESOURCES INSTITUTE ,"97,748.00",Aid Programme - Accountable Grant Payments ,Asia  Caribbean and Overseas Territories 
DFID,DFID,20/08/2012,Supplier Name Withheld ,"13,392.00",Technical and Advisory Services ,Asia  Caribbean and Overseas Territories 
DFID,DFID,08/08/2012,UNOPS ,"167,000.00",Aid Programme - Voluntary contributions ,East and Central Africa 
DFID,DFID,17/08/2012,BMB MOTT  MACDONALD ,"278,890.49",Technical and Advisory Services ,Asia  Caribbean and Overseas Territories 
DFID,DFID,17/08/2012,BMB MOTT  MACDONALD ,"80,603.82",Technical and Advisory Services ,Asia  Caribbean and Overseas Territories 
DFID,DFID,27/08/2012,Supplier Name withheld ,"28,206.50",Technical and Advisory Services ,Western Asia and Stabilisation Division 
DFID,DFID,03/08/2012,Supplier Name withheld ,"5,570.00",Technical and Advisory Services ,Western Asia and Stabilisation Division 
DFID,DFID,03/08/2012,Supplier Name withheld ,"3,275.00",Technical and Advisory Services ,Western Asia and Stabilisation Division 
DFID,DFID,13/08/2012,Supplier Name withheld ,"76,690.34",Technical and Advisory Services ,Western Asia and Stabilisation Division 
DFID,DFID,14/08/2012,THE PRESS ASSOCIATION ,558.07,Subscriptions ,Communications Division 
DFID,DFID,30/08/2012,Durrants lTD ,"1,283.71",Subscriptions ,Communications Division 
DFID,DFID,23/08/2012,Alexander Consulting ,"12,544.15",Technical and Advisory Services ,East and Central Africa 
DFID,DFID,22/08/2012,Supplier Name withheld ,669.76,Hotels - Accommodation only ,West and Southern Africa 
DFID,DFID,14/08/2012,Wyke Consultancy Limited ,"2,000.00",Technical and Advisory Services ,West and Southern Africa 
DFID,DFID,22/08/2012,Supplier Name withheld ,574.08,Hotels - Accommodation only ,West and Southern Africa 
DFID,DFID,02/08/2012,Pekolyn Tech. Services ,"1,438.94",Facilities Management payments ,West and Southern Africa 
DFID,DFID,02/08/2012,Pekolyn Tech. Services ,"1,804.03",Facilities Management payments ,West and Southern Africa 
DFID,DFID,02/08/2012,Pekolyn Tech. Services ,692.40,Facilities Management payments ,West and Southern Africa 
DFID,DFID,02/08/2012,Pekolyn Tech. Services ,"1,676.19",Facilities Management payments ,West and Southern Africa 
DFID,DFID,02/08/2012,Enjay Technical Services Limited ,523.91,Generators & spares ,West and Southern Africa 
DFID,DFID,28/08/2012,SAVE THE CHILDREN UK ,"239,281.00",Aid Programme - Accountable Grant Payments ,East and Central Africa 
DFID,DFID,06/08/2012,ADAM SMITH INTERNATIONAL  LTD ,"332,786.82",Technical and Advisory Services ,East and Central Africa 
DFID,DFID,09/08/2012,ADAM SMITH INTERNATIONAL  LTD ,"238,772.09",Technical and Advisory Services ,East and Central Africa 
DFID,DFID,09/08/2012,ADAM SMITH INTERNATIONAL  LTD ,"172,326.90",Technical and Advisory Services ,East and Central Africa 
DFID,DFID,14/08/2012,Center for Strategic Analyses and Research (C-SAR) ,"7,987.50",Aid Programme - Accountable Grant Payments ,East and Central Africa 
DFID,DFID,30/08/2012,RL TECHNOLOGY NIGERIA LIMITED ,"1,100.63",Technical and Advisory Services ,West and Southern Africa 
DFID,DFID,13/08/2012,Inshan Ali Nawaz ,"5,333.12",Technical and Advisory Services ,Western Asia and Stabilisation Division 
DFID,DFID,13/08/2012,Dr Ghulam Habib ,"2,033.89",Technical and Advisory Services ,Western Asia and Stabilisation Division 
DFID,DFID,13/08/2012,Sarah Saeed ,"2,498.39",Technical and Advisory Services ,Western Asia and Stabilisation Division 
DFID,DFID,17/08/2012,Protea Hotel Leadway ,"1,696.73",Technical and Advisory Services ,West and Southern Africa 
DFID,DFID,06/08/2012,CHARLES KENDALL & PARTNERS LTD(FEE ,"51,326.03",Auditors Assurance Service ,West and Southern Africa 
DFID,DFID,16/08/2012,LTS International Ltd. ,"20,863.33",Technical and Advisory Services ,East and Central Africa 
DFID,DFID,24/08/2012,World Food  Programme ,"1,400,000.00",Aid Programme - Voluntary contributions ,East and Central Africa 
DFID,DFID,03/08/2012,Optimoz Lda ,"9,695.14",Technical and Advisory Services ,West and Southern Africa 
DFID,DFID,16/08/2012,THE STATIONERY OFFICE LIMITED ,"2,671.43",Print Services ,Finance and Corporate Performance Division 
DFID,DFID,10/08/2012,THE HALO TRUST ,"11,054.00",Technical and Advisory Services ,Security & Humanitarian and Middle East Division 
DFID,DFID,13/08/2012,Zelalem Lema Moti ,"16,383.83",Technical and Advisory Services ,East and Central Africa 
DFID,DFID,15/08/2012,Rebecca Smith ,"3,632.59",Technical and Advisory Services ,East and Central Africa 
DFID,DFID,30/08/2012,Zelalem Lema Moti ,"5,173.99",Technical and Advisory Services ,East and Central Africa 
DFID,DFID,31/08/2012,Louise O'Rourke ,"8,548.18",Technical and Advisory Services ,East and Central Africa 
DFID,DFID,30/08/2012,Lestrade Consultancy Ltd ,"20,625.00",Technical and Advisory Services ,East and Central Africa 
DFID,DFID,03/08/2012,Recon Ltd ,"9,241.68",Technical and Advisory Services ,Western Asia and Stabilisation Division 
DFID,DFID,03/08/2012,WILSON  BRYDON & KENNEDY ,"1,275.87",Technical and Advisory Services ,Western Asia and Stabilisation Division 
DFID,DFID,03/08/2012,WILSON  BRYDON & KENNEDY ,"20,700.00",Technical and Advisory Services ,Western Asia and Stabilisation Division 
DFID,DFID,03/08/2012,Fiona Johnstone ,619.97,Air fares ,Western Asia and Stabilisation Division 
DFID,DFID,09/08/2012,Southern Sun Ridgeway ,752.94,Training - Travel & Subsistence ,Western Asia and Stabilisation Division 
DFID,DFID,09/08/2012,Southern Sun Ridgeway ,761.92,Training - Travel & Subsistence ,Western Asia and Stabilisation Division 
DFID,DFID,06/08/2012,Law Enforcement consulting Ltd ,"1,200.00",Technical and Advisory Services ,Western Asia and Stabilisation Division 
DFID,DFID,02/08/2012,METROP0LITAN POLICE ,"7,298.81",Technical and Advisory Services ,Western Asia and Stabilisation Division 
DFID,DFID,22/08/2012,Valsa Shah Consulting ,"8,160.00",Technical and Advisory Services ,East and Central Africa 
DFID,DFID,17/08/2012,British High Commission ,707.28,Vehicle Petrol & Oil ,West and Southern Africa 
DFID,DFID,24/08/2012,NP (SL) Ltd ,"1,498.09",Generators & spares ,West and Southern Africa 
DFID,DFID,17/08/2012,British High Commission ,"1,060.92",Vehicle Petrol & Oil ,West and Southern Africa 
DFID,DFID,17/08/2012,Oduntor C.Wilson ,"1,163.87",Generators & spares ,West and Southern Africa 
DFID,DFID,10/08/2012,James Thullah ,578.10,Facilities Management payments ,West and Southern Africa 
DFID,DFID,15/08/2012,Tokeair Limited ,"1,446.78",Air fares ,West and Southern Africa 
DFID,DFID,07/08/2012,James Thullah ,"1,027.18",Facilities Management payments ,West and Southern Africa 
DFID,DFID,08/08/2012,NP (SL) Ltd ,"1,524.93",Generators & spares ,West and Southern Africa 
DFID,DFID,08/08/2012,NP (SL) Ltd ,"1,524.93",Generators & spares ,West and Southern Africa 
DFID,DFID,08/08/2012,Hema Trading ,"1,054.78",Facilities Management payments ,West and Southern Africa 
DFID,DFID,08/08/2012,NP (SL) Ltd ,940.49,Generators & spares ,West and Southern Africa 
DFID,DFID,08/08/2012,Supplier Name withheld ,"20,149.78",Technical and Advisory Services ,Western Asia and Stabilisation Division 
DFID,DFID,10/08/2012,UNICEF ,"758,151.00",Aid Programme - Humanitarian Material Relief Assistance and Services ,West and Southern Africa 
DFID,DFID,17/08/2012,SAFECON Electro Mechanical Works PLC ,"2,280.15",Repairs  Maint  Alter - Property & Constrct. Services ,East and Central Africa 
DFID,DFID,27/08/2012,Mudin Fereja Nuri ,"1,105.09",Uniforms ,East and Central Africa 
DFID,DFID,08/08/2012,Laico Umubano Hotel ,934.67,Travel - Subsistence ,East and Central Africa 
DFID,DFID,08/08/2012,Laico Umubano Hotel ,"5,311.66",Hotels - Accommodation only ,East and Central Africa 
DFID,DFID,22/08/2012,PATRONICS SERVICES RWANDA LTD ,883.24,Facilities Management payments ,East and Central Africa 
DFID,DFID,22/08/2012,EWSA ,"5,156.25",Electricity ,East and Central Africa 
DFID,DFID,22/08/2012,MTN RWANDACELL ,"1,090.61",Telephone Usage & services ,East and Central Africa 
DFID,DFID,08/08/2012,QUINCAILLERIE ELEMAC LTD ,"1,394.87",Facilities Management payments ,East and Central Africa 
DFID,DFID,13/08/2012,Mekdim Enkossa Ayana ,"3,613.18",Technical and Advisory Services ,East and Central Africa 
DFID,DFID,31/08/2012,PRICEWATERHOUSECOOPERS ,"161,835.64",Technical and Advisory Services ,International Finance Division 
DFID,DFID,13/08/2012,Pilgrims Group ,752.11,Hostile Environment Training ,Western Asia and Stabilisation Division 
DFID,DFID,31/08/2012,ICPS ,"2,940.00",Conferences  Seminars & Meeting/Event Resource ,Western Asia and Stabilisation Division 
DFID,DFID,31/08/2012,Essex Police Authority  ,"6,138.55",Technical and Advisory Services ,Western Asia and Stabilisation Division 
DFID,DFID,31/08/2012,Essex Police Authority  ,"6,138.55",Technical and Advisory Services ,Western Asia and Stabilisation Division 
DFID,DFID,22/08/2012,Valsa Shah Consulting ,"2,379.85",Technical and Advisory Services ,East and Central Africa 
DFID,DFID,08/08/2012,SPECTRA  GROUP UK LTD ,"1,260.00",Storage & Distribution costs ,Western Asia and Stabilisation Division 
DFID,DFID,13/08/2012,SPECTRA  GROUP UK LTD ,"1,710.00",Storage & Distribution costs ,Western Asia and Stabilisation Division 
DFID,DFID,10/08/2012,FIREBRAND TRAINING LTD ,"2,075.00",Training - Course Fees ,Western Asia and Stabilisation Division 
DFID,DFID,27/08/2012,DAI EUROPE LIMITED ,"35,196.24",Technical and Advisory Services ,Western Asia and Stabilisation Division 
DFID,DFID,08/08/2012,DAI EUROPE LIMITED ,"21,450.94",Technical and Advisory Services ,Western Asia and Stabilisation Division 
DFID,DFID,08/08/2012,DAI EUROPE LIMITED ,"21,450.92",Technical and Advisory Services ,Western Asia and Stabilisation Division 
DFID,DFID,27/08/2012,DAI EUROPE LIMITED ,"35,196.24",Technical and Advisory Services ,Western Asia and Stabilisation Division 
DFID,DFID,17/08/2012,Semiotics Consultants (Pvt) Limited ,"3,223.83",Technical and Advisory Services ,Western Asia and Stabilisation Division 
DFID,DFID,23/08/2012,Faisal Mohammad ,"3,092.69",Technical and Advisory Services ,Western Asia and Stabilisation Division 
DFID,DFID,27/08/2012,DAI EUROPE LIMITED ,"90,789.00",Technical and Advisory Services ,Western Asia and Stabilisation Division 
DFID,DFID,23/08/2012,TecnoTronic Ltd ,964.57,Printer Consumables ,East and Central Africa 
DFID,DFID,22/08/2012,Ikondera Company Ltd ,"3,873.74",Facilities Management payments ,East and Central Africa 
DFID,DFID,22/08/2012,The East African/ Nation Media Group Limited ,507.94,Recruitment costs ,East and Central Africa 
DFID,DFID,22/08/2012,Architecture Pro Ltd (RW) ,"9,447.12",Repairs  Maint  Alter - Property & Constrct. Services ,East and Central Africa 
DFID,DFID,22/08/2012,Supplier Name withheld ,"7,619.05",Secure Staff Accomodation ,East and Central Africa 
DFID,DFID,22/08/2012,Ikondera Company Ltd ,"1,465.65",Facilities Management payments ,East and Central Africa 
DFID,DFID,22/08/2012,Ikondera Company Ltd ,"1,380.67",Facilities Management payments ,East and Central Africa 
DFID,DFID,09/08/2012,Southern Sun Ridgeway ,584.88,Training - Travel & Subsistence ,East and Central Africa 
DFID,DFID,09/08/2012,Southern Sun Ridgeway ,584.88,Training - Travel & Subsistence ,East and Central Africa 
DFID,DFID,23/08/2012,Mukwa Travel and Tours ,"6,425.29",Technical and Advisory Services ,West and Southern Africa 
DFID,DFID,29/08/2012,Mendizabal Ltd ,"9,259.00",Technical and Advisory Services ,West and Southern Africa 
DFID,DFID,09/08/2012,Southern Sun Ridgeway ,642.97,Training - Travel & Subsistence ,West and Southern Africa 
DFID,DFID,23/08/2012,Mac Recruitment ,"3,018.69",Recruitment costs ,West and Southern Africa 
DFID,DFID,23/08/2012,Lusaka Water & Sewerage Co Ltd ,705.44,Electricity ,West and Southern Africa 
DFID,DFID,10/08/2012,Sengoma Tree Cutters ,668.39,Other Building Costs ,West and Southern Africa 
DFID,DFID,30/08/2012,Origin8 Saatchi & Saatchi ,"1,428.65",Technical and Advisory Services ,West and Southern Africa 
DFID,DFID,31/08/2012,Origin8 Saatchi & Saatchi ,"1,020.41",Technical and Advisory Services ,West and Southern Africa 
DFID,DFID,28/08/2012,Supplier Name withheld ,"1,162.95",Secure Staff Accomodation ,Asia  Caribbean and Overseas Territories 
DFID,DFID,22/08/2012,Hanoi Toserco ,664.97,Air fares ,Asia  Caribbean and Overseas Territories 
DFID,DFID,28/08/2012,Supplier Name withheld ,"5,230.71",Secure Staff Accomodation ,Asia  Caribbean and Overseas Territories 
DFID,DFID,30/08/2012,Vietnam News ,592.02,Recruitment costs ,Asia  Caribbean and Overseas Territories 
DFID,DFID,09/08/2012,Recipient Name Withheld ,"1,148.80",Rail Transport ,Western Asia and Stabilisation Division 
DFID,DFID,27/08/2012,Viking Arms Ltd ,519.04,Training - Course Fees ,Western Asia and Stabilisation Division 
DFID,DFID,17/08/2012,AFS INTERNATIONAL ,627.92,Vehicle Repairs & Maintenance ,East and Central Africa 
DFID,DFID,27/08/2012,ETHIODER Pvt. Ltd.Co. Tour Operators ,686.34,Vehicle Repairs & Maintenance ,East and Central Africa 
DFID,DFID,27/08/2012,ETHIODER Pvt. Ltd.Co. Tour Operators ,599.46,Vehicle Repairs & Maintenance ,East and Central Africa 
DFID,DFID,07/08/2012,Haroon Engineering Limited ,541.59,Building Plant - Air Conditioners ,Asia  Caribbean and Overseas Territories 
DFID,DFID,07/08/2012,M/S Anik Enterprise ,"1,044.49",Building Plant - Air Conditioners ,Asia  Caribbean and Overseas Territories 
DFID,DFID,06/08/2012,Supplier Name withheld ,541.00,Secure Staff Accomodation ,Asia  Caribbean and Overseas Territories 
DFID,DFID,03/08/2012,Recipient Name Withheld ,"1,500,000.00",Aid Programme - Voluntary contributions ,Security & Humanitarian and Middle East Division 
DFID,DFID,27/08/2012,Supplier Name withheld ,"1,111.53",Secure Staff Accomodation ,West and Southern Africa 
DFID,DFID,28/08/2012,Royal Oak ,520.60,Cleaning Costs ,West and Southern Africa 
DFID,DFID,09/08/2012,ESCOM ,864.44,Electricity ,West and Southern Africa 
DFID,DFID,10/08/2012,Ulendo Safaris ,"1,404.81",Training - Travel & Subsistence ,West and Southern Africa 
DFID,DFID,16/08/2012,British High Commission ,"1,031.60",Vehicle Petrol & Oil ,West and Southern Africa 
DFID,DFID,16/08/2012,Ulendo Safaris ,917.46,Relocation costs ,West and Southern Africa 
DFID,DFID,27/08/2012,Supplier Name withheld ,"6,298.69",Secure Staff Accomodation ,West and Southern Africa 
DFID,DFID,17/08/2012,HEALTH PARTNERS INTERNATIONAL ,"47,622.83",Research & Development costs ,West and Southern Africa 
DFID,DFID,10/08/2012,COMMONWEALTH BROADCASTING ASSOCIATIO ,"303,311.18",Aid Programme - Accountable Grant Payments ,Communications Division 
DFID,DFID,09/08/2012,Foreign & Commonwealth Office ,"3,287.76",Travel - Subsistence ,Asia  Caribbean and Overseas Territories 
DFID,DFID,22/08/2012,Corporate Travel Provider ,935.05,Air fares ,West and Southern Africa 
DFID,DFID,22/08/2012,Corporate Travel Provider ,949.85,Air fares ,West and Southern Africa 
DFID,DFID,22/08/2012,Corporate Travel Provider ,520.88,Travel documentation costs ,West and Southern Africa 
DFID,DFID,31/08/2012,Corporate Travel Provider ,844.25,Air fares ,West and Southern Africa 
DFID,DFID,31/08/2012,Corporate Travel Provider ,844.25,Air fares ,West and Southern Africa 
DFID,DFID,23/08/2012,Recipient name withheld ,506.33,Hotels - Accommodation only ,West and Southern Africa 
DFID,DFID,30/08/2012,Recipient Name Withheld ,904.04,Hotels - Accommodation only ,West and Southern Africa 
DFID,DFID,15/08/2012,Recipient name withheld ,"2,283.10",Air fares ,West and Southern Africa 
DFID,DFID,08/08/2012,Recipient name withheld ,672.65,Hotels - Accommodation only ,West and Southern Africa 
DFID,DFID,31/08/2012,Corporate Travel Provider ,761.82,Air fares ,West and Southern Africa 
DFID,DFID,31/08/2012,Corporate Travel Provider ,759.75,Air fares ,West and Southern Africa 
DFID,DFID,31/08/2012,Corporate Travel Provider ,854.25,Air fares ,West and Southern Africa 
DFID,DFID,22/08/2012,Corporate Travel Provider ,864.18,Air fares ,East and Central Africa 
DFID,DFID,22/08/2012,Corporate Travel Provider ,927.24,Air fares ,East and Central Africa 
DFID,DFID,22/08/2012,Corporate Travel Provider ,784.19,Air fares ,West and Southern Africa 
DFID,DFID,22/08/2012,Corporate Travel Provider ,784.19,Air fares ,West and Southern Africa 
DFID,DFID,31/08/2012,Corporate Travel Provider ,888.99,Air fares ,West and Southern Africa 
DFID,DFID,31/08/2012,Corporate Travel Provider ,998.09,Air fares ,West and Southern Africa 
DFID,DFID,31/08/2012,Corporate Travel Provider ,998.09,Air fares ,West and Southern Africa 
DFID,DFID,01/08/2012,PUBLIC ADMINISTRATION INTERN ,"35,792.19",Technical and Advisory Services ,International Relations Division 
DFID,DFID,30/08/2012,PUBLIC ADMINISTRATION INTERN ,"28,301.65",Technical and Advisory Services ,International Relations Division 
DFID,DFID,10/08/2012,Pilgrims Group ,810.32,Hostile Environment Training ,Asia  Caribbean and Overseas Territories 
DFID,DFID,31/08/2012,E-Payment System  ,"2,149.04",Printer Consumables ,East and Central Africa 
DFID,DFID,07/08/2012,Foreign & Commonwealth Office ,"1,085.59",Mobile telephones & accessories ,East and Central Africa 
DFID,DFID,07/08/2012,Foreign & Commonwealth Office ,698.67,Furniture & Fittings ,East and Central Africa 
DFID,DFID,07/08/2012,Foreign & Commonwealth Office ,"2,160.00",Furniture & Fittings ,East and Central Africa 
DFID,DFID,09/08/2012,Foreign & Commonwealth Office ,"3,007.30",Printer Consumables ,East and Central Africa 
DFID,DFID,07/08/2012,Foreign & Commonwealth Office ,963.06,Furniture & Fittings ,East and Central Africa 
DFID,DFID,07/08/2012,Foreign & Commonwealth Office ,"1,047.77",Repairs  Maint  Alter - Removal & waste disposal services ,East and Central Africa 
DFID,DFID,07/08/2012,Foreign & Commonwealth Office ,"17,666.76",Secure Staff Accomodation ,East and Central Africa 
DFID,DFID,22/08/2012,Corporate Travel Provider ,713.90,Air fares ,West and Southern Africa 
DFID,DFID,22/08/2012,Corporate Travel Provider ,962.28,Air fares ,West and Southern Africa 
DFID,DFID,22/08/2012,Corporate Travel Provider ,780.99,Air fares ,West and Southern Africa 
DFID,DFID,31/08/2012,Corporate Travel Provider ,845.89,Air fares ,Security & Humanitarian and Middle East Division 
DFID,DFID,31/08/2012,Corporate Travel Provider ,769.57,Air fares ,Security & Humanitarian and Middle East Division 
DFID,DFID,31/08/2012,Corporate Travel Provider ,845.89,Air fares ,Security & Humanitarian and Middle East Division 
DFID,DFID,22/08/2012,Corporate Travel Provider ,"1,157.09",Air fares ,West and Southern Africa 
DFID,DFID,22/08/2012,Corporate Travel Provider ,"1,084.59",Air fares ,West and Southern Africa 
DFID,DFID,22/08/2012,Corporate Travel Provider ,833.99,Air fares ,West and Southern Africa 
DFID,DFID,31/08/2012,Corporate Travel Provider ,"1,223.79",Air fares ,West and Southern Africa 
DFID,DFID,31/08/2012,Corporate Travel Provider ,"1,060.79",Air fares ,West and Southern Africa 
DFID,DFID,29/08/2012,Recipient name withheld ,527.55,Hotels - Accommodation only ,West and Southern Africa 
DFID,DFID,23/08/2012,St Ozone Lda ,"1,253.39",Repairs  Maint  Alter - Property & Constrct. Services ,West and Southern Africa 
DFID,DFID,28/08/2012,Recipient name withheld ,567.31,Repairs  Maint  Alter - Property & Constrct. Services ,West and Southern Africa 
DFID,DFID,29/08/2012,Vasco Jose Mucavele ,"1,395.82",Repairs  Maint  Alter - Property & Constrct. Services ,West and Southern Africa 
DFID,DFID,21/08/2012,Ingar Mozambique Lda ,811.19,Storage & Distribution costs ,West and Southern Africa 
DFID,DFID,21/08/2012,DANA Agency ,"1,481.08",Air fares ,West and Southern Africa 
DFID,DFID,22/08/2012,Telecomunicacoes de Mocambique ,"1,085.15",Telephone Usage & services ,West and Southern Africa 
DFID,DFID,23/08/2012,Vasco Jose Mucavele ,"1,388.28",Repairs  Maint  Alter - Property & Constrct. Services ,West and Southern Africa 
DFID,DFID,23/08/2012,Liquid Logic Mocambique Lda ,763.88,Repairs  Maint  Alter - Property & Constrct. Services ,West and Southern Africa 
DFID,DFID,07/08/2012,Jaya Travels & Tours Pvt Ltd. (US$) ,897.50,Air fares ,Asia  Caribbean and Overseas Territories 
DFID,DFID,22/08/2012,Supplier Name withheld ,944.19,Air fares ,West and Southern Africa 
DFID,DFID,22/08/2012,Supplier Name withheld ,"1,277.99",Air fares ,West and Southern Africa 
DFID,DFID,22/08/2012,Supplier Name withheld ,"1,203.29",Air fares ,West and Southern Africa 
DFID,DFID,22/08/2012,Supplier Name withheld ,"1,161.68",Hotels - Accommodation only ,West and Southern Africa 
DFID,DFID,31/08/2012,Supplier Name withheld ,653.29,Air fares ,West and Southern Africa 
DFID,DFID,31/08/2012,Supplier Name withheld ,"1,196.79",Air fares ,West and Southern Africa 
DFID,DFID,24/08/2012,FCO SERVICES ,"1,463.27",Office Equipment - Maintenance ,West and Southern Africa 
DFID,DFID,06/08/2012,Mr Eze Samson ,"1,551.25",Facilities Management payments ,West and Southern Africa 
DFID,DFID,08/08/2012,Sparklean Services Nig Ltd ,966.17,Facilities Management payments ,West and Southern Africa 
DFID,DFID,31/08/2012,Corporate Travel Provider ,890.95,Air fares ,Western Asia and Stabilisation Division 
DFID,DFID,08/08/2012,Recipient name withheld ,"3,500.49",Training - Course Fees ,Western Asia and Stabilisation Division 
DFID,DFID,08/08/2012,Recipient name withheld ,889.96,Training - Travel & Subsistence ,Western Asia and Stabilisation Division 
DFID,DFID,08/08/2012,Recipient name withheld ,560.22,Training - Travel & Subsistence ,Western Asia and Stabilisation Division 
DFID,DFID,30/08/2012,British High Commission  Pak ,952.49,Vehicle Hire Charges ,Western Asia and Stabilisation Division 
DFID,DFID,30/08/2012,British High Commission  Pak ,"1,065.80",Vehicle Hire Charges ,Western Asia and Stabilisation Division 
DFID,DFID,16/08/2012,PMCL ,584.89,Telephone Usage & services ,Western Asia and Stabilisation Division 
DFID,DFID,17/08/2012,Pakistan State Oil Company Ltd ,"2,487.77",Vehicle Petrol & Oil ,Western Asia and Stabilisation Division 
DFID,DFID,09/08/2012,Foreign & Commonwealth Office ,"1,939.91",Electricity ,Western Asia and Stabilisation Division 
DFID,DFID,09/08/2012,Foreign & Commonwealth Office ,"11,064.97",Secure Staff Accomodation ,Western Asia and Stabilisation Division 
DFID,DFID,09/08/2012,Foreign & Commonwealth Office ,711.90,Electricity ,Western Asia and Stabilisation Division 
DFID,DFID,08/08/2012,Limeline Sierra Leone Ltd ,518.97,other information and communication technologies ,West and Southern Africa 
DFID,DFID,30/08/2012,National Power Authority ,559.18,Electricity ,West and Southern Africa 
DFID,DFID,21/08/2012,Airtel (SL) Ltd ,534.72,Mobile telephones & accessories ,West and Southern Africa 
DFID,DFID,17/08/2012,Abrahim A H Daklalah ($) ,764.33,Generators & spares ,West and Southern Africa 
DFID,DFID,15/08/2012,Airtel (SL) Ltd ,519.58,Mobile telephones & accessories ,West and Southern Africa 
DFID,DFID,08/08/2012,Sheku Kargbo ,585.89,Facilities Management payments ,West and Southern Africa 
DFID,DFID,09/08/2012,A Yazbeck & Sons Ltd ,"1,221.98",Vehicle Repairs & Maintenance ,West and Southern Africa 
DFID,DFID,09/08/2012,Raju's Electricals ,579.69,Facilities Management payments ,West and Southern Africa 
DFID,DFID,08/08/2012,Leads Pest Killing Enterprise ,853.14,Facilities Management payments ,West and Southern Africa 
DFID,DFID,31/08/2012,Corporate Travel Provider ,511.97,Air fares ,East and Central Africa 
DFID,DFID,09/08/2012,Foreign & Commonwealth Office ,"3,007.30",Printer Consumables ,East and Central Africa 
DFID,DFID,07/08/2012,Foreign & Commonwealth Office ,540.00,Furniture & Fittings ,East and Central Africa 
DFID,DFID,07/08/2012,Foreign & Commonwealth Office ,550.32,Furniture & Fittings ,East and Central Africa 
DFID,DFID,31/08/2012,E-Payment System  ,"2,346.81",Other passenger transport ,West and Southern Africa 
DFID,DFID,22/08/2012,Corporate Travel Provider ,963.70,Air fares ,West and Southern Africa 
DFID,DFID,09/08/2012,Foreign & Commonwealth Office ,"3,924.94",Cleaning Costs ,West and Southern Africa 
DFID,DFID,09/08/2012,Foreign & Commonwealth Office ,984.25,Cleaning Costs ,West and Southern Africa 
DFID,DFID,09/08/2012,Foreign & Commonwealth Office ,887.92,Cleaning Costs ,West and Southern Africa 
DFID,DFID,07/08/2012,Foreign & Commonwealth Office ,"4,292.84",Secure Staff Accomodation ,West and Southern Africa 
DFID,DFID,07/08/2012,Foreign & Commonwealth Office ,"3,176.08",Cleaning Costs ,West and Southern Africa 
DFID,DFID,07/08/2012,Foreign & Commonwealth Office ,"2,669.64",Cleaning Costs ,West and Southern Africa 
DFID,DFID,31/08/2012,Corporate Travel Provider ,860.69,Air fares ,East and Central Africa 
DFID,DFID,09/08/2012,Foreign & Commonwealth Office ,515.19,FCO shared service charges ,East and Central Africa 
DFID,DFID,31/08/2012,E-Payment System  ,681.40,Facilities Management payments ,East and Central Africa 
DFID,DFID,31/08/2012,Corporate Travel Provider ,541.20,Air fares ,East and Central Africa 
DFID,DFID,10/08/2012,Recipient name withheld ,738.45,Air fares ,East and Central Africa 
DFID,DFID,22/08/2012,Corporate Travel Provider ,517.30,Hotels - Accommodation only ,West and Southern Africa 
DFID,DFID,31/08/2012,Corporate Travel Provider ,"1,008.19",Air fares ,West and Southern Africa 
DFID,DFID,09/08/2012,Barfig Swimpool Limited ,"4,223.59",Other Building Costs ,West and Southern Africa 
DFID,DFID,23/08/2012,British Airways Ltd ,716.11,Training - Travel & Subsistence ,West and Southern Africa 
DFID,DFID,03/08/2012,Foreign & Commonwealth Office ,"3,277.27",Aid Programme - Joint programme contribution ,Asia  Caribbean and Overseas Territories 
DFID,DFID,06/08/2012,Foreign & Commonwealth Office ,"4,811.00",Aid Programme - Joint programme contribution ,Asia  Caribbean and Overseas Territories 
DFID,DFID,17/08/2012,Foreign & Commonwealth Office ,"6,109.83",Aid Programme - Joint programme contribution ,Asia  Caribbean and Overseas Territories 
DFID,DFID,17/08/2012,Foreign & Commonwealth Office ,"4,811.00",Aid Programme - Joint programme contribution ,Asia  Caribbean and Overseas Territories 
DFID,DFID,17/08/2012,Foreign & Commonwealth Office ,507.18,Aid Programme - Joint programme contribution ,Asia  Caribbean and Overseas Territories 
DFID,DFID,17/08/2012,Foreign & Commonwealth Office ,"11,942.58",Aid Programme - Joint programme contribution ,Asia  Caribbean and Overseas Territories 
DFID,DFID,17/08/2012,Foreign & Commonwealth Office ,511.48,Aid Programme - Joint programme contribution ,Asia  Caribbean and Overseas Territories 
DFID,DFID,17/08/2012,Foreign & Commonwealth Office ,"1,702.09",Aid Programme - Joint programme contribution ,Asia  Caribbean and Overseas Territories 
DFID,DFID,17/08/2012,Foreign & Commonwealth Office ,903.46,Aid Programme - Joint programme contribution ,Asia  Caribbean and Overseas Territories 
DFID,DFID,21/08/2012,Hewitt Associates (India) Private Limited ,"5,194.42",Technical and Advisory Services ,Asia  Caribbean and Overseas Territories 
DFID,DFID,28/08/2012,BRITISH HIGH COMMISSION ,715.49,Technical and Advisory Services ,Asia  Caribbean and Overseas Territories 
DFID,DFID,22/08/2012,Corporate Travel Provider ,"1,737.85",Hotels - Accommodation only ,Security & Humanitarian and Middle East Division 
DFID,DFID,31/08/2012,Corporate Travel Provider ,549.08,Air fares ,Security & Humanitarian and Middle East Division 
DFID,DFID,14/08/2012,Unit 4 ,"62,365.61",Computer software maintenance ,Business Solutions Division Level 
DFID,DFID,09/08/2012,Foreign & Commonwealth Office ,617.54,Training - Course Fees ,Security & Humanitarian and Middle East Division 
DFID,DFID,08/08/2012,Foreign & Commonwealth Office ,"2,491.09",Building Plant - Air Conditioners ,Western Asia and Stabilisation Division 
DFID,DFID,08/08/2012,Foreign & Commonwealth Office ,"1,289.82",Travel - Subsistence ,Western Asia and Stabilisation Division 
DFID,DFID,08/08/2012,Foreign & Commonwealth Office ,592.13,Air fares ,Western Asia and Stabilisation Division 
DFID,DFID,08/08/2012,Foreign & Commonwealth Office ,596.31,Vehicle Repairs & Maintenance ,Western Asia and Stabilisation Division 
DFID,DFID,22/08/2012,Corporate Travel Provider ,878.86,Air fares ,Policy Division 
DFID,DFID,31/08/2012,Corporate Travel Provider ,797.89,Air fares ,Policy Division 
DFID,DFID,07/08/2012,Foreign & Commonwealth Office ,"38,760.69",Technical and Advisory Services ,Asia  Caribbean and Overseas Territories 
DFID,DFID,07/08/2012,Foreign & Commonwealth Office ,"4,749.61",Technical and Advisory Services ,Asia  Caribbean and Overseas Territories 
DFID,DFID,07/08/2012,Foreign & Commonwealth Office ,"1,164.19",Technical and Advisory Services ,Asia  Caribbean and Overseas Territories 
DFID,DFID,07/08/2012,Foreign & Commonwealth Office ,"2,731.23",Technical and Advisory Services ,Asia  Caribbean and Overseas Territories 
DFID,DFID,09/08/2012,Foreign & Commonwealth Office ,"1,543.43",Technical and Advisory Services ,Asia  Caribbean and Overseas Territories 
DFID,DFID,09/08/2012,Foreign & Commonwealth Office ,804.64,Technical and Advisory Services ,Asia  Caribbean and Overseas Territories 
DFID,DFID,31/08/2012,Corporate Travel Provider ,730.19,Air fares ,West and Southern Africa 
DFID,DFID,07/08/2012,Foreign & Commonwealth Office ,"5,545.92",Technical and Advisory Services ,West and Southern Africa 
DFID,DFID,07/08/2012,Foreign & Commonwealth Office ,"7,922.74",Technical and Advisory Services ,West and Southern Africa 
DFID,DFID,07/08/2012,Foreign & Commonwealth Office ,"2,061.40",Secure Staff Accomodation ,East and Central Africa 
DFID,DFID,29/08/2012,Nathan Associates London Ltd ,"35,861.00",Technical and Advisory Services ,International Finance Division 
DFID,DFID,30/08/2012,British High Commission  Pak ,704.38,Aid Programme - Humanitarian Material Relief Assistance and Services ,Western Asia and Stabilisation Division 
DFID,DFID,22/08/2012,Foreign & Commonwealth Office ,"1,147.96",Technical and Advisory Services ,Asia  Caribbean and Overseas Territories 
DFID,DFID,08/08/2012,Harvard Pilgrim Health Care ,"49,981.65",Technical and Advisory Services ,Research and Evidence Division 
DFID,DFID,31/08/2012,E-Payment System  ,569.80,Contract & Agency Staff ,Human Resources Security & Facilities Division 
DFID,DFID,31/08/2012,E-Payment System  ,569.80,Contract & Agency Staff ,Human Resources Security & Facilities Division 
DFID,DFID,31/08/2012,E-Payment System  ,569.80,Contract & Agency Staff ,Human Resources Security & Facilities Division 
DFID,DFID,22/08/2012,Corporate Travel Provider ,640.88,Air fares ,International Relations Division 
DFID,DFID,22/08/2012,Corporate Travel Provider ,"1,070.24",Air fares ,International Relations Division 
DFID,DFID,31/08/2012,Corporate Travel Provider ,580.88,Air fares ,International Relations Division 
DFID,DFID,22/08/2012,Corporate Travel Provider ,"1,070.24",Air fares ,International Relations Division 
DFID,DFID,09/08/2012,TROPICAL HEALTH EDUCATION TRUST ,"68,355.35",Technical and Advisory Services ,Policy Division 
DFID,DFID,16/08/2012,TROPICAL HEALTH EDUCATION TRUST ,"64,605.13",Technical and Advisory Services ,Policy Division 
DFID,DFID,16/08/2012,TROPICAL HEALTH EDUCATION TRUST ,"251,542.27",Technical and Advisory Services ,Policy Division 
DFID,DFID,16/08/2012,TROPICAL HEALTH EDUCATION TRUST ,"369,691.00",Technical and Advisory Services ,Policy Division 
DFID,DFID,31/08/2012,TROPICAL HEALTH EDUCATION TRUST ,"4,659.20",Technical and Advisory Services ,Policy Division 
DFID,DFID,10/08/2012,HLSP LIMITED ,"6,906.45",Technical and Advisory Services ,East and Central Africa 
DFID,DFID,10/08/2012,HLSP LIMITED ,"19,486.25",Technical and Advisory Services ,East and Central Africa 
DFID,DFID,17/08/2012,CONCERN UNIVERSAL ,"287,035.00",Aid Programme - Accountable Grant Payments ,West and Southern Africa 
DFID,DFID,29/08/2012,Stephen Cartlidge ,642.20,Rail Transport ,Western Asia and Stabilisation Division 
DFID,DFID,20/08/2012,Recipient name withheld ,731.31,Hotels - Accommodation only ,Western Asia and Stabilisation Division 
DFID,DFID,31/08/2012,Corporate Travel Provider ,660.61,Air fares ,Western Asia and Stabilisation Division 
DFID,DFID,22/08/2012,Corporate Travel Provider ,"2,519.39",Air fares ,Western Asia and Stabilisation Division 
DFID,DFID,22/08/2012,Corporate Travel Provider ,"2,519.39",Air fares ,Western Asia and Stabilisation Division 
DFID,DFID,31/08/2012,ADAM SMITH INTERNATIONAL  LTD ,"91,799.16",Technical and Advisory Services ,Western Asia and Stabilisation Division 
DFID,DFID,22/08/2012,Corporate Travel Provider ,942.15,Air fares ,East and Central Africa 
DFID,DFID,22/08/2012,Corporate Travel Provider ,"1,070.49",Air fares ,East and Central Africa 
DFID,DFID,31/08/2012,Corporate Travel Provider ,"1,669.05",Air fares ,East and Central Africa 
DFID,DFID,31/08/2012,Corporate Travel Provider ,"1,353.19",Air fares ,East and Central Africa 
DFID,DFID,31/08/2012,Corporate Travel Provider ,"1,342.81",Air fares ,East and Central Africa 
DFID,DFID,22/08/2012,Corporate Travel Provider ,"1,335.46",Hotels - Accommodation only ,Western Asia and Stabilisation Division 
DFID,DFID,22/08/2012,Corporate Travel Provider ,692.20,Air fares ,Western Asia and Stabilisation Division 
DFID,DFID,22/08/2012,Corporate Travel Provider ,"3,569.14",Air fares ,Western Asia and Stabilisation Division 
DFID,DFID,22/08/2012,Corporate Travel Provider ,754.33,Air fares ,Western Asia and Stabilisation Division 
DFID,DFID,07/08/2012,Supplier Name withheld ,"1,262.74",Training - Travel & Subsistence ,Western Asia and Stabilisation Division 
DFID,DFID,22/08/2012,Recipient name withheld ,"1,581.59",Air fares ,Western Asia and Stabilisation Division 
DFID,DFID,22/08/2012,Recipient name withheld ,507.24,Air fares ,Western Asia and Stabilisation Division 
DFID,DFID,31/08/2012,Corporate Travel Provider ,605.77,Air fares ,Western Asia and Stabilisation Division 
DFID,DFID,31/08/2012,Corporate Travel Provider ,909.42,Air fares ,Western Asia and Stabilisation Division 
DFID,DFID,31/08/2012,Corporate Travel Provider ,"1,303.60",Air fares ,Western Asia and Stabilisation Division 
DFID,DFID,22/08/2012,Corporate Travel Provider ,754.33,Air fares ,Western Asia and Stabilisation Division 
DFID,DFID,22/08/2012,Corporate Travel Provider ,"1,755.45",Air fares ,Western Asia and Stabilisation Division 
DFID,DFID,31/08/2012,Corporate Travel Provider ,934.70,Air fares ,Western Asia and Stabilisation Division 
DFID,DFID,31/08/2012,Corporate Travel Provider ,"2,133.00",Air fares ,Western Asia and Stabilisation Division 
DFID,DFID,31/08/2012,Corporate Travel Provider ,786.21,Air fares ,Western Asia and Stabilisation Division 
DFID,DFID,22/08/2012,Corporate Travel Provider ,754.33,Air fares ,Western Asia and Stabilisation Division 
DFID,DFID,22/08/2012,Corporate Travel Provider ,"1,130.81",Air fares ,Western Asia and Stabilisation Division 
DFID,DFID,22/08/2012,Corporate Travel Provider ,"2,294.92",Air fares ,Western Asia and Stabilisation Division 
DFID,DFID,22/08/2012,Corporate Travel Provider ,"1,372.02",Air fares ,Western Asia and Stabilisation Division 
DFID,DFID,22/08/2012,Corporate Travel Provider ,"1,009.99",Air fares ,Western Asia and Stabilisation Division 
DFID,DFID,22/08/2012,Corporate Travel Provider ,956.41,Air fares ,Western Asia and Stabilisation Division 
DFID,DFID,22/08/2012,Corporate Travel Provider ,747.85,Air fares ,Security & Humanitarian and Middle East Division 
DFID,DFID,22/08/2012,Corporate Travel Provider ,892.19,Air fares ,Security & Humanitarian and Middle East Division 
DFID,DFID,22/08/2012,Corporate Travel Provider ,516.50,Air fares ,Security & Humanitarian and Middle East Division 
DFID,DFID,22/08/2012,Corporate Travel Provider ,"1,017.79",Air fares ,East and Central Africa 
DFID,DFID,31/08/2012,Corporate Travel Provider ,705.70,Conference Travel & Subsistence ,East and Central Africa 
DFID,DFID,31/08/2012,Corporate Travel Provider ,"1,036.92",Conference Travel & Subsistence ,East and Central Africa 
DFID,DFID,17/08/2012,Recipient name withheld ,"2,483.93",Secure Staff Accomodation ,East and Central Africa 
DFID,DFID,07/08/2012,Foreign & Commonwealth Office ,693.45,Technical and Advisory Services ,Asia  Caribbean and Overseas Territories 
DFID,DFID,22/08/2012,Corporate Travel Provider ,"1,056.15",Air fares ,Western Asia and Stabilisation Division 
DFID,DFID,31/08/2012,Corporate Travel Provider ,774.49,Air fares ,Western Asia and Stabilisation Division 
DFID,DFID,31/08/2012,E-Payment System  ,925.21,Hotels - Accommodation only ,Western Asia and Stabilisation Division 
DFID,DFID,16/08/2012,KINGS COLLEGE LONDON ,506.88,Contract Catering Services ,Western Asia and Stabilisation Division 
DFID,DFID,31/08/2012,Corporate Travel Provider ,"1,097.39",Air fares ,Western Asia and Stabilisation Division 
DFID,DFID,13/08/2012,VODAFONE CORPORATE ,720.00,Mobile telephones & accessories ,Western Asia and Stabilisation Division 
DFID,DFID,27/08/2012,LTS International Ltd. ,"39,742.13",Technical and Advisory Services ,West and Southern Africa 
DFID,DFID,08/08/2012,Supplier Name withheld ,"22,391.20",Technical and Advisory Services ,Western Asia and Stabilisation Division 
DFID,DFID,31/08/2012,VSO ,"103,016.00",Aid Programme - Accountable Grant Payments ,East and Central Africa 
DFID,DFID,22/08/2012,Corporate Travel Provider ,801.59,Air fares ,International Finance Division 
DFID,DFID,22/08/2012,Corporate Travel Provider ,878.86,Air fares ,International Finance Division 
DFID,DFID,22/08/2012,Corporate Travel Provider ,774.09,Air fares ,International Finance Division 
DFID,DFID,31/08/2012,Corporate Travel Provider ,941.89,Air fares ,International Finance Division 
DFID,DFID,31/08/2012,Corporate Travel Provider ,639.49,Air fares ,International Finance Division 
DFID,DFID,03/08/2012,Meikles Hotel ,"2,232.10",Technical and Advisory Services ,West and Southern Africa 
DFID,DFID,31/08/2012,Corporate Travel Provider ,713.19,Air fares ,Policy Division 
DFID,DFID,14/08/2012,Pilgrims Group ,555.16,Hostile Environment Training ,Policy Division 
DFID,DFID,22/08/2012,Corporate Travel Provider ,"1,574.49",Air fares ,Policy Division 
DFID,DFID,22/08/2012,Corporate Travel Provider ,"1,174.95",Air fares ,Policy Division 
DFID,DFID,08/08/2012,Recipient name withheld ,829.07,Hotels - Accommodation only ,Policy Division 
DFID,DFID,01/08/2012,Recipient name withheld ,821.28,Travel - Subsistence ,Policy Division 
DFID,DFID,01/08/2012,AGRA IN AFRICA (NO2) ,"530,649.00",Aid Programme - Accountable Grant Payments ,East and Central Africa 
DFID,DFID,31/08/2012,E-Payment System  ,"1,153.54",Computer Consumables ,Business Solutions Division Level 
DFID,DFID,22/08/2012,Corporate Travel Provider ,886.10,Air fares ,International Finance Division 
DFID,DFID,09/08/2012,Foreign & Commonwealth Office ,"19,137.05",Technical and Advisory Services ,Asia  Caribbean and Overseas Territories 
DFID,DFID,09/08/2012,Foreign & Commonwealth Office ,"1,014.40",Technical and Advisory Services ,Asia  Caribbean and Overseas Territories 
DFID,DFID,31/08/2012,Corporate Travel Provider ,842.40,Air fares ,Research and Evidence Division 
DFID,DFID,20/08/2012,IBRD HSBC T ,"7,500,000.00",Aid Programme - Trust Funds contributions ,Security & Humanitarian and Middle East Division 
DFID,DFID,01/08/2012,CONCERN WORLDWIDE ,"179,469.00",Aid Programme - Accountable Grant Payments ,East and Central Africa 
DFID,DFID,23/08/2012,SAVE THE CHILDREN ,"279,665.00",Aid Programme - Accountable Grant Payments ,East and Central Africa 
DFID,DFID,07/08/2012,Foreign & Commonwealth Office ,697.91,Air fares ,Policy Division 
DFID,DFID,09/08/2012,Foreign & Commonwealth Office ,"2,231.69",Data Network - land lines ,Business Solutions Division Level 
DFID,DFID,09/08/2012,Foreign & Commonwealth Office ,"2,231.69",Data Network - land lines ,Business Solutions Division Level 
DFID,DFID,17/08/2012,Foreign & Commonwealth Office ,"2,607.09",Telephone Usage & services ,Business Solutions Division Level 
DFID,DFID,22/08/2012,Telkom SA Ltd ,"1,659.21",Data Network - land lines ,Business Solutions Division Level 
DFID,DFID,09/08/2012,Foreign & Commonwealth Office ,"1,700.33",Data Network - land lines ,Business Solutions Division Level 
DFID,DFID,22/08/2012,KPMG EAST AFRICA LTD ,"72,844.00",Technical and Advisory Services ,East and Central Africa 
DFID,DFID,31/08/2012,Corporate Travel Provider ,792.09,Air fares ,Policy Division 
DFID,DFID,27/08/2012,RE-ACTION ,"188,659.00",Technical and Advisory Services ,West and Southern Africa 
DFID,DFID,28/08/2012,HM TREASURY VOTES CASH ACCOUNT ,"6,474.24",Professional member subscriptions ,Human Resources Security & Facilities Division 
DFID,DFID,23/08/2012,Unit 4 ,"62,365.61",Computer software maintenance ,Business Solutions Division Level 
DFID,DFID,31/08/2012,E-Payment System  ,648.00,Training - Course Fees ,Business Solutions Division Level 
DFID,DFID,24/08/2012,USAID/Cambodia ,"321,989.31",Aid Programme - Joint programme contribution ,Asia  Caribbean and Overseas Territories 
DFID,DFID,31/08/2012,E-Payment System  ,"5,197.14",Printer Consumables ,Business Solutions Division Level 
DFID,DFID,21/08/2012,OPIN SYSTEMS LIMITED ,"2,250.00",Technical and Advisory Services ,Business Solutions Division Level 
DFID,DFID,31/08/2012,E-Payment System  ,765.50,Printer Consumables ,Business Solutions Division Level 
DFID,DFID,31/08/2012,E-Payment System  ,769.44,Printer Consumables ,Business Solutions Division Level 
DFID,DFID,07/08/2012,BOTTOMLINE TECHNOLOGIES EUROPE LTD ,"1,108.80",other information and communication technologies ,Finance and Corporate Performance Division 
DFID,DFID,09/08/2012,BOTTOMLINE TECHNOLOGIES EUROPE LTD ,"1,200.00",other information and communication technologies ,Finance and Corporate Performance Division 
DFID,DFID,22/08/2012,Corporate Travel Provider ,931.21,Air fares ,Western Asia and Stabilisation Division 
DFID,DFID,31/08/2012,Corporate Travel Provider ,"1,218.58",Air fares ,Western Asia and Stabilisation Division 
DFID,DFID,31/08/2012,Corporate Travel Provider ,"1,232.05",Air fares ,Western Asia and Stabilisation Division 
DFID,DFID,31/08/2012,Corporate Travel Provider ,"1,461.43",Air fares ,Western Asia and Stabilisation Division 
DFID,DFID,31/08/2012,Corporate Travel Provider ,693.70,Air fares ,Western Asia and Stabilisation Division 
DFID,DFID,31/08/2012,Corporate Travel Provider ,"1,232.05",Air fares ,Western Asia and Stabilisation Division 
DFID,DFID,17/08/2012,Foreign & Commonwealth Office ,608.40,Hotels - Accommodation only ,Asia  Caribbean and Overseas Territories 
DFID,DFID,31/08/2012,E-Payment System  ,669.96,Contract & Agency Staff ,Security & Humanitarian and Middle East Division 
DFID,DFID,31/08/2012,E-Payment System  ,603.34,Contract & Agency Staff ,Security & Humanitarian and Middle East Division 
DFID,DFID,31/08/2012,E-Payment System  ,669.96,Contract & Agency Staff ,Security & Humanitarian and Middle East Division 
DFID,DFID,31/08/2012,E-Payment System  ,589.38,Contract & Agency Staff ,Security & Humanitarian and Middle East Division 
DFID,DFID,31/08/2012,E-Payment System  ,669.96,Contract & Agency Staff ,Security & Humanitarian and Middle East Division 
DFID,DFID,31/08/2012,Corporate Travel Provider ,"1,153.90",Air fares ,Security & Humanitarian and Middle East Division 
DFID,DFID,28/08/2012,DANA Agency ,"5,186.81",Air fares ,Security & Humanitarian and Middle East Division 
DFID,DFID,30/08/2012,THRESHOLDS ,"1,300.00",Training - Course Fees ,Security & Humanitarian and Middle East Division 
DFID,DFID,31/08/2012,Corporate Travel Provider ,841.85,Air fares ,West and Southern Africa 
DFID,DFID,23/08/2012,Jupiter Trading ,639.81,Computer Consumables ,East and Central Africa 
DFID,DFID,31/08/2012,Corporate Travel Provider ,689.30,Air fares ,Asia  Caribbean and Overseas Territories 
DFID,DFID,31/08/2012,Corporate Travel Provider ,536.76,Air fares ,Asia  Caribbean and Overseas Territories 
DFID,DFID,03/08/2012,Recipient name withheld ,684.35,Hotels - Accommodation only ,Research and Evidence Division 
DFID,DFID,03/08/2012,Recipient name withheld ,609.77,Hotels - Accommodation only ,Research and Evidence Division 
DFID,DFID,31/08/2012,E-Payment System  ,534.00,Training - Course Fees ,International Finance Division 
DFID,DFID,22/08/2012,Corporate Travel Provider ,"2,484.32",Air fares ,International Finance Division 
DFID,DFID,31/08/2012,E-Payment System  ,"1,088.64",Reproduction & Printing Materials ,Human Resources Security & Facilities Division 
DFID,DFID,31/08/2012,E-Payment System  ,"1,088.64",Reproduction & Printing Materials ,Human Resources Security & Facilities Division 
DFID,DFID,06/08/2012,TNT  MAIL ,521.13,Postage Costs ,Human Resources Security & Facilities Division 
DFID,DFID,17/08/2012,CORONA ENERGY ,660.56,Gas ,Human Resources Security & Facilities Division 
DFID,DFID,21/08/2012,CORONA ENERGY ,652.44,Gas ,Human Resources Security & Facilities Division 
DFID,DFID,22/08/2012,Corporate Travel Provider ,559.63,Air fares ,International Finance Division 
DFID,DFID,22/08/2012,Corporate Travel Provider ,"2,373.38",Hotels - Accommodation only ,International Finance Division 
DFID,DFID,31/08/2012,Corporate Travel Provider ,505.96,Air fares ,International Finance Division 
DFID,DFID,31/08/2012,Corporate Travel Provider ,982.99,Air fares ,International Finance Division 
DFID,DFID,22/08/2012,Corporate Travel Provider ,743.48,Air fares ,Internal Audit 
DFID,DFID,22/08/2012,Corporate Travel Provider ,743.48,Air fares ,Internal Audit 
DFID,DFID,09/08/2012,Foreign & Commonwealth Office ,"4,175.80",Hotels - Accommodation only ,Internal Audit 
DFID,DFID,31/08/2012,Corporate Travel Provider ,"1,004.09",Air fares ,Joint Trade Policy Division 
DFID,DFID,31/08/2012,Corporate Travel Provider ,988.09,Air fares ,Joint Trade Policy Division 
DFID,DFID,31/08/2012,Corporate Travel Provider ,590.50,Air fares ,East and Central Africa 
DFID,DFID,07/08/2012,Foreign & Commonwealth Office ,639.82,Data network- remote working ,East and Central Africa 
DFID,DFID,09/08/2012,Foreign & Commonwealth Office ,751.82,Printer Consumables ,East and Central Africa 
DFID,DFID,31/08/2012,E-Payment System  ,630.25,Contract & Agency Staff ,Communications Division 
DFID,DFID,31/08/2012,E-Payment System  ,507.47,Contract & Agency Staff ,Communications Division 
DFID,DFID,31/08/2012,E-Payment System  ,617.98,Contract & Agency Staff ,Communications Division 
DFID,DFID,31/08/2012,E-Payment System  ,509.26,Contract & Agency Staff ,Security & Humanitarian and Middle East Division 
DFID,DFID,22/08/2012,Corporate Travel Provider ,"1,115.89",Air fares ,Security & Humanitarian and Middle East Division 
DFID,DFID,22/08/2012,Corporate Travel Provider ,641.09,Air fares ,Security & Humanitarian and Middle East Division 
DFID,DFID,02/08/2012,Hotel Cardoso S A R L ,791.61,Hotels - Accommodation only ,West and Southern Africa 
DFID,DFID,22/08/2012,Supplier Name withheld ,788.69,Hotels - Accommodation only ,West and Southern Africa 
DFID,DFID,08/08/2012,Sparklean Services Nig Ltd ,728.87,Facilities Management payments ,West and Southern Africa 
DFID,DFID,31/08/2012,Supplier Name withheld ,767.27,Air fares ,West and Southern Africa 
DFID,DFID,13/08/2012,Shazreh Hussain ,768.35,Training Providers/Facilitation Services ,Western Asia and Stabilisation Division 
DFID,DFID,03/08/2012,HB COMPUTERS ,"2,821.90",Office Equipment - Purchases ,Western Asia and Stabilisation Division 
DFID,DFID,15/08/2012,Pak Carpet Industries (Pvt) Limited ,"1,196.06",Other Building Costs ,Western Asia and Stabilisation Division 
DFID,DFID,31/08/2012,E-Payment System  ,507.97,Office Supplies ,Human Resources Security & Facilities Division 
DFID,DFID,01/08/2012,MITIE Technical Facilities Management Ltd ,"2,573.98",Other Building Costs ,Human Resources Security & Facilities Division 
DFID,DFID,01/08/2012,MITIE Technical Facilities Management Ltd ,"2,180.48",Other Building Costs ,Human Resources Security & Facilities Division 
DFID,DFID,01/08/2012,MITIE Technical Facilities Management Ltd ,"1,779.16",Other Building Costs ,Human Resources Security & Facilities Division 
DFID,DFID,01/08/2012,MITIE Technical Facilities Management Ltd ,889.17,Other Building Costs ,Human Resources Security & Facilities Division 
DFID,DFID,02/08/2012,MITIE Technical Facilities Management Ltd ,820.74,Other Building Costs ,Human Resources Security & Facilities Division 
DFID,DFID,02/08/2012,MITIE Technical Facilities Management Ltd ,936.56,Other Building Costs ,Human Resources Security & Facilities Division 
DFID,DFID,10/08/2012,Flexiform Business Furniture Limited ,"1,413.60",Furniture & Fittings ,Human Resources Security & Facilities Division 
DFID,DFID,31/08/2012,Corporate Travel Provider ,969.09,Air fares ,West and Southern Africa 
DFID,DFID,31/08/2012,E-Payment System  ,671.16,Contract & Agency Staff ,Policy Division 
DFID,DFID,31/08/2012,E-Payment System  ,622.06,Contract & Agency Staff ,Policy Division 
DFID,DFID,31/08/2012,E-Payment System  ,613.88,Contract & Agency Staff ,Policy Division 
DFID,DFID,31/08/2012,E-Payment System  ,619.71,Contract & Agency Staff ,Policy Division 
DFID,DFID,31/08/2012,E-Payment System  ,622.06,Contract & Agency Staff ,Policy Division 
DFID,DFID,23/08/2012,Hays Specialist Recruitment Ltd ,"1,240.40",Contract & Agency Staff ,Policy Division 
DFID,DFID,28/08/2012,Hays Specialist Recruitment Ltd ,"1,311.28",Contract & Agency Staff ,Policy Division 
DFID,DFID,22/08/2012,Corporate Travel Provider ,667.09,Air fares ,Policy Division 
DFID,DFID,22/08/2012,Corporate Travel Provider ,656.30,Air fares ,Communications Division 
DFID,DFID,31/08/2012,Corporate Travel Provider ,"1,640.99",Air fares ,Communications Division 
DFID,DFID,31/08/2012,Corporate Travel Provider ,985.60,Air fares ,Communications Division 
DFID,DFID,31/08/2012,E-Payment System  ,700.00,Training - Course Fees ,Finance and Corporate Performance Division 
DFID,DFID,06/08/2012,Hays Specialist Recruitment Ltd ,"1,008.00",Contract & Agency Staff ,Finance and Corporate Performance Division 
DFID,DFID,16/08/2012,MICHAEL PAGE INTERNATIONAL RECRUITMENT LIMITED ,"4,296.10",Contract & Agency Staff ,Finance and Corporate Performance Division 
DFID,DFID,16/08/2012,MICHAEL PAGE INTERNATIONAL RECRUITMENT LIMITED ,"1,534.32",Contract & Agency Staff ,Finance and Corporate Performance Division 
DFID,DFID,16/08/2012,Hays Specialist Recruitment Ltd ,"1,260.00",Contract & Agency Staff ,Finance and Corporate Performance Division 
DFID,DFID,20/08/2012,MICHAEL PAGE INTERNATIONAL RECRUITMENT LIMITED ,"1,534.32",Contract & Agency Staff ,Finance and Corporate Performance Division 
DFID,DFID,20/08/2012,Hays Specialist Recruitment Ltd ,"1,260.00",Contract & Agency Staff ,Finance and Corporate Performance Division 
DFID,DFID,24/08/2012,Hays Specialist Recruitment Ltd ,"1,260.00",Contract & Agency Staff ,Finance and Corporate Performance Division 
DFID,DFID,09/08/2012,A Yazbeck & Sons Ltd ,814.65,Vehicle Repairs & Maintenance ,West and Southern Africa 
DFID,DFID,31/08/2012,Corporate Travel Provider ,536.49,Air fares ,East and Central Africa 
DFID,DFID,09/08/2012,Foreign & Commonwealth Office ,751.82,Printer Consumables ,East and Central Africa 
DFID,DFID,07/08/2012,Foreign & Commonwealth Office ,644.91,Training - Travel & Subsistence ,East and Central Africa 
DFID,DFID,24/08/2012,The Express Travel Group ,505.05,Air fares ,East and Central Africa 
DFID,DFID,03/08/2012,Foreign & Commonwealth Office ,"2,720.60",Secure Staff Accomodation ,International Relations Division 
DFID,DFID,08/08/2012,Foreign & Commonwealth Office ,"3,774.51",Secure Staff Accomodation ,International Relations Division 
DFID,DFID,22/08/2012,Corporate Travel Provider ,"1,487.04",Air fares ,International Relations Division 
DFID,DFID,31/08/2012,Corporate Travel Provider ,"1,070.24",Air fares ,International Relations Division 
DFID,DFID,23/08/2012,GLOBETECH ZAMBIA ,615.64,Data Network - land lines ,West and Southern Africa 
DFID,DFID,31/08/2012,E-Payment System  ,"1,260.00",Training - Course Fees ,Business Solutions Division Level 
DFID,DFID,31/08/2012,E-Payment System  ,525.03,Contract & Agency Staff ,Business Solutions Division Level 
DFID,DFID,31/08/2012,Supplier Name withheld ,"1,130.88",Air fares ,West and Southern Africa 
DFID,DFID,07/08/2012,TEARFUND ,"565,214.00",Aid Programme - Accountable Grant Payments ,East and Central Africa 
DFID,DFID,07/08/2012,Society for Family  Health ,"405,012.31",Technical and Advisory Services ,West and Southern Africa 
DFID,DFID,07/08/2012,Society for Family  Health ,"467,968.11",Technical and Advisory Services ,West and Southern Africa 
DFID,DFID,01/08/2012,COMMISSION EUROPEAN COMMUNITY - DFID EURO ACCOUNT ,"52,164,918.00",Aid Programme - Core contributions ,International Relations Division 
DFID,DFID,22/08/2012,Corporate Travel Provider ,881.00,Air fares ,Top Management Group 
DFID,DFID,22/08/2012,Corporate Travel Provider ,"1,539.10",Air fares ,Top Management Group 
DFID,DFID,22/08/2012,Corporate Travel Provider ,"1,619.99",Air fares ,Top Management Group 
DFID,DFID,22/08/2012,Corporate Travel Provider ,"1,619.99",Air fares ,Top Management Group 
DFID,DFID,22/08/2012,Corporate Travel Provider ,879.70,Air fares ,Top Management Group 
DFID,DFID,22/08/2012,Corporate Travel Provider ,"1,619.99",Air fares ,Top Management Group 
DFID,DFID,22/08/2012,Corporate Travel Provider ,"2,950.08",Air fares ,Top Management Group 
DFID,DFID,10/08/2012,Pilgrims Group ,555.16,Hostile Environment Training ,Top Management Group 
DFID,DFID,31/08/2012,Corporate Travel Provider ,"1,971.68",Air fares ,Top Management Group 
DFID,DFID,31/08/2012,Corporate Travel Provider ,582.50,Air fares ,Top Management Group 
DFID,DFID,31/08/2012,Corporate Travel Provider ,"1,971.68",Air fares ,Top Management Group 
DFID,DFID,31/08/2012,Corporate Travel Provider ,"1,239.39",Air fares ,Top Management Group 
DFID,DFID,31/08/2012,Corporate Travel Provider ,582.50,Air fares ,Top Management Group 
DFID,DFID,31/08/2012,Corporate Travel Provider ,"1,239.39",Air fares ,Top Management Group 
DFID,DFID,31/08/2012,Corporate Travel Provider ,"1,593.50",Air fares ,Top Management Group 
DFID,DFID,31/08/2012,Corporate Travel Provider ,"1,593.50",Air fares ,Top Management Group 
DFID,DFID,22/08/2012,Corporate Travel Provider ,"1,631.80",Air fares ,Top Management Group 
DFID,DFID,22/08/2012,Corporate Travel Provider ,"1,435.05",Air fares ,Top Management Group 
DFID,DFID,22/08/2012,Corporate Travel Provider ,"1,991.59",Air fares ,Top Management Group 
DFID,DFID,22/08/2012,Corporate Travel Provider ,"1,991.59",Air fares ,Top Management Group 
DFID,DFID,22/08/2012,Corporate Travel Provider ,836.10,Air fares ,Top Management Group 
DFID,DFID,31/08/2012,Corporate Travel Provider ,"3,064.19",Air fares ,Top Management Group 
DFID,DFID,22/08/2012,Corporate Travel Provider ,"1,640.99",Air fares ,Top Management Group 
DFID,DFID,22/08/2012,Corporate Travel Provider ,836.50,Air fares ,Top Management Group 
DFID,DFID,22/08/2012,Corporate Travel Provider ,"1,631.80",Air fares ,Top Management Group 
DFID,DFID,22/08/2012,Corporate Travel Provider ,"1,514.01",Air fares ,Top Management Group 
DFID,DFID,22/08/2012,Corporate Travel Provider ,"1,640.99",Air fares ,Top Management Group 
DFID,DFID,31/08/2012,Corporate Travel Provider ,"3,064.19",Air fares ,Top Management Group 
DFID,DFID,31/08/2012,E-Payment System  ,716.06,Contract & Agency Staff ,Top Management Group 
DFID,DFID,31/08/2012,E-Payment System  ,527.63,Contract & Agency Staff ,Top Management Group 
DFID,DFID,31/08/2012,E-Payment System  ,628.13,Contract & Agency Staff ,Top Management Group 
DFID,DFID,31/08/2012,E-Payment System  ,548.56,Contract & Agency Staff ,Top Management Group 
DFID,DFID,31/08/2012,E-Payment System  ,670.00,Contract & Agency Staff ,Top Management Group 
DFID,DFID,22/08/2012,Corporate Travel Provider ,"1,991.59",Air fares ,Top Management Group 
DFID,DFID,22/08/2012,Corporate Travel Provider ,"1,631.80",Air fares ,Top Management Group 
DFID,DFID,22/08/2012,Corporate Travel Provider ,"1,640.99",Air fares ,Top Management Group 
DFID,DFID,31/08/2012,Corporate Travel Provider ,"3,064.19",Air fares ,Top Management Group 
DFID,DFID,13/08/2012,ERM India Private Limited ,"4,915.40",Technical and Advisory Services ,Asia  Caribbean and Overseas Territories 
DFID,DFID,31/08/2012,Supplier Name withheld ,"1,195.89",Air fares ,West and Southern Africa 
DFID,DFID,21/08/2012,Supplier Name withheld ,624.19,Hotels - Accommodation only ,West and Southern Africa 
DFID,DFID,31/08/2012,Supplier Name withheld ,749.63,Hotels - Accommodation only ,West and Southern Africa 
DFID,DFID,21/08/2012,Ernst & Young Vietnam Ltd ,"20,123.15",Technical and Advisory Services ,Asia  Caribbean and Overseas Territories 
DFID,DFID,13/08/2012,Nathan Associates London Ltd ,"23,475.69",Technical and Advisory Services ,International Finance Division 
DFID,DFID,31/08/2012,E-Payment System  ,603.00,Contract & Agency Staff ,Policy Division 
DFID,DFID,31/08/2012,E-Payment System  ,753.75,Contract & Agency Staff ,Policy Division 
DFID,DFID,31/08/2012,E-Payment System  ,737.00,Contract & Agency Staff ,Policy Division 
DFID,DFID,31/08/2012,E-Payment System  ,737.00,Contract & Agency Staff ,Policy Division 
DFID,DFID,01/08/2012,AGRA IN AFRICA (NO2) ,"530,649.00",Aid Programme - Accountable Grant Payments ,East and Central Africa 
DFID,DFID,01/08/2012,European Investment Bank (EIB) ,"9,929,925.00",Aid Programme - Core contributions ,International Relations Division 
DFID,DFID,14/08/2012,Pilgrims Group ,641.00,Hostile Environment Training ,Policy Division 
DFID,DFID,03/08/2012,Foreign & Commonwealth Office ,"1,907.36",Secure Staff Accomodation ,International Relations Division 
DFID,DFID,22/08/2012,Corporate Travel Provider ,509.53,Hotels - Accommodation only ,Human Resources Security & Facilities Division 
DFID,DFID,09/08/2012,Pilgrims Group ,"1,262.53",Hostile Environment Training ,Human Resources Security & Facilities Division 
DFID,DFID,13/08/2012,Research into Results Ltd ,"235,363.48",Research & Development costs ,Research and Evidence Division 
DFID,DFID,16/08/2012,Penna Barkers ,602.40,Recruitment costs ,Human Resources Security & Facilities Division 
DFID,DFID,21/08/2012,Penna Barkers ,"4,143.52",Recruitment costs ,Human Resources Security & Facilities Division 
DFID,DFID,28/08/2012,Penna Barkers ,602.40,Recruitment costs ,Human Resources Security & Facilities Division 
DFID,DFID,28/08/2012,Penna Barkers ,"2,624.36",Recruitment costs ,Human Resources Security & Facilities Division 
DFID,DFID,28/08/2012,Penna Barkers ,"2,050.12",Recruitment costs ,Human Resources Security & Facilities Division 
DFID,DFID,06/08/2012,WORLD CAREERS NETWORK PLC ,"7,147.62",Computer software maintenance ,Human Resources Security & Facilities Division 
DFID,DFID,31/08/2012,WORLD CAREERS NETWORK PLC ,"7,147.62",Computer software maintenance ,Human Resources Security & Facilities Division 
DFID,DFID,30/08/2012,PRICEWATERHOUSECOOPERS ,"337,759.33",Technical and Advisory Services ,West and Southern Africa 
DFID,DFID,15/08/2012,EFFECTIVE DEVELOPMENT GROUP (EDG) ,"39,776.70",Technical and Advisory Services ,West and Southern Africa 
DFID,DFID,23/08/2012,CARE INTERNATIONAL ,"315,970.00",Aid Programme - Accountable Grant Payments ,East and Central Africa 
DFID,DFID,31/08/2012,Corporate Travel Provider ,"1,059.89",Air fares ,Research and Evidence Division 
DFID,DFID,02/08/2012,DSTL ,"1,500.00",Training - Course Fees ,Research and Evidence Division 
DFID,DFID,20/08/2012,Recipient name withheld ,512.80,Hotels - Accommodation only ,Research and Evidence Division 
DFID,DFID,31/08/2012,Corporate Travel Provider ,"1,195.59",Air fares ,East and Central Africa 
DFID,DFID,10/08/2012,PRICEWATERHOUSECOOPERS ,"455,707.73",Technical and Advisory Services ,Research and Evidence Division 
DFID,DFID,01/08/2012,PRICEWATERHOUSECOOPERS ,"76,800.00",Technical and Advisory Services ,Research and Evidence Division 
DFID,DFID,01/08/2012,IMPERIAL COLLEGE LONDON ,"223,418.96",Technical and Advisory Services ,Policy Division 
DFID,DFID,03/08/2012,IMPERIAL COLLEGE LONDON ,"18,120.73",Technical and Advisory Services ,Policy Division 
DFID,DFID,28/08/2012,IMPERIAL COLLEGE LONDON ,"241,243.80",Technical and Advisory Services ,Policy Division 
DFID,DFID,29/08/2012,IBRD HSBC T ,"500,000.00",Aid Programme - Core contributions ,International Finance Division 
DFID,DFID,29/08/2012,Nathan Associates London Ltd ,"1,291.00",Technical and Advisory Services ,International Finance Division 
DFID,DFID,22/08/2012,THE INSTITUTE OF DEVELOPMENT STUDIE ,"144,814.38",Aid Programme - Accountable Grant Payments ,Research and Evidence Division 
DFID,DFID,09/08/2012,POPULATION  SERVICES INTERNATIONAL ,"7,423,902.00",Aid Programme - Accountable Grant Payments ,East and Central Africa 
DFID,DFID,22/08/2012,The Carter Center ,"1,000,000.00",Aid Programme - Accountable Grant Payments ,Policy Division 
DFID,DFID,10/08/2012,Access to Medicine Foundation ,"150,000.00",Aid Programme - Accountable Grant Payments ,Policy Division 
DFID,DFID,02/08/2012,LIVERPOOL SCHOOL OF TROPICAL MEDICINE ,"322,365.72",Aid Programme - Accountable Grant Payments ,Policy Division 
DFID,DFID,22/08/2012,Corporate Travel Provider ,568.10,Hotels - Accommodation only ,Human Resources Security & Facilities Division 
DFID,DFID,31/08/2012,Corporate Travel Provider ,864.18,Air fares ,Human Resources Security & Facilities Division 
DFID,DFID,31/08/2012,Corporate Travel Provider ,575.30,Air fares ,Human Resources Security & Facilities Division 
DFID,DFID,31/08/2012,Corporate Travel Provider ,"1,276.85",Air fares ,Human Resources Security & Facilities Division 
DFID,DFID,31/08/2012,Corporate Travel Provider ,"1,012.01",Air fares ,Human Resources Security & Facilities Division 
DFID,DFID,17/08/2012,HAREWELLE INTERNATIONAL LIMITED ,532.34,Technical and Advisory Services ,West and Southern Africa 
DFID,DFID,07/08/2012,Foreign & Commonwealth Office ,"2,254.65",Secure Staff Accomodation ,East and Central Africa 
DFID,DFID,17/08/2012,Foreign & Commonwealth Office ,"4,653.60",Technical and Advisory Services ,International Relations Division 
DFID,DFID,15/08/2012,Supplier Name withheld ,514.74,Hotels - Accommodation only ,West and Southern Africa 
DFID,DFID,10/08/2012,ADAM SMITH INTERNATIONAL  LTD ,"34,397.34",Technical and Advisory Services ,Asia  Caribbean and Overseas Territories 
DFID,DFID,09/08/2012,ADAM SMITH INTERNATIONAL  LTD ,"101,501.18",Technical and Advisory Services ,Asia  Caribbean and Overseas Territories 
DFID,DFID,13/08/2012,SNV Netherlands Development Organisation(Nepal) ,"204,400.00",Aid Programme - Accountable Grant Payments ,Asia  Caribbean and Overseas Territories 
DFID,DFID,22/08/2012,Corporate Travel Provider ,691.32,Air fares ,Asia  Caribbean and Overseas Territories 
DFID,DFID,22/08/2012,Corporate Travel Provider ,691.32,Air fares ,Asia  Caribbean and Overseas Territories 
DFID,DFID,31/08/2012,Corporate Travel Provider ,940.15,Air fares ,Asia  Caribbean and Overseas Territories 
DFID,DFID,22/08/2012,Corporate Travel Provider ,698.17,Hotels - Accommodation only ,Asia  Caribbean and Overseas Territories 
DFID,DFID,31/08/2012,Corporate Travel Provider ,567.46,Air fares ,Asia  Caribbean and Overseas Territories 
DFID,DFID,31/08/2012,Corporate Travel Provider ,565.16,Air fares ,Asia  Caribbean and Overseas Territories 
DFID,DFID,31/08/2012,Corporate Travel Provider ,993.36,Air fares ,Asia  Caribbean and Overseas Territories 
DFID,DFID,06/08/2012,Foreign & Commonwealth Office ,523.69,Vehicle Hire Charges ,Asia  Caribbean and Overseas Territories 
DFID,DFID,17/08/2012,Foreign & Commonwealth Office ,746.32,Telephone Usage & services ,Asia  Caribbean and Overseas Territories 
DFID,DFID,17/08/2012,Foreign & Commonwealth Office ,"7,351.99",Secure Staff Accomodation ,Asia  Caribbean and Overseas Territories 
DFID,DFID,31/08/2012,Corporate Travel Provider ,"1,491.81",Air fares ,Asia  Caribbean and Overseas Territories 
DFID,DFID,09/08/2012,Foreign & Commonwealth Office ,"3,160.07",Secure Staff Accomodation ,Asia  Caribbean and Overseas Territories 
DFID,DFID,08/08/2012,YAYASAN KEANEKARAGMAN HAYATI INDONESIA - KEHATI ,"330,008.00",Aid Programme - Accountable Grant Payments ,Asia  Caribbean and Overseas Territories 
DFID,DFID,09/08/2012,Foreign & Commonwealth Office ,"13,644.19",Technical and Advisory Services ,Asia  Caribbean and Overseas Territories 
DFID,DFID,08/08/2012,IBRD HSBC T ,"3,000,000.00",Aid Programme - Trust Funds contributions ,Policy Division 
DFID,DFID,23/08/2012,REPIM ,"4,649.99",Technical and Advisory Services ,Security & Humanitarian and Middle East Division 
DFID,DFID,31/08/2012,KPMG LLP ,"4,896.00",Technical and Advisory Services ,Communications Division 
DFID,DFID,31/08/2012,E-Payment System  ,625.30,Contract & Agency Staff ,Finance and Corporate Performance Division 
DFID,DFID,10/08/2012,WHO (GENEVA) ,"1,000,000.00",Aid Programme - Voluntary contributions ,Policy Division 
DFID,DFID,14/08/2012,IBRD (HSBC)  C/O THE WORLD BANK ,"900,000.00",Aid Programme - Trust Funds contributions ,Asia  Caribbean and Overseas Territories 
DFID,DFID,31/08/2012,Corporate Travel Provider ,580.39,Hotels - Accommodation only ,Policy Division 
DFID,DFID,16/08/2012,African Security Sector Network (ASSN) ,"68,515.28",Aid Programme - Accountable Grant Payments ,Western Asia and Stabilisation Division 
DFID,DFID,13/08/2012,CABI ,"300,000.00",Aid Programme - Core contributions ,Research and Evidence Division 
DFID,DFID,02/08/2012,BRITISH COUNCIL ,"112,780.76",Aid Programme - Accountable Grant Payments ,West and Southern Africa 
DFID,DFID,22/08/2012,Corporate Travel Provider ,"1,132.29",Air fares ,Research and Evidence Division 
DFID,DFID,31/08/2012,Corporate Travel Provider ,844.25,Air fares ,Research and Evidence Division 
DFID,DFID,08/08/2012,Recipient name withheld ,527.51,Hotels - Accommodation only ,Research and Evidence Division 
DFID,DFID,31/08/2012,E-Payment System  ,638.43,Contract & Agency Staff ,Research and Evidence Division 
DFID,DFID,31/08/2012,E-Payment System  ,506.16,Contract & Agency Staff ,Research and Evidence Division 
DFID,DFID,22/08/2012,Corporate Travel Provider ,929.80,Air fares ,Research and Evidence Division 
DFID,DFID,09/08/2012,LIVERPOOL SCHOOL OF TROPICAL MEDICINE ,"517,144.20",Aid Programme - Accountable Grant Payments ,Policy Division 
DFID,DFID,27/08/2012,UN OCHA ,"1,200,000.00",Aid Programme - Voluntary contributions ,Security & Humanitarian and Middle East Division 
DFID,DFID,13/08/2012,St Helena Department of Finance ,"3,993,000.00",Aid Programme - Other Financial Aid to Government ,Asia  Caribbean and Overseas Territories 
DFID,DFID,13/08/2012,St Helena Department of Finance ,"1,650,000.00",Aid Programme - Other Financial Aid to Government ,Asia  Caribbean and Overseas Territories 
DFID,DFID,07/08/2012,OXFAM INSTITUTIONAL INCOME ACCOUNT ,"42,933.00",Aid Programme - Accountable Grant Payments ,Asia  Caribbean and Overseas Territories 
DFID,DFID,08/08/2012,UNDP CONTRIBUTIONS GBP ,"3,000,000.00",Aid Programme - Voluntary contributions ,International Relations Division 
DFID,DFID,17/08/2012,DELOITTE (UGANDA) LIMITED ,"79,414.00",Technical and Advisory Services ,East and Central Africa 
DFID,DFID,10/08/2012,OXFAM ,"274,827.00",Aid Programme - Accountable Grant Payments ,East and Central Africa 
DFID,DFID,22/08/2012,Corporate Travel Provider ,554.81,Air fares ,Non-Departmental Public Body 
DFID,DFID,31/08/2012,Corporate Travel Provider ,652.79,Air fares ,Non-Departmental Public Body 
DFID,DFID,20/08/2012,NATIONAL AUDIT OFFICE ,"9,472.70",Technical and Advisory Services ,Non-Departmental Public Body 
DFID,DFID,23/08/2012,Supplier Name withheld ,"1,074.39",Secure Staff Accomodation ,Western Asia and Stabilisation Division 
DFID,DFID,07/08/2012,Foreign & Commonwealth Office ,"5,518.81",Other Building Costs ,West and Southern Africa 
DFID,DFID,23/08/2012,CARE INTERNATIONAL ,"305,412.18",Aid Programme - Accountable Grant Payments ,East and Central Africa 
DFID,DFID,24/08/2012,WESTMINSTER FOUNDATION FOR DEMOCRACY ,"729,775.00",Aid Programme - Accountable Grant Payments ,Policy Division 
DFID,DFID,22/08/2012,Corporate Travel Provider ,577.09,Air fares ,Security & Humanitarian and Middle East Division 
DFID,DFID,07/08/2012,Foreign & Commonwealth Office ,574.59,Other Admin Costs ,Security & Humanitarian and Middle East Division 
DFID,DFID,22/08/2012,Supplier Name withheld ,"71,936.18",Secure Staff Accomodation ,West and Southern Africa 
DFID,DFID,22/08/2012,Corporate Travel Provider ,630.66,Air fares ,Security & Humanitarian and Middle East Division 
DFID,DFID,31/08/2012,Corporate Travel Provider ,739.94,Air fares ,Security & Humanitarian and Middle East Division 
DFID,DFID,31/08/2012,Corporate Travel Provider ,710.44,Air fares ,Security & Humanitarian and Middle East Division 
DFID,DFID,10/08/2012,Pilgrims Group ,752.11,Hostile Environment Training ,Security & Humanitarian and Middle East Division 
DFID,DFID,22/08/2012,Foreign & Commonwealth Office ,823.42,Technical and Advisory Services ,Security & Humanitarian and Middle East Division 
DFID,DFID,22/08/2012,Foreign & Commonwealth Office ,"1,703.18",Hardware - servers & storage ,Security & Humanitarian and Middle East Division 
DFID,DFID,13/08/2012,St Helena Department of Finance ,"316,800.00",Aid Programme - Other Financial Aid to Government ,Asia  Caribbean and Overseas Territories 
DFID,DFID,07/08/2012,Foreign & Commonwealth Office ,"3,224.56",Aid Programme - Joint programme contribution ,West and Southern Africa 
DFID,DFID,09/08/2012,Foreign & Commonwealth Office ,999.60,Aid Programme - Joint programme contribution ,West and Southern Africa 
DFID,DFID,09/08/2012,Foreign & Commonwealth Office ,"39,984.01",Aid Programme - Joint programme contribution ,West and Southern Africa 
DFID,DFID,09/08/2012,Foreign & Commonwealth Office ,"2,135.26",Aid Programme - Joint programme contribution ,West and Southern Africa 
DFID,DFID,06/08/2012,Supplier Name withheld ,"2,984.23",Secure Staff Accomodation ,East and Central Africa 
DFID,DFID,28/08/2012,Harmony  Hotel ,730.42,Hotels - Accommodation only ,East and Central Africa 
DFID,DFID,06/08/2012,BUTLER & YOUNG GROUP ,"2,742.00",Technical and Advisory Services ,Human Resources Security & Facilities Division 
DFID,DFID,24/08/2012,The Express Travel Group ,"1,140.05",Air fares ,East and Central Africa 
DFID,DFID,17/08/2012,Ernst & Young Ford Rhodes Sidat  Hyder ,"8,809.10",Technical and Advisory Services ,Western Asia and Stabilisation Division 
DFID,DFID,29/08/2012,IBRD (HSBC)  C/O THE WORLD BANK ,"136,506.00",Aid Programme - Voluntary contributions ,Western Asia and Stabilisation Division 
DFID,DFID,22/08/2012,Corporate Travel Provider ,974.69,Air fares ,Western Asia and Stabilisation Division 
DFID,DFID,10/08/2012,Kay Two Zambia Limited ,"5,438.04",Other Building Costs ,West and Southern Africa 
DFID,DFID,10/08/2012,Kay Two Zambia Limited ,"2,330.59",Other Building Costs ,West and Southern Africa 
DFID,DFID,02/08/2012,Clinton Health Access Initiative  Inc ,"561,471.21",Aid Programme - Accountable Grant Payments ,Policy Division 
DFID,DFID,22/08/2012,Corporate Travel Provider ,"1,083.49",Air fares ,Western Asia and Stabilisation Division 
DFID,DFID,22/08/2012,Corporate Travel Provider ,"2,978.59",Air fares ,Western Asia and Stabilisation Division 
DFID,DFID,22/08/2012,Corporate Travel Provider ,"2,978.59",Air fares ,Western Asia and Stabilisation Division 
DFID,DFID,22/08/2012,Corporate Travel Provider ,"2,550.59",Air fares ,Western Asia and Stabilisation Division 
DFID,DFID,17/08/2012,African Security Sector Network (ASSN) ,"4,421.14",Technical and Advisory Services ,Western Asia and Stabilisation Division 
DFID,DFID,17/08/2012,African Security Sector Network (ASSN) ,"5,850.00",Technical and Advisory Services ,Western Asia and Stabilisation Division 
DFID,DFID,29/08/2012,Fairview Hotel ,"4,420.55",Hotels - Accommodation only ,Western Asia and Stabilisation Division 
DFID,DFID,21/08/2012,Logali House Ltd(US$) ,573.25,Hotels - Accommodation only ,Western Asia and Stabilisation Division 
DFID,DFID,20/08/2012,Logali House Ltd(US$) ,716.56,Hotels - Accommodation only ,Western Asia and Stabilisation Division 
DFID,DFID,27/08/2012,Logali House Ltd(US$) ,"1,146.50",Hotels - Accommodation only ,Western Asia and Stabilisation Division 
DFID,DFID,20/08/2012,Logali House Ltd(US$) ,"1,146.50",Hotels - Accommodation only ,Western Asia and Stabilisation Division 
DFID,DFID,21/08/2012,WFP Sudan Juba Sub Imprest(US$) ,"1,273.89",Air fares ,Western Asia and Stabilisation Division 
DFID,DFID,28/08/2012,Supplier Name withheld ,"2,580.00",Secure Staff Accomodation ,Western Asia and Stabilisation Division 
DFID,DFID,20/08/2012, UNHCR ,"2,000,000.00",Aid Programme - Voluntary contributions ,Security & Humanitarian and Middle East Division 
DFID,DFID,17/08/2012,AATF ,"366,728.00",Aid Programme - Accountable Grant Payments ,Research and Evidence Division 
DFID,DFID,13/08/2012, THE RESEARCH FOUNDATION ,"203,144.97",Aid Programme - Accountable Grant Payments ,East and Central Africa 
DFID,DFID,22/08/2012,Corporate Travel Provider ,"1,605.87",Air fares ,Asia  Caribbean and Overseas Territories 
DFID,DFID,31/08/2012,Corporate Travel Provider ,632.36,Air fares ,Asia  Caribbean and Overseas Territories 
DFID,DFID,31/08/2012,Corporate Travel Provider ,643.26,Air fares ,Asia  Caribbean and Overseas Territories 
DFID,DFID,31/08/2012,Corporate Travel Provider ,615.26,Air fares ,Asia  Caribbean and Overseas Territories 
DFID,DFID,06/08/2012,Supplier Name Withheld ,"3,500.00",Technical and Advisory Services ,West and Southern Africa 
DFID,DFID,22/08/2012,Corporate Travel Provider ,811.33,Air fares ,Human Resources Security & Facilities Division 
DFID,DFID,09/08/2012,IBRD HSBC T ,"2,000,000.00",Aid Programme - Trust Funds contributions ,Joint Trade Policy Division 
DFID,DFID,13/08/2012,World Food  Programme ,"500,000.00",Aid Programme - Humanitarian Material Relief Assistance and Services ,West and Southern Africa 
DFID,DFID,22/08/2012,Corporate Travel Provider ,680.39,Air fares ,Policy Division 
DFID,DFID,22/08/2012,Corporate Travel Provider ,749.69,Air fares ,Policy Division 
DFID,DFID,22/08/2012,Corporate Travel Provider ,710.79,Air fares ,Policy Division 
DFID,DFID,31/08/2012,Corporate Travel Provider ,"1,079.99",Conference Travel & Subsistence ,Policy Division 
DFID,DFID,31/08/2012,Corporate Travel Provider ,858.39,Conference Travel & Subsistence ,Policy Division 
DFID,DFID,31/08/2012,Corporate Travel Provider ,773.29,Air fares ,Policy Division 
DFID,DFID,31/08/2012,Corporate Travel Provider ,653.49,Air fares ,Policy Division 
DFID,DFID,31/08/2012,Corporate Travel Provider ,683.09,Conference Travel & Subsistence ,Policy Division 
DFID,DFID,31/08/2012,E-Payment System  ,572.26,Contract & Agency Staff ,Research and Evidence Division 
DFID,DFID,31/08/2012,E-Payment System  ,767.66,Contract & Agency Staff ,Research and Evidence Division 
DFID,DFID,31/08/2012,E-Payment System  ,707.18,Contract & Agency Staff ,Research and Evidence Division 
DFID,DFID,29/08/2012,INTERNATIONAL DEVELOPMENT RESEARCH CENTRE ,"526,506.00",Aid Programme - Joint programme contribution ,Research and Evidence Division 
DFID,DFID,31/08/2012,COMESA (GBP) ,"2,898,223.00",Aid Programme - Voluntary contributions ,West and Southern Africa 
DFID,DFID,07/08/2012,Foreign & Commonwealth Office ,"1,080.00",Furniture & Fittings ,East and Central Africa 
DFID,DFID,13/08/2012,Recipient name withheld ,771.80,Air fares ,East and Central Africa 
DFID,DFID,29/08/2012,Recipient name withheld ,542.90,Hotels - Accommodation only ,East and Central Africa 
DFID,DFID,29/08/2012,Recipient name withheld ,553.59,Hotels - Accommodation only ,East and Central Africa 
DFID,DFID,31/08/2012,Corporate Travel Provider ,980.09,Air fares ,Policy Division 
DFID,DFID,31/08/2012,VSO ,"2,164.00",Aid Programme - Accountable Grant Payments ,East and Central Africa 
DFID,DFID,15/08/2012,OPTIONS CONSULTANCY SERVICES LIMITED ,"120,064.00",Technical and Advisory Services ,Asia  Caribbean and Overseas Territories 
DFID,DFID,08/08/2012,Helvetas Nepal ,"345,133.65",Aid Programme - Accountable Grant Payments ,Asia  Caribbean and Overseas Territories 
DFID,DFID,20/08/2012,World Food  Programme ,"7,850,000.00",Aid Programme - Humanitarian Material Relief Assistance and Services ,East and Central Africa 
DFID,DFID,20/08/2012,WFP CONTRIBUTIONS UNIT ,"4,323,170.00",Aid Programme - Voluntary contributions ,Security & Humanitarian and Middle East Division 
DFID,DFID,22/08/2012,Corporate Travel Provider ,"1,454.02",Air fares ,Western Asia and Stabilisation Division 
DFID,DFID,22/08/2012,Corporate Travel Provider ,931.18,Air fares ,Western Asia and Stabilisation Division 
DFID,DFID,22/08/2012,Corporate Travel Provider ,"1,412.71",Air fares ,Western Asia and Stabilisation Division 
DFID,DFID,31/08/2012,Corporate Travel Provider ,578.60,Air fares ,Western Asia and Stabilisation Division 
DFID,DFID,31/08/2012,Corporate Travel Provider ,583.70,Air fares ,Western Asia and Stabilisation Division 
DFID,DFID,31/08/2012,Corporate Travel Provider ,"1,642.29",Air fares ,Western Asia and Stabilisation Division 
DFID,DFID,31/08/2012,Corporate Travel Provider ,605.90,Air fares ,Western Asia and Stabilisation Division 
DFID,DFID,31/08/2012,Corporate Travel Provider ,527.66,Air fares ,Western Asia and Stabilisation Division 
DFID,DFID,31/08/2012,Corporate Travel Provider ,574.00,Air fares ,Western Asia and Stabilisation Division 
DFID,DFID,31/08/2012,Corporate Travel Provider ,552.75,Air fares ,Western Asia and Stabilisation Division 
DFID,DFID,31/08/2012,Corporate Travel Provider ,"1,294.82",Conference Travel & Subsistence ,Research and Evidence Division 
DFID,DFID,31/08/2012,Corporate Travel Provider ,668.59,Air fares ,Research and Evidence Division 
DFID,DFID,22/08/2012,Corporate Travel Provider ,892.89,Air fares ,Research and Evidence Division 
DFID,DFID,22/08/2012,Corporate Travel Provider ,892.89,Air fares ,Research and Evidence Division 
DFID,DFID,03/08/2012,Recipient name withheld ,614.34,Hotels - Accommodation only ,Research and Evidence Division 
DFID,DFID,20/08/2012,Recipient name withheld ,607.36,Hotels - Accommodation only ,Research and Evidence Division 
DFID,DFID,31/08/2012,Corporate Travel Provider ,844.25,Air fares ,Research and Evidence Division 
DFID,DFID,07/08/2012,Foreign & Commonwealth Office ,"1,003.25",Air fares ,Asia  Caribbean and Overseas Territories 
DFID,DFID,22/08/2012,Corporate Travel Provider ,929.49,Air fares ,West and Southern Africa 
DFID,DFID,28/08/2012,INTERN DEVEL EDUC ASSOC OF SCOTLAND ,"2,062.50",Technical and Advisory Services ,Communications Division 
DFID,DFID,22/08/2012,Corporate Travel Provider ,604.69,Air fares ,Security & Humanitarian and Middle East Division 
DFID,DFID,22/08/2012,Corporate Travel Provider ,905.01,Air fares ,Security & Humanitarian and Middle East Division 
DFID,DFID,31/08/2012,Corporate Travel Provider ,818.22,Air fares ,Security & Humanitarian and Middle East Division 
DFID,DFID,31/08/2012,Corporate Travel Provider ,967.79,Air fares ,Security & Humanitarian and Middle East Division 
DFID,DFID,31/08/2012,Corporate Travel Provider ,658.31,Air fares ,Security & Humanitarian and Middle East Division 
DFID,DFID,10/08/2012,Pilgrims Group ,752.11,Hostile Environment Training ,Security & Humanitarian and Middle East Division 
DFID,DFID,23/08/2012,RedR UK ,"1,099.00",Training - Course Fees ,Security & Humanitarian and Middle East Division 
DFID,DFID,03/08/2012,Foreign & Commonwealth Office ,540.33,Technical and Advisory Services ,International Relations Division 
DFID,DFID,03/08/2012,Foreign & Commonwealth Office ,"1,810.83",FCO shared service charges ,International Relations Division 
DFID,DFID,06/08/2012,Foreign & Commonwealth Office ,547.07,Mobile telephones & accessories ,International Relations Division 
DFID,DFID,17/08/2012,Foreign & Commonwealth Office ,"5,503.15",FCO shared service charges ,International Relations Division 
DFID,DFID,31/08/2012,E-Payment System  ,536.00,Professional member subscriptions ,Human Resources Security & Facilities Division 
DFID,DFID,31/08/2012,E-Payment System  ,760.85,Professional member subscriptions ,Human Resources Security & Facilities Division 
DFID,DFID,22/08/2012,Corporate Travel Provider ,813.40,Aid Programme - Accountable Grant Payments ,Policy Division 
DFID,DFID,22/08/2012,Corporate Travel Provider ,626.40,Aid Programme - Accountable Grant Payments ,Policy Division 
DFID,DFID,22/08/2012,Corporate Travel Provider ,813.40,Aid Programme - Accountable Grant Payments ,Policy Division 
DFID,DFID,22/08/2012,Corporate Travel Provider ,626.40,Aid Programme - Accountable Grant Payments ,Policy Division 
DFID,DFID,30/08/2012,Lagos Preparatory School ,"11,721.83",Aid Programme - Accountable Grant Payments ,Policy Division 
DFID,DFID,17/08/2012,Protea Hotel Apo Apartments ,"8,741.35",Hotels - Accommodation only ,Policy Division 
DFID,DFID,22/08/2012,Foreign & Commonwealth Office ,"1,594.39",Technical and Advisory Services ,Asia  Caribbean and Overseas Territories 
DFID,DFID,22/08/2012,Foreign & Commonwealth Office ,"1,849.49",Technical and Advisory Services ,Asia  Caribbean and Overseas Territories 
DFID,DFID,22/08/2012,Foreign & Commonwealth Office ,"1,020.41",Technical and Advisory Services ,Asia  Caribbean and Overseas Territories 
DFID,DFID,22/08/2012,Foreign & Commonwealth Office ,928.57,Technical and Advisory Services ,Asia  Caribbean and Overseas Territories 
DFID,DFID,22/08/2012,Supplier Name withheld ,782.58,Air fares ,West and Southern Africa 
DFID,DFID,21/08/2012,SNV Vietnam ,"10,567.69",Aid Programme - Accountable Grant Payments ,Asia  Caribbean and Overseas Territories 
DFID,DFID,02/08/2012,Supplier Name Withheld ,"2,800.76",Technical and Advisory Services ,East and Central Africa 
DFID,DFID,09/08/2012,HAREWELLE INTERNATIONAL LIMITED ,"17,760.79",Technical and Advisory Services ,East and Central Africa 
DFID,DFID,22/08/2012,HAREWELLE INTERNATIONAL LIMITED ,"19,339.21",Technical and Advisory Services ,East and Central Africa 
DFID,DFID,30/08/2012,Supplier Name withheld ,"9,523.81",Secure Staff Accomodation ,East and Central Africa 
DFID,DFID,07/08/2012,Foreign & Commonwealth Office ,"1,247.71",Air fares ,Research and Evidence Division 
DFID,DFID,07/08/2012,Foreign & Commonwealth Office ,"1,224.41",Travel - Subsistence ,Research and Evidence Division 
DFID,DFID,09/08/2012,Foreign & Commonwealth Office ,"4,267.90",Travel - Subsistence ,Research and Evidence Division 
DFID,DFID,09/08/2012,Foreign & Commonwealth Office ,"3,211.71",Travel - Subsistence ,Research and Evidence Division 
DFID,DFID,09/08/2012,Foreign & Commonwealth Office ,"3,818.83",Travel - Subsistence ,Research and Evidence Division 
DFID,DFID,20/08/2012,Heath Action International ,"271,326.00",Aid Programme - Accountable Grant Payments ,Policy Division 
DFID,DFID,01/08/2012,UN RELIEF AND WORKS AGENCY ,"20,000,000.00",Aid Programme - Voluntary contributions ,Security & Humanitarian and Middle East Division 
DFID,DFID,10/08/2012,PRICEWATERHOUSECOOPERS ,"372,588.00",Technical and Advisory Services ,Policy Division 
DFID,DFID,30/08/2012,PRICEWATERHOUSECOOPERS ,"280,059.84",Technical and Advisory Services ,Policy Division 
DFID,DFID,22/08/2012,BMB  MOTT  MACDONALD ,"151,141.66",Technical and Advisory Services ,East and Central Africa 
DFID,DFID,22/08/2012,BMB  MOTT  MACDONALD ,"1,319,770.00",Technical and Advisory Services ,East and Central Africa 
DFID,DFID,31/08/2012,E-Payment System  ,712.80,Computer Consumables ,Business Solutions Division Level 
DFID,DFID,31/08/2012,United Nations Office on Drugs and Crime (UNODC) ,"351,000.00",Aid Programme - Core contributions ,East and Central Africa 
DFID,DFID,13/08/2012,Pilgrims Group ,"1,236.25",Training - Course Fees ,Policy Division 
DFID,DFID,23/08/2012,COFFEY INTERNATIONAL DEVELOPMENT LTD ,"54,485.59",Research & Development costs ,Research and Evidence Division 
DFID,DFID,02/08/2012,Rufus Leonard Ltd ,"2,316.00",Computer hardware maintenance ,Business Solutions Division Level 
DFID,DFID,14/08/2012,Rufus Leonard Ltd ,"2,316.00",Computer hardware maintenance ,Business Solutions Division Level 
DFID,DFID,26/08/2012,CROWN RELOCATIONS  UK ,"6,377.36",Storage & Distribution costs ,East and Central Africa 
DFID,DFID,26/08/2012,CROWN RELOCATIONS  UK ,"2,316.30",Storage & Distribution costs ,East and Central Africa 
DFID,DFID,17/08/2012,TRIPLE LINE CONSULTING LTD ,"78,950.98",Technical and Advisory Services ,Policy Division 
DFID,DFID,09/08/2012,ACTIONAID ,"1,029,751.00",Aid Programme - Partnership Programme Arrangements ,Policy Division 
DFID,DFID,02/08/2012,DAI Europe ,"77,321.27",Technical and Advisory Services ,West and Southern Africa 
DFID,DFID,21/08/2012,DAI Europe ,"115,012.97",Technical and Advisory Services ,West and Southern Africa 
DFID,DFID,16/08/2012,The INTASAVE Partnership ,"100,000.00",Aid Programme - Accountable Grant Payments ,Research and Evidence Division 
DFID,DFID,29/08/2012,TRIPLE LINE CONSULTING LTD ,"8,700.00",Technical and Advisory Services ,International Finance Division 
DFID,DFID,16/08/2012,THE SAVE THE CHILDREN FUND ,"2,167.45",Aid Programme - Accountable Grant Payments ,Security & Humanitarian and Middle East Division 
DFID,DFID,27/08/2012,Supplier Name withheld ,"22,209.43",Technical and Advisory Services ,Western Asia and Stabilisation Division 
DFID,DFID,24/08/2012,COFFEY INTERNATIONAL DEVELOPMENT LTD ,"92,979.06",Technical and Advisory Services ,Western Asia and Stabilisation Division 
DFID,DFID,14/08/2012,CROWN RELOCATIONS  UK ,905.09,Storage & Distribution costs ,Asia  Caribbean and Overseas Territories 
DFID,DFID,14/08/2012,CROWN RELOCATIONS  UK ,"2,283.00",Storage & Distribution costs ,Asia  Caribbean and Overseas Territories 
DFID,DFID,14/08/2012,The World Bank (EFO) ,"205,000.00",Aid Programme - Voluntary contributions ,Asia  Caribbean and Overseas Territories 
DFID,DFID,17/08/2012,DAI Europe ,"93,914.53",Technical and Advisory Services ,Western Asia and Stabilisation Division 
DFID,DFID,27/08/2012,DAI Europe ,"55,061.05",Technical and Advisory Services ,Western Asia and Stabilisation Division 
DFID,DFID,30/08/2012,MOTT MACDONALD LTD ,"78,195.22",Technical and Advisory Services ,Western Asia and Stabilisation Division 
DFID,DFID,07/08/2012,London Re-Use Limited ,570.00,Repairs  Maint  Alter - Removal & waste disposal services ,Human Resources Security & Facilities Division 
DFID,DFID,24/08/2012,Coffey International Development (Do not use) ,"58,239.80",Technical and Advisory Services ,East and Central Africa 
DFID,DFID,02/08/2012,FOREIGN AND COMMONWEALTH OFFICE (FCO) ,543.20,Aid Programme - Joint programme contribution ,Asia  Caribbean and Overseas Territories 
DFID,DFID,06/08/2012,CROWN RELOCATIONS  UK ,"1,181.00",Storage & Distribution costs ,Asia  Caribbean and Overseas Territories 
DFID,DFID,14/08/2012,SOCIAL DEVELOPMENT DIRECT LTD ,"2,800.00",Contract & Agency Staff ,Security & Humanitarian and Middle East Division 
DFID,DFID,03/08/2012,COFFEY INTERNATIONAL DEVELOPMENT LTD ,"34,658.00",Technical and Advisory Services ,East and Central Africa 
DFID,DFID,21/08/2012,IOD PARC ,"35,000.00",Technical and Advisory Services ,Security & Humanitarian and Middle East Division 
DFID,DFID,28/08/2012, Overseas Development Institute ,"507,532.00",Aid Programme - Accountable Grant Payments ,East and Central Africa 
DFID,DFID,06/08/2012,Center for International Forestry Research (CIFOR) (GBP) ,"34,790.00",Aid Programme - Accountable Grant Payments ,Policy Division 
DFID,DFID,08/08/2012,Shundi Consulting ,"11,118.37",Technical and Advisory Services ,International Relations Division 
DFID,DFID,01/08/2012,COFFEY INTERNATIONAL DEVELOPMENT LTD ,"1,880.09",Technical and Advisory Services ,East and Central Africa 
DFID,DFID,31/08/2012,RS DREW LTD ,"5,619.30",Technical and Advisory Services ,East and Central Africa 
DFID,DFID,03/08/2012,COFFEY INTERNATIONAL DEVELOPMENT LTD ,"15,278.00",Technical and Advisory Services ,East and Central Africa 
DFID,DFID,07/08/2012,GLOBAL WITNESS LTD ,"383,768.00",Aid Programme - Accountable Grant Payments ,Policy Division 
DFID,DFID,30/08/2012,DAI Europe ,"155,996.32",Technical and Advisory Services ,West and Southern Africa 
DFID,DFID,30/08/2012,DAI Europe ,"68,906.14",Technical and Advisory Services ,West and Southern Africa 
DFID,DFID,22/08/2012,MARIE STOPES INTERNATIONAL ,"1,201,337.00",Technical and Advisory Services ,Asia  Caribbean and Overseas Territories 
DFID,DFID,14/08/2012,Sustainable Development Policy Institute ,"73,989.00",Aid Programme - Accountable Grant Payments ,Asia  Caribbean and Overseas Territories 
DFID,DFID,23/08/2012,MOTT MACDONALD LTD ,"6,911.66",Technical and Advisory Services ,East and Central Africa 
DFID,DFID,30/08/2012,COFFEY INTERNATIONAL DEVELOPMENT LTD ,"158,404.25",Technical and Advisory Services ,West and Southern Africa 
DFID,DFID,23/08/2012,COFFEY INTERNATIONAL DEVELOPMENT LTD ,"86,654.91",Technical and Advisory Services ,West and Southern Africa 
DFID,DFID,30/08/2012,COFFEY INTERNATIONAL DEVELOPMENT LTD ,"3,450.00",Technical and Advisory Services ,East and Central Africa 
DFID,DFID,22/08/2012,STRATHCLYDE POLICE ,504.00,Conferences  Seminars & Meeting/Event Resource ,Policy Division 
DFID,DFID,17/08/2012,PATH ,"3,839.95",Technical and Advisory Services ,Policy Division 
DFID,DFID,22/08/2012,PATH ,"13,126.75",Technical and Advisory Services ,Policy Division 
DFID,DFID,24/08/2012,COFFEY INTERNATIONAL DEVELOPMENT LTD ,"18,250.00",Technical and Advisory Services ,Policy Division 
DFID,DFID,23/08/2012,ABT ASSOCIATES INC ,"1,747,444.36",Technical and Advisory Services ,West and Southern Africa 
DFID,DFID,09/08/2012,MS MARY JENNINGS ,"14,871.21",Technical and Advisory Services ,East and Central Africa 
DFID,DFID,20/08/2012,Bangladesh Primary Education Development Programme 3 Ministry of Finance ,"4,500,000.00",Aid Programme - Other Financial Aid to Government ,Asia  Caribbean and Overseas Territories 
DFID,DFID,20/08/2012,Bangladesh Primary Education Development Programme 3 Ministry of Finance ,"3,000,000.00",Aid Programme - Other Financial Aid to Government ,Asia  Caribbean and Overseas Territories 
DFID,DFID,07/08/2012,Foreign & Commonwealth Office ,"75,228.79",FCO shared service charges ,Western Asia and Stabilisation Division 
DFID,DFID,09/08/2012,RIVER PATH ASSOCIATES ,"14,840.42",Technical and Advisory Services ,Western Asia and Stabilisation Division 
DFID,DFID,15/08/2012,UNIVERSITY OF LEEDS ,"256,673.93",Research & Development costs ,Research and Evidence Division 
DFID,DFID,15/08/2012, Overseas Development Institute ,"120,231.91",Technical and Advisory Services ,Policy Division 
DFID,DFID,03/08/2012, Triple Line Consulting Ltd ,"784,639.31",Aid Programme - Accountable Grant Payments ,Policy Division 
DFID,DFID,03/08/2012, Triple Line Consulting Ltd ,"70,224.38",Aid Programme - Accountable Grant Payments ,Policy Division 
DFID,DFID,01/08/2012,THE IDL GROUP ,"1,560.00",Technical and Advisory Services ,Research and Evidence Division 
DFID,DFID,08/08/2012,CONMARA PARTNERSHIP LTD ,"1,000.00",Technical and Advisory Services ,Research and Evidence Division 
DFID,DFID,29/08/2012,Purushottam Ojha ,"4,257.43",Technical and Advisory Services ,Asia  Caribbean and Overseas Territories 
DFID,DFID,03/08/2012,Supplier Name withheld ,"83,655.00",Secure Staff Accomodation ,West and Southern Africa 
DFID,DFID,21/08/2012,Supplier Name withheld ,"23,364.94",Secure Staff Accomodation ,East and Central Africa 
DFID,DFID,14/08/2012,CROWN RELOCATIONS  UK ,905.09,Storage & Distribution costs ,Asia  Caribbean and Overseas Territories 
DFID,DFID,17/08/2012,GLOBAL CROSSING (UK) TELECOMMS LTD ,516.00,Telephone Usage & services ,Business Solutions Division Level 
DFID,DFID,29/08/2012,GLOBAL CROSSING (UK) TELECOMMS LTD ,"4,102.25",Telephone Usage & services ,Business Solutions Division Level 
DFID,DFID,16/08/2012,KUBE NETWORKS LTD ,"2,886.62",Data Network - land lines ,Business Solutions Division Level 
DFID,DFID,23/08/2012,KUBE NETWORKS LTD ,"3,072.07",Data Network - land lines ,Business Solutions Division Level 
DFID,DFID,29/08/2012,Power Systems Technology limited ,"1,110.04",Office Equipment - Maintenance ,West and Southern Africa 
DFID,DFID,29/08/2012,Power Systems Technology limited ,"1,471.45",Office Equipment - Maintenance ,West and Southern Africa 
DFID,DFID,10/08/2012,COFFEY INTERNATIONAL DEVELOPMENT LTD ,"20,991.00",Technical and Advisory Services ,Policy Division 
DFID,DFID,06/08/2012,THE UNIVERSITY OF MANCHESTER ,"100,631.59",Research & Development costs ,Research and Evidence Division 
DFID,DFID,20/08/2012,Hie Jean-Marc ,"14,405.62",Technical and Advisory Services ,West and Southern Africa 
DFID,DFID,01/08/2012,COFFEY INTERNATIONAL DEVELOPMENT LTD ,"64,451.61",Technical and Advisory Services ,West and Southern Africa 
DFID,DFID,24/08/2012,ITAD LTD ,"28,651.55",Technical and Advisory Services ,West and Southern Africa 
DFID,DFID,28/08/2012,Carbon Trust ,"15,686.89",Aid Programme - Accountable Grant Payments ,West and Southern Africa 
DFID,DFID,30/08/2012,Carbon Trust ,"30,789.54",Aid Programme - Accountable Grant Payments ,West and Southern Africa 
DFID,DFID,07/08/2012,CROWN RELOCATIONS  UK ,"3,091.38",Storage & Distribution costs ,West and Southern Africa 
DFID,DFID,28/08/2012,CROWN RELOCATIONS  UK ,"13,839.93",Relocation costs ,West and Southern Africa 
DFID,DFID,09/08/2012,Skills and Techniques Limited ,"6,160.69",Training - Course Fees ,West and Southern Africa 
DFID,DFID,28/08/2012,PRICEWATERHOUSECOOPERS PRIVATE LTD ,"15,773.51",Technical and Advisory Services ,Asia  Caribbean and Overseas Territories 
DFID,DFID,09/08/2012,CROWN RELOCATIONS  UK ,"4,603.09",Relocation costs ,West and Southern Africa 
DFID,DFID,13/08/2012,Supplier Name withheld ,"1,762,049.22",Technical and Advisory Services ,Western Asia and Stabilisation Division 
DFID,DFID,01/08/2012,Supplier Name withheld ,"73,273.25",Technical and Advisory Services ,Western Asia and Stabilisation Division 
DFID,DFID,13/08/2012,Supplier Name withheld ,"234,322.62",Technical and Advisory Services ,Western Asia and Stabilisation Division 
DFID,DFID,27/08/2012,Supplier Name withheld ,"64,964.59",Technical and Advisory Services ,Western Asia and Stabilisation Division 
DFID,DFID,27/08/2012,Supplier Name withheld ,"3,013.92",Technical and Advisory Services ,Western Asia and Stabilisation Division 
DFID,DFID,24/08/2012,Supplier Name withheld ,759.31,Technical and Advisory Services ,Western Asia and Stabilisation Division 
DFID,DFID,24/08/2012,Supplier Name withheld ,"64,695.79",Technical and Advisory Services ,Western Asia and Stabilisation Division 
DFID,DFID,27/08/2012,Supplier Name withheld ,"4,437.35",Technical and Advisory Services ,Western Asia and Stabilisation Division 
DFID,DFID,22/08/2012,CAMBRIDGE EDUCATION LTD ,"352,739.20",Technical and Advisory Services ,Asia  Caribbean and Overseas Territories 
DFID,DFID,27/08/2012,VOLUNTARY SERVICE OVERSEAS ,"25,119.00",Aid Programme - Accountable Grant Payments ,Asia  Caribbean and Overseas Territories 
DFID,DFID,28/08/2012,THE SAVE THE CHILDREN FUND ,"106,818.00",Aid Programme - Accountable Grant Payments ,Asia  Caribbean and Overseas Territories 
DFID,DFID,06/08/2012,CROWN RELOCATIONS  UK ,784.00,Storage & Distribution costs ,East and Central Africa 
DFID,DFID,02/08/2012,CROWN RELOCATIONS  UK ,"1,768.00",Storage & Distribution costs ,East and Central Africa 
DFID,DFID,01/08/2012,COFFEY INTERNATIONAL DEVELOPMENT LTD ,"12,652.33",Technical and Advisory Services ,East and Central Africa 
DFID,DFID,06/08/2012,DELTA PARTNERSHIP SOLUTIONS LTD ,"13,830.00",Technical and Advisory Services ,East and Central Africa 
DFID,DFID,13/08/2012,UNHAS - WFP (DRC) ,892.29,Air fares ,West and Southern Africa 
DFID,DFID,13/08/2012,UNHAS - WFP (DRC) ,835.25,Air fares ,West and Southern Africa 
DFID,DFID,14/08/2012,SOCIAL DEVELOPMENT DIRECT LTD ,"4,875.00",Contract & Agency Staff ,Security & Humanitarian and Middle East Division 
DFID,DFID,02/08/2012,Supplier Name withheld ,"2,371.19",Storage & Distribution costs ,Western Asia and Stabilisation Division 
DFID,DFID,08/08/2012,Supplier Name withheld ,"2,850.31",Storage & Distribution costs ,Western Asia and Stabilisation Division 
DFID,DFID,02/08/2012,Supplier Name withheld ,"3,092.61",Storage & Distribution costs ,Western Asia and Stabilisation Division 
DFID,DFID,22/08/2012,Rocel Ventures ,753.11,Facilities Management payments ,West and Southern Africa 
DFID,DFID,13/08/2012,CROWN RELOCATIONS  UK ,"7,011.92",Storage & Distribution costs ,West and Southern Africa 
DFID,DFID,10/08/2012,COFFEY INTERNATIONAL DEVELOPMENT LTD ,"21,594.53",Technical and Advisory Services ,West and Southern Africa 
DFID,DFID,28/08/2012,CROWN RELOCATIONS  UK ,"5,788.33",Relocation costs ,West and Southern Africa 
DFID,DFID,09/08/2012,CROWN RELOCATIONS  UK ,"6,988.95",Storage & Distribution costs ,West and Southern Africa 
DFID,DFID,27/08/2012,GRM INTERNATIONAL LTD ,"160,276.76",Technical and Advisory Services ,West and Southern Africa 
DFID,DFID,31/08/2012,GRM INTERNATIONAL LTD ,"156,035.82",Technical and Advisory Services ,West and Southern Africa 
DFID,DFID,28/08/2012,CROWN RELOCATIONS  UK ,"13,839.93",Relocation costs ,West and Southern Africa 
DFID,DFID,15/08/2012, Overseas Development Institute ,"50,419.27",Technical and Advisory Services ,Policy Division 
DFID,DFID,08/08/2012,CROWN RELOCATIONS  UK ,"4,916.11",Storage & Distribution costs ,East and Central Africa 
DFID,DFID,30/08/2012,CROWN RELOCATIONS  UK ,"5,177.20",Storage & Distribution costs ,East and Central Africa 
DFID,DFID,28/08/2012,World Federation of Science Journalists (CAD) ,"128,665.15",Aid Programme - Accountable Grant Payments ,Research and Evidence Division 
DFID,DFID,29/08/2012,HLSP LTD ,"47,745.00",Technical and Advisory Services ,Asia  Caribbean and Overseas Territories 
DFID,DFID,06/08/2012,Andrew John Goodwin ,"1,777.16",Training - Course Fees ,Asia  Caribbean and Overseas Territories 
DFID,DFID,06/08/2012,Andrew John Goodwin ,888.58,Training - Course Fees ,Asia  Caribbean and Overseas Territories 
DFID,DFID,08/08/2012,EFInA ,"747,513.73",Aid Programme - Accountable Grant Payments ,West and Southern Africa 
DFID,DFID,13/08/2012,COFFEY INTERNATIONAL DEVELOPMENT LTD ,"141,122.52",Technical and Advisory Services ,West and Southern Africa 
DFID,DFID,13/08/2012,GRM INTERNATIONAL LTD ,"210,146.33",Technical and Advisory Services ,West and Southern Africa 
DFID,DFID,06/08/2012,GRM INTERNATIONAL LTD ,"96,475.56",Technical and Advisory Services ,West and Southern Africa 
DFID,DFID,06/08/2012,Family Kingdom Limited ,639.39,Hotels - Accommodation only ,West and Southern Africa 
DFID,DFID,10/08/2012,Pace Travels ,829.03,Training - Travel & Subsistence ,Western Asia and Stabilisation Division 
DFID,DFID,23/08/2012,Supplier Name withheld ,"11,791.38",Secure Staff Accomodation ,East and Central Africa 
DFID,DFID,02/08/2012,COFFEY INTERNATIONAL DEVELOPMENT LTD ,"13,580.87",Technical and Advisory Services ,East and Central Africa 
DFID,DFID,22/08/2012,COFFEY INTERNATIONAL DEVELOPMENT LTD ,"15,959.12",Technical and Advisory Services ,East and Central Africa 
DFID,DFID,23/08/2012,CROWN RELOCATIONS  UK ,"8,670.86",Relocation costs ,West and Southern Africa 
DFID,DFID,02/08/2012,CROWN RELOCATIONS  UK ,"2,278.38",Relocation costs ,West and Southern Africa 
DFID,DFID,15/08/2012,CROWN RELOCATIONS  UK ,"4,332.40",Relocation costs ,West and Southern Africa 
DFID,DFID,03/08/2012,CROWN RELOCATIONS  UK ,"1,312.60",Relocation costs ,West and Southern Africa 
DFID,DFID,03/08/2012,CROWN RELOCATIONS  UK ,"2,600.10",Relocation costs ,West and Southern Africa 
DFID,DFID,23/08/2012,Trellisecure Trading ,"1,360.56",Other Building Costs ,West and Southern Africa 
DFID,DFID,30/08/2012,DAI Europe ,"117,039.05",Technical and Advisory Services ,West and Southern Africa 
DFID,DFID,08/08/2012,Shundi Consulting ,"24,570.51",Technical and Advisory Services ,International Relations Division 
DFID,DFID,13/08/2012,COFFEY INTERNATIONAL DEVELOPMENT LTD ,"70,160.59",Technical and Advisory Services ,International Relations Division 
DFID,DFID,01/08/2012,COFFEY INTERNATIONAL DEVELOPMENT LTD ,"45,857.28",Technical and Advisory Services ,International Relations Division 
DFID,DFID,07/08/2012,Papa Lenga ,807.17,Uniforms ,West and Southern Africa 
DFID,DFID,09/08/2012,Commonwealth Scientific and Industrial Research Organisation (CSIRO) ,"26,630.40",Research & Development costs ,Research and Evidence Division 
DFID,DFID,09/08/2012,Commonwealth Scientific and Industrial Research Organisation (CSIRO) ,"35,507.20",Research & Development costs ,Research and Evidence Division 
DFID,DFID,13/08/2012,SDC Dar Es Salaam TMF ,"252,247.00",Aid Programme - Core contributions ,East and Central Africa 
DFID,DFID,10/08/2012,Pace Travels ,894.08,Air fares ,Western Asia and Stabilisation Division 
DFID,DFID,27/08/2012,TRADEMARK EAST AFRICA ,"245,266.00",Aid Programme - Accountable Grant Payments ,East and Central Africa 
DFID,DFID,07/08/2012,Career Analysts Ltd ,954.00,Training - Course Fees ,Research and Evidence Division 
DFID,DFID,30/08/2012,CMI MICHELSEN INSTITUTE ,"50,120.00",Technical and Advisory Services ,West and Southern Africa 
DFID,DFID,14/08/2012,CROWN RELOCATIONS  UK ,"1,036.60",Storage & Distribution costs ,Security & Humanitarian and Middle East Division 
DFID,DFID,08/08/2012,CROWN RELOCATIONS  UK ,"4,916.11",Storage & Distribution costs ,Security & Humanitarian and Middle East Division 
DFID,DFID,01/08/2012,COFFEY INTERNATIONAL DEVELOPMENT LTD ,"23,896.73",Technical and Advisory Services ,West and Southern Africa 
DFID,DFID,28/08/2012,The World Bank (EFO) ,"150,000.00",Aid Programme - Voluntary contributions ,Asia  Caribbean and Overseas Territories 
DFID,DFID,20/08/2012,THE SAVE THE CHILDREN FUND ,"362,641.00",Aid Programme - Accountable Grant Payments ,Asia  Caribbean and Overseas Territories 
DFID,DFID,22/08/2012,SHALOM FOUNDATION ,"25,978.45",Aid Programme - Accountable Grant Payments ,Asia  Caribbean and Overseas Territories 
DFID,DFID,14/08/2012,Supplier Name withheld ,"320,723.38",Technical and Advisory Services ,Western Asia and Stabilisation Division 
DFID,DFID,03/08/2012,CROWN RELOCATIONS  UK ,"1,759.16",Storage & Distribution costs ,West and Southern Africa 
DFID,DFID,23/08/2012,COFFEY INTERNATIONAL DEVELOPMENT LTD ,"1,790.00",Technical and Advisory Services ,East and Central Africa 
DFID,DFID,23/08/2012,COFFEY INTERNATIONAL DEVELOPMENT LTD ,"7,298.56",Technical and Advisory Services ,East and Central Africa 
DFID,DFID,15/08/2012,VOLUNTARY SERVICE OVERSEAS ,"994,704.00",Technical and Advisory Services ,Communications Division 
DFID,DFID,20/08/2012,TRIPLE LINE CONSULTING LTD ,"6,310.67",Technical and Advisory Services ,Communications Division 
DFID,DFID,30/08/2012,Emerge Leaders Consultancy and Training plc ,"3,615.15",Training Providers/Facilitation Services ,East and Central Africa 
DFID,DFID,20/08/2012,Paul Brooker LTD ,"1,344.00",Technical and Advisory Services ,Western Asia and Stabilisation Division 
DFID,DFID,03/08/2012,Luziki Communications Ltd ,"11,813.69",Hardware - desktop PCs ,East and Central Africa 
DFID,DFID,03/08/2012,Luziki Communications Ltd ,"2,058.47",Hardware -Laptop PCs ,East and Central Africa 
DFID,DFID,01/08/2012,Development Aid from People to People ,"375,000.00",Aid Programme - Accountable Grant Payments ,West and Southern Africa 
DFID,DFID,17/08/2012,XChange Training UK Ltd ,540.00,Training - Course Fees ,Western Asia and Stabilisation Division 
DFID,DFID,03/08/2012,COFFEY INTERNATIONAL DEVELOPMENT LTD ,"96,043.56",Technical and Advisory Services ,East and Central Africa 
DFID,DFID,03/08/2012,COFFEY INTERNATIONAL DEVELOPMENT LTD ,"17,900.98",Technical and Advisory Services ,East and Central Africa 
DFID,DFID,17/08/2012,Pace Travels ,714.41,Training - Travel & Subsistence ,Western Asia and Stabilisation Division 
DFID,DFID,06/08/2012,GeniSys solutions limited ,"9,630.82",Technical and Advisory Services ,West and Southern Africa 
DFID,DFID,01/08/2012,Verdant Media Ltd ,714.00,Recruitment costs ,Western Asia and Stabilisation Division 
DFID,DFID,09/08/2012,CROWN RELOCATIONS  UK ,"23,374.00",Storage & Distribution costs ,West and Southern Africa 
DFID,DFID,08/08/2012,CROWN RELOCATIONS  UK ,"6,743.44",Storage & Distribution costs ,Western Asia and Stabilisation Division 
DFID,DFID,02/08/2012,CROWN RELOCATIONS  UK ,"4,081.77",Storage & Distribution costs ,West and Southern Africa 
DFID,DFID,07/08/2012,Yeane Enterprises ,579.70,Cleaning Costs ,West and Southern Africa 
DFID,DFID,13/08/2012,CROWN RELOCATIONS  UK ,"7,011.93",Storage & Distribution costs ,East and Central Africa 
DFID,DFID,21/08/2012,IOD PARC ,"5,428.24",Technical and Advisory Services ,East and Central Africa 
DFID,DFID,30/08/2012,UNSSC ,"3,799.80",Training - Course Fees ,International Finance Division 
DFID,DFID,03/08/2012,MOTT MACDONALD LTD ,"20,198.74",Technical and Advisory Services ,East and Central Africa 
DFID,DFID,13/08/2012,COFFEY INTERNATIONAL DEVELOPMENT LTD ,"53,685.84",Technical and Advisory Services ,International Relations Division 
DFID,DFID,09/08/2012,Foreign & Commonwealth Office ,"135,431.44",Secure Staff Accomodation ,Security & Humanitarian and Middle East Division 
DFID,DFID,14/08/2012,DEVELOPMENT MANAGEMENT ASSOCIATES ,"13,773.00",Technical and Advisory Services ,West and Southern Africa 
DFID,DFID,29/08/2012,Lene Jensen ,"6,345.30",Technical and Advisory Services ,Asia  Caribbean and Overseas Territories 
DFID,DFID,09/08/2012,MBM Cladding Ltd ,"2,760.00",Other Building Costs ,Human Resources Security & Facilities Division 
DFID,DFID,16/08/2012,MidlandHR ,"4,650.00",Technical and Advisory Services ,Human Resources Security & Facilities Division 
DFID,DFID,16/08/2012,GRM INTERNATIONAL LTD ,"481,316.45",Technical and Advisory Services ,West and Southern Africa 
DFID,DFID,20/08/2012,GRM INTERNATIONAL LTD ,"239,505.00",Technical and Advisory Services ,Asia  Caribbean and Overseas Territories 
DFID,DFID,24/08/2012,GRM INTERNATIONAL LTD ,"90,550.93",Technical and Advisory Services ,Western Asia and Stabilisation Division 
DFID,DFID,03/08/2012,Development Initiatives Poverty Research Ltd ,"310,695.00",Aid Programme - Accountable Grant Payments ,Finance and Corporate Performance Division 
DFID,DFID,22/08/2012,MARIE STOPES INTERNATIONAL ,"2,433,318.00",Technical and Advisory Services ,East and Central Africa 
DFID,DFID,10/08/2012,Royal Mail Courier Services Ltd ,"1,125.00",Postage Costs ,Human Resources Security & Facilities Division 
DFID,DFID,16/08/2012,GRM INTERNATIONAL LTD ,"80,278.45",Technical and Advisory Services ,West and Southern Africa 
DFID,DFID,20/08/2012,GRM INTERNATIONAL LTD ,"139,677.37",Technical and Advisory Services ,West and Southern Africa 
DFID,DFID,15/08/2012,Tanzania Natural Resource Forum ,"178,944.60",Aid Programme - Accountable Grant Payments ,East and Central Africa 
DFID,DFID,01/08/2012,Business Furniture Solutions ,"1,691.43",Furniture & Fittings ,West and Southern Africa 
DFID,DFID,13/08/2012,COFFEY INTERNATIONAL DEVELOPMENT LTD ,"18,365.00",Technical and Advisory Services ,East and Central Africa 
DFID,DFID,14/08/2012,COFFEY INTERNATIONAL DEVELOPMENT LTD ,"5,596.01",Technical and Advisory Services ,East and Central Africa 
DFID,DFID,13/08/2012,CROWN RELOCATIONS  UK ,"8,740.80",Relocation costs ,Human Resources Security & Facilities Division 
DFID,DFID,20/08/2012,Castlerock Consulting Pte. Ltd. ,"11,830.00",Technical and Advisory Services ,Asia  Caribbean and Overseas Territories 
DFID,DFID,09/08/2012, FCO SERVICES ,"18,000.00",Computer Software Licenses ,Business Solutions Division Level 
DFID,DFID,01/08/2012,NCS GROUP LTD ,"8,338.34",Telephone Usage & services ,Business Solutions Division Level 
DFID,DFID,01/08/2012,LLOYDS TSB LEASING LTD ,"2,405,218.12",Operating Lease rental of buildings ,Human Resources Security & Facilities Division 
DFID,DFID,28/08/2012,NORTHGATE HR LIMITED ,"2,780.80",Computer software maintenance ,Business Solutions Division Level 
DFID,DFID,28/08/2012,Civil Service College Limited ,973.75,Training - Course Fees ,Human Resources Security & Facilities Division 
DFID,DFID,28/08/2012,Civil Service College Limited ,"5,967.90",Training - Course Fees ,Human Resources Security & Facilities Division 
DFID,DFID,28/08/2012,Civil Service College Limited ,973.75,Training - Course Fees ,Human Resources Security & Facilities Division 
DFID,DFID,30/08/2012,Civil Service College Limited ,"4,868.75",Training - Course Fees ,Human Resources Security & Facilities Division 
DFID,DFID,01/08/2012,HTSPE LTD ,"28,155.11",Technical and Advisory Services ,Asia  Caribbean and Overseas Territories 
DFID,DFID,31/08/2012,RSM Tenon Limited ,"8,064.00",Technical and Advisory Services ,Policy Division 
DFID,DFID,13/08/2012,Mandarin Film ,"7,380.90",Promotional Digital Advertising ,Research and Evidence Division 
DFID,DFID,02/08/2012,Marriott Davies Yapp LLP ,"11,906.25",Technical and Advisory Services ,International Finance Division 
DFID,DFID,27/08/2012,GBRW LIMITED ,"4,927.50",Technical and Advisory Services ,International Finance Division 
DFID,DFID,06/08/2012,Supplier Name withheld ,"46,691.13",Technical and Advisory Services ,Western Asia and Stabilisation Division 
DFID,DFID,29/08/2012,IMC Worldwide Ltd ,"13,395.80",Technical and Advisory Services ,East and Central Africa 
DFID,DFID,29/08/2012,OXFORD POLICY MANAGEMENT ,"123,555.87",Technical and Advisory Services ,Western Asia and Stabilisation Division 
DFID,DFID,29/08/2012,THE ASIA FOUNDATION ,"787,417.99",Aid Programme - Accountable Grant Payments ,Western Asia and Stabilisation Division 
DFID,DFID,03/08/2012,Marriott Davies Yapp LLP ,708.80,Legal costs ,International Finance Division 
DFID,DFID,30/08/2012,OXFORD POLICY MANAGEMENT ,"12,681.21",Technical and Advisory Services ,Western Asia and Stabilisation Division 
DFID,DFID,29/08/2012,Supplier Name withheld ,"1,162,616.60",Aid Programme - Accountable Grant Payments ,Western Asia and Stabilisation Division 
DFID,DFID,08/08/2012,MINES ADVISORY GROUP ,"277,531.00",Technical and Advisory Services ,Security & Humanitarian and Middle East Division 
DFID,DFID,08/08/2012,MINES ADVISORY GROUP ,"214,081.00",Technical and Advisory Services ,Security & Humanitarian and Middle East Division 
DFID,DFID,15/08/2012,Forest Trends ,"235,832.00",Aid Programme - Accountable Grant Payments ,Policy Division 
DFID,DFID,13/08/2012,European Timber Trade Federation ,"79,910.21",Aid Programme - Accountable Grant Payments ,Policy Division 
DFID,DFID,27/08/2012,GBRW LIMITED ,"2,463.75",Technical and Advisory Services ,Policy Division 
DFID,DFID,09/08/2012,McKinsey & Co  Inc UK ,"134,065.00",Technical and Advisory Services ,Western Asia and Stabilisation Division 
DFID,DFID,27/08/2012,SEARCH FOR COMMON GROUND ,"129,023.00",Technical and Advisory Services ,West and Southern Africa 
DFID,DFID,07/08/2012,OpenCities Ltd ,"2,292.95",Technical and Advisory Services ,East and Central Africa 
DFID,DFID,07/08/2012,OpenCities Ltd ,"45,000.00",Technical and Advisory Services ,East and Central Africa 
DFID,DFID,07/08/2012,OpenCities Ltd ,"1,992.95",Technical and Advisory Services ,East and Central Africa 
DFID,DFID,09/08/2012,AFRICAN CENTRE FOR TECHNOLOGY STUDIES ,"200,153.00",Technical and Advisory Services ,Research and Evidence Division 
DFID,DFID,24/08/2012,Supplier Name Withheld ,"8,636.24",Contract & Agency Staff ,East and Central Africa 
DFID,DFID,23/08/2012,Marriott Davies Yapp LLP ,795.00,Technical and Advisory Services ,East and Central Africa 
DFID,DFID,08/08/2012,IMC Worldwide Ltd ,"59,280.00",Technical and Advisory Services ,Policy Division 
DFID,DFID,30/08/2012,OXFORD POLICY MANAGEMENT ,"15,681.64",Technical and Advisory Services ,Asia  Caribbean and Overseas Territories 
DFID,DFID,31/08/2012,ANDREW WEIR SHIPPING LTD ,"1,698.00",Other passenger transport ,Asia  Caribbean and Overseas Territories 
DFID,DFID,31/08/2012,ANDREW WEIR SHIPPING LTD ,"1,854.00",Other passenger transport ,Asia  Caribbean and Overseas Territories 
DFID,DFID,31/08/2012,ANDREW WEIR SHIPPING LTD ,"1,698.00",Other passenger transport ,Asia  Caribbean and Overseas Territories 
DFID,DFID,31/08/2012,ANDREW WEIR SHIPPING LTD ,"1,698.00",Other passenger transport ,Asia  Caribbean and Overseas Territories 
DFID,DFID,31/08/2012,ANDREW WEIR SHIPPING LTD ,"1,698.00",Other passenger transport ,Asia  Caribbean and Overseas Territories 
DFID,DFID,31/08/2012,ANDREW WEIR SHIPPING LTD ,"1,698.00",Other passenger transport ,Asia  Caribbean and Overseas Territories 
